Workbook

Sheet Introduction
B2: About this spreadsheet
B3: This spreadsheet lets you test - and possibly improve - your spreadsheet skills.
B6: Index
B7: This spreadsheet has an index page that shows a summary of which topics you have mastered. To go to the index page click on the following link.
C11: Index
B13: Help
B14: For help click on the following link.
C16: Help
C18: Copyright (c) 2020 Tykoh Group Pty Ltd. All rights reserved.
C19: www.tykoh.com

Sheet Index
B1: Spreadsheet skills competition | I1: Help
B2: [-] | C2: Aggregation | I2: 433
D3: [-] | E3: Aggregation
F4: =Aggregation!$A$3 -> 2 | G4: Conditionally summing - A simple problem illustrating the SUMIF function
F5: =Aggregation!$A$29 -> 2 | G5: Elaboration of preceding question - need to avoid 'hardcoding' the answer
F6: =Aggregation!$A$51 -> 2 | G6: Summing top 'N' - A short question - but very difficult
F7: =Aggregation!$A$78 -> 2 | G7: Counting conditionally - not easy - but not too difficult either.
D8: [-] | E8: Aggregation2
F9: =Aggregation2!$A$3 -> 8 | G9: Grouping by date - use SUMPRODUCT - a good illustration of SUMPRODUCT's power
F10: =Aggregation2!$A$37 -> 2 | G10: Conditionally summing between dates - use COUNTIF or SUMPRODUCT - not trivial
F11: =Aggregation2!$A$82 -> 2 | G11: Conditionally summing - use an array and SUM and SUMIF - a fairly hard question.
B12: [-] | C12: Referencing
D13: [-] | E13: Referencing
F14: =Referencing!$A$3 -> 2 | G14: One-dimensional lookup - Easy - use VLOOKUP
F15: =Referencing!$A$25 -> 2 | G15: Two-dimensional lookup - bit more difficult - can use VLOOKUP & MATCH
F16: =Referencing!$A$56 -> 2 | G16: Three-dimensional lookup - Harder - can use VLOOKUP, MATCH & INDIRECT
D17: [-] | E17: Referencing2
F18: =Referencing2!$A$3 -> 14 | G18: Interpolating - difficult - VLOOKUP isn't up to it - can use MATCH & OFFSET & others.
F19: =Referencing2!$A$58 -> 7 | G19: Depreciation / variable length 'window' - A good example of use of OFFSET function
B20: [-] | C20: Arithmetic and logic
D21: [-] | E21: Various
F22: =Various!$A$3 -> 2 | G22: Comparing data sets - Easy to get it almost right - harder to get it completely right.
F23: =Various!$A$74 -> 2 | G23: Detecting duplicates - Try to do it in a single cell - but several is ok too
F24: =Various!$A$107 -> 2 | G24: Mean / average - Can use SUM, SUMPRODUCT, PRODUCT to solve this.
D25: [-] | E25: Logic
F26: =Logic!$A$3 -> 18 | G26: Dividend policy - easy - using IF statements.
F27: =Logic!$A$29 -> 2 | G27: Thresholds - Need to use 'nested' IF statements - bit more complicated
D28: [-] | E28: Waterfall
F29: =Waterfall!$A$3 -> 166 | G29: A fairly wordy problem. Need to 'translate' from English to Excel statements - IF, etc.
B30: [-] | C30: Sensitivities and scenarios
D31: [-] | E31: Sensitivities
F32: =Sensitivities!$A$3 -> 33 | G32: Basics of using data tables
F33: =Sensitivities!$A$68 -> 7 | G33: Three scenarios - simple application of a data table
D34: [-] | E34: Scenarios
F35: =Scenarios!$A$3 -> 6 | G35: Scenarios - Easy example
B36: [-] | C36: Financial
D37: [-] | E37: Financial
F38: =Financial!$A$3 -> 35 | G38: Paying down a loan - has a twist - avoid circular references - they're not needed here
F39: =Financial!$A$57 -> 43 | G39: A good test of your grasp of the concepts underlying the NPV & PMT family of functions.
F40: =Financial!$A$116 -> 18 | G40: A more complex version of the above - avoid the solver - we want a solution that is automatic.
F41: =Financial!$A$162 -> 1 | G41: NPV - When does it assume the first cash flow occurs? That leads to the answer.
F42: =Financial!$A$173 -> 1 | G42: XNPV - Which date does it value for? That leads to the answer.
B43: [-] | C43: Miscellaneous
D44: [-] | E44: Dates
F45: =Dates!$A$3 -> 9 | G45: Dates - generate date of first day in month for successive months - easy
F46: =Dates!$A$37 -> 8 | G46: Dates - generate first business day in successive months - harder
D47: [-] | E47: Sorting
F48: =Sorting!$A$3 -> 14 | G48: Sorting - dynamically - fairly easy
F49: =Sorting!$A$118 -> 15 | G49: Sorting - dynamically - a small change to the preceding problem makes it much harder
D50: [-] | E50: Error Handling
F51: =Error_Handling!$A$3 -> 2 | G51: Detecting errors in a block of cells - harder than it looks
F52: =Error_Handling!$A$56 -> 2 | G52: Lookup - Would be simple - but must generate a default value if the lookup fails.
D55: Copyright (c) 2020 Tykoh Group Pty Ltd. All rights reserved.
D56: www.tykoh.com

Sheet Help
B1: Help
B3: This spreadsheet contains a set of questions which you can answer. The questions are in tabs to the right of this - Help - tab.
B6: To answer questions you need to put formulas into cells that have a colored background (outlined in red border below).
B19: When a formula is correct a corresponding blue marker on the left will turn yellow:
B34: On the Index page is a summary of questions you have answered correctly. Markers on that page indicate whether questions have been completed correctly. A marker that looks like "-" means all parts of the question has been completed correctly. A marker that looks like "x" means the answer isn't complete.
B50: Macros
B52: If you have macros enabled then the functions described below will be available to you.
B55: 1. Clicking in the '[+]' and '[-]' markers on the Index page will expand or collapse the corresponding index section.
B58: 2. You can check your progress through the questions (e.g. 35%). To do that, right-mouse-click on any tab and select the "Tykoh check progress" menu item on the pop-up menu.
B62: 3. You can load model answers. To do that, right-mouse-click on the tab you want the answers for. Then select the "Tykoh load answers" menu item on the pop-up menu. The answers that are loadable are changed from time-to time so all, none or a subset may be available.
B67: 4. You can add your name to a live "leader-board" if your percentage progress is sufficiently high relative to others who have answered the questions. You will be given that opportunity when you choose the "Tykoh check progress" option mentioned above.
D73: Copyright (c) 2020 Tykoh Group Pty Ltd. All rights reserved.
D74: www.tykoh.com

Sheet Aggregation
D1: Click here to see what your answer should look like.
K2: Aggregation | L2: Conditional_counting_and_summing
A3: =SUM($A$4:$A$28) -> 2 | C3: 1 | D3: Conditionally summing - A simple problem illustrating the SUMIF function
D5: Consider the divisional revenue table below.
D7: Division | E7: Month | F7: Revenue amount
D8: North | E8: Jan | F8: 150
D9: South | E9: Jan | F9: 220
D10: East | E10: Feb | F10: 370
D11: West | E11: Feb | F11: 200
D12: North | E12: Feb | F12: 500
D13: West | E13: Feb | F13: 400
D14: South | E14: Mar | F14: 700
D15: North | E15: Mar | F15: 150
D16: East | E16: Apr | F16: 200
D17: South | E17: Apr | F17: 500
D18: North | E18: May | F18: 160
D20: ="Find the total January revenue. You can use the SUMIF function for this. We'll give you the answer for this first question: It's: =SUMIF("& ADDRESS(ROW($E$8),COLUMN($E$8),4) & ":" & ADDRESS(ROW($E$18), COLUMN($E$18), 4)&",""=Jan"","& ADDRESS(ROW($F$8),COLUMN($F$8),4) & ":" & ADDRESS(ROW($F$18), COLUMN($F$18), 4)&")" -> Find the total January revenue. You can use the SUMIF function for this. We'll give you the answer for this first question: It's: =SUMIF(E8:E18,"=Jan",F8:F18)
A23: =IF(OR(NOT(ISNUMBER($E$23)),ISERROR($E$23)),1,IF(AND(LEN($E$23)>0,ABS((1-($E$23* 2.05547511577606+ 0.0334240198135376)/ 760.559216856956))<0.00005),0,1)) -> 1 | D23: January revenue
D25: Find the revenue excluding the West division. You can use the SUMIF function for this.
A27: =IF(OR(NOT(ISNUMBER($E$27)),ISERROR($E$27)),1,IF(AND(LEN($E$27)>0,ABS((1-($E$27* 0.795186161994934+-0.210437536239624)/ 2345.58874034882))<0.00005),0,1)) -> 1 | D27: Revenue excluding West
M28: Index
A29: =SUM($A$30:$A$50) -> 2 | C29: 2 | D29: Elaboration of preceding question - need to avoid 'hardcoding' the answer
D31: ="Continuing with the preceding question: Find the total of the revenues in " & ADDRESS(ROW($F$8),COLUMN($F$8),4) & ":" & ADDRESS(ROW($F$18), COLUMN($F$18), 4) & " that individually exceed the figure in cell "& ADDRESS(ROW($E$35),COLUMN($E$35),4)&". You can use the SUMIF function for this but be sure not to 'hardcode' the number in cell " & ADDRESS(ROW($E$35),COLUMN($E$35),4)&" in your SUMIF formula." -> Continuing with the preceding question: Find the total of the revenues in F8:F18 that individually exceed the figure in cell E35. You can use the SUMIF function for this but be sure not to 'hardcode' the number in cell E35 in your SUMIF formula.
D35: Revenue | E35: 200 | F35: <- You can change this cell
D36: =IF(ISERROR(E37),"Your answer is incorrect.",IF(LEN(E37)>0,IF(E37<>E38,"Your answer is incorrect",IF(MAX(H42:H47)>0,D49,"")),"")) -> 
A37: =IF(OR(NOT(ISNUMBER($E$37)),ISERROR($E$37)),1,IF(AND(LEN($E$37)>0,ABS(1-(($E$37 + -0.005621982946116)/($E$38 + -0.005621982946116)))<0.00005),0,1)) -> 1 | D37: Total
E38: =SUMIF(F8:F18,">"&E35,F8:F18) -> 2690
A39: =IF(OR(NOT(ISNUMBER($D$39)),ISERROR($D$39)),1,IF(AND(LEN($D$39)>0,ABS((1-($D$39*-4.85982358455657+ 0.26072359085083)/ 0.26072359085083))<0.00005),0,1)) -> 1 | D39: =I48 -> 1
E41: =E37 -> 0 | F41: =E38 -> 2690 | H41: =MATCH(MAX(H42:H47),H42:H47,0) -> 1
D42: 100 | E42: 0 | F42: 3550 | H42: =IF(E42=F42,0,1) -> 1
D43: 200 | E43: 0 | F43: 2690 | H43: 1
D44: 300 | E44: 0 | F44: 2470 | H44: 1
D45: 400 | E45: 0 | F45: 1700 | H45: 1
D46: 500 | E46: 0 | F46: 700 | H46: 1
D47: 600 | E47: 0 | F47: 700 | H47: 1
I48: =IF(ISERROR(E37),1,IF(AND(LEN(D36)=0,LEN(E37)>0),0,1)) -> 1 | J48: < overall
D49: ="Your answer will be incorrect if the revenue figure (in cell "&ADDRESS(ROW($E$35),COLUMN($E$35),4) &") is " & CHOOSE(H41,D42,D43,D44,D45,D46,D47)&"." -> Your answer will be incorrect if the revenue figure (in cell E35) is 100.
M50: Index
A51: =SUM($A$52:$A$77) -> 2 | C51: 3 | D51: Summing top 'N' - A short question - but very difficult
D53: ="Continuing with the preceding question. Find the total of the 'N' largest revenues in "&ADDRESS(ROW($F$8),COLUMN($F$8),4)&":"&ADDRESS(ROW($F$18),COLUMN($F$18),4)&". 'N' is selected in cell "&ADDRESS(ROW($G$56),COLUMN($G$56),4)&"." -> Continuing with the preceding question. Find the total of the 'N' largest revenues in F8:F18. 'N' is selected in cell G56.
D56: N largest revenues: | G56: 1 | H56: <- You can change this cell
D58: As part of your solution you can use the LARGE function. This question is difficult because some of the revenues are the same: The largest revenue is 700. The next largest revenues are 500 and 500 again. So, for example, the total of the two largest revenues is 1,200 and not 1,700.
D61: =IF(ISERROR(F62),"Your answer is incorrect.", IF(LEN(F62)>0,IF(F62<>F64,"Your answer is incorrect.",IF(MAX(H67:H74)>0,D76,"")),"")) -> 
A62: =IF(OR(NOT(ISNUMBER($F$62)),ISERROR($F$62)),1,IF(AND(LEN($F$62)>0,ABS(1-(($F$62 + -0.005621982946116)/($F$64 + -0.005621982946116)))<0.00005),0,1)) -> 1 | D62: Total of N largest:
A63: =IF(OR(NOT(ISNUMBER($D$63)),ISERROR($D$63)),1,IF(AND(LEN($D$63)>0,ABS((1-($D$63*-4.54647243022919+-0.0859673023223877)/-0.0859673023223877))<0.00005),0,1)) -> 1 | D63: =I75 -> 1
F64: =SUM((ROW($I$8:$I$18)-ROW($I$8)+1<=G56)*LARGE($F$8:$F$18,ROW($I$8:$I$18)-ROW($I$8)+1)) -> 700
E66: =F62 -> 0 | F66: =F64 -> 700 | H66: =MATCH(MAX(H67:H74),H67:H74,0) -> 1
D67: 1 | E67: 0 | F67: 700 | H67: =IF(E67=F67,0,1) -> 1
D68: =D67+1 -> 2 | E68: 0 | F68: 1200 | H68: 1
D69: 3 | E69: 0 | F69: 1700 | H69: 1
D70: 4 | E70: 0 | F70: 2100 | H70: 1
D71: 5 | E71: 0 | F71: 2470 | H71: 1
D72: 6 | E72: 0 | F72: 2690 | H72: 1
D73: 7 | E73: 0 | F73: 2890 | H73: 1
D74: 8 | E74: 0 | F74: 3090 | H74: 1
I75: =IF(ISERROR(F62),1,IF(AND(LEN(D61)=0,LEN(F62)>0),0,1)) -> 1 | J75: <overall
D76: ="Your answer will be incorrect if 'N' (in cell "& ADDRESS(ROW($G$56),COLUMN($G$56),4)&") is " & H66&"." -> Your answer will be incorrect if 'N' (in cell G56) is 1.
M77: Index
A78: =SUM($A$79:$A$194) -> 2 | C78: =C51+1 -> 4 | D78: Counting conditionally - not easy - but not too difficult either.
D80: ="Each month a department's performance can be A,B,C or D. A history of performances is shown below in cells "& ADDRESS(ROW($F$84),COLUMN($F$84),4) & ":" & ADDRESS(ROW($L$85), COLUMN($L$85), 4)&"." -> Each month a department's performance can be A,B,C or D. A history of performances is shown below in cells F84:L85.
D83: Departmental performance
D84: Month | F84: Jan | G84: Feb | H84: Mar | I84: Apr | J84: May | K84: Jun | L84: Jul
D85: Performance | F85: D | G85: C | H85: B | I85: B | J85: C | K85: A | L85: B
D87: ="We want to find the number of times the department's performance was between two levels. The levels are selected in cells "& ADDRESS(ROW($H$91),COLUMN($H$91),4) & " and " & ADDRESS(ROW($H$92),COLUMN($H$92),4) & " below. Display the answer in cell "& ADDRESS(ROW($H$94),COLUMN($H$94),4)&". COUNTIF or SUMPRODUCT would be good functions to use for this problem." -> We want to find the number of times the department's performance was between two levels. The levels are selected in cells H91 and H92 below. Display the answer in cell H94. COUNTIF or SUMPRODUCT would be good functions to use for this problem.
D91: Number of times performance was between | H91: B | I91: <- You can change this cell
D92: and (including) | H92: A | I92: <- You can change this cell
D93: =IF(ISERROR(H94),"Your answer is incorrect.",IF(LEN(H94)>0,IF(H94<>H96,"Your answer is incorrect.",IF(MAX(E110:H113)>0,D117,"")),"")) -> 
A94: =IF(OR(NOT(ISNUMBER($H$94)),ISERROR($H$94)),1,IF(AND(LEN($H$94)>0,ABS(1-(($H$94 + -0.005621982946116)/($H$96 + -0.005621982946116)))<0.00005),0,1)) -> 1 | D94: ="Number of times performance was between "&IF(H91>H92,H92,H91)&" and "&IF(H91>H92,H91,H92)&" (inclusive)." -> Number of times performance was between A and B (inclusive).
A95: =IF(OR(NOT(ISNUMBER($D$95)),ISERROR($D$95)),1,IF(AND(LEN($D$95)>0,ABS((1-($D$95*-1.26463830471039+ 0.461953163146973)/ 0.461953163146973))<0.00005),0,1)) -> 1 | D95: =H116 -> 1
H96: =COUNTIF(F85:L85,"<="&IF(H92>H91,H92,H91))-COUNTIF(F85:L85,"<"&IF(H92>H91,H91,H92)) -> 4
D98: =H94 -> 0 | E98: A | F98: B | G98: C | H98: D
D99: A | E99: 0 | F99: 0 | G99: 0 | H99: 0
D100: B | E100: 0 | F100: 0 | G100: 0 | H100: 0
D101: C | E101: 0 | F101: 0 | G101: 0 | H101: 0
D102: D | E102: 0 | F102: 0 | G102: 0 | H102: 0
D104: =H96 -> 4 | E104: =E98 -> A | F104: =F98 -> B | G104: =G98 -> C | H104: =H98 -> D
D105: =D99 -> A | E105: 1 | F105: 4 | G105: 6 | H105: 7
D106: =D100 -> B | E106: 4 | F106: 3 | G106: 5 | H106: 6 | L106: =SUM(SUMIF(K88:K98,P90:P94,L88:L98)) -> 0
D107: =D101 -> C | E107: 6 | F107: 5 | G107: 2 | H107: 3
D108: =D102 -> D | E108: 7 | F108: 6 | G108: 3 | H108: 1
J109: =MATCH(MAX(J110:J113),J110:J113,0) -> 1
E110: =IF(E99=E105,0,1) -> 1 | F110: 1 | G110: 1 | H110: 1 | J110: =MAX(E110:H110) -> 1
E111: 1 | F111: 1 | G111: 1 | H111: 1 | J111: =MAX(E111:H111) -> 1
E112: 1 | F112: 1 | G112: 1 | H112: 1 | J112: =MAX(E112:H112) -> 1
E113: 1 | F113: 1 | G113: 1 | H113: 1 | J113: =MAX(E113:H113) -> 1
E115: =MAX(E110:E113) -> 1 | F115: =MAX(F110:F113) -> 1 | G115: =MAX(G110:G113) -> 1 | H115: =MAX(H110:H113) -> 1 | I115: =MATCH(MAX(E115:H115),E115:H115,0) -> 1
H116: =IF(ISERROR(H94),1,IF(AND(LEN(D93)=0,LEN(H94)>0),0,1)) -> 1 | I116: < overall
D117: ="Your answer will be incorrect if the selected performance in cell "& ADDRESS(ROW($H$91),COLUMN($H$91),4) & " is "&CHOOSE(I115,E104,F104,G104,H104) & " and in cell " & ADDRESS(ROW($H$92),COLUMN($H$92),4) & " is " & CHOOSE(J109,D105,D106,D107,D108)&"." -> Your answer will be incorrect if the selected performance in cell H91 is A and in cell H92 is A.
E194: Copyright (c) 2020 Tykoh Group Pty Ltd. All rights reserved. | M194: Index
E195: www.tykoh.com

Sheet Aggregation2
J1: Click here to see what your answer should look like.
Q2: Aggregation | R2: Grouping_and_further_applications
A3: =SUM($A$4:$G$36) -> 8 | I3: 1 | J3: Grouping by date - use SUMPRODUCT - a good illustration of SUMPRODUCT's power
J5: Consider the cash flows shown below.
J7: Cash flows
J8: Date: | K8: 2013-01-01 | L8: 2013-01-06 | M8: 2013-01-12 | N8: 2013-01-17 | O8: 2013-01-18 | P8: 2013-02-03 | Q8: 2013-02-11
J9: Amount: | K9: 73 | L9: 93 | M9: 10 | N9: 8 | O9: 68 | P9: 47 | Q9: 65
J11: ="Cell "& ADDRESS(ROW($M$13),COLUMN($M$13),4)&" below lets you select an interval over which cash flows will be grouped together." -> Cell M13 below lets you select an interval over which cash flows will be grouped together.
J13: Grouping interval (days): | M13: 7 | N13: <- You can change this cell
J15: ="In cells "& ADDRESS(ROW($K$21),COLUMN($K$21),4) & ":" & ADDRESS(ROW($Q$21), COLUMN($Q$21), 4)&" below calculate the grouped cash flows. For example cell "& ADDRESS(ROW($K$21),COLUMN($K$21),4)& " should show the total of all amounts whose dates are greater than or equal to "& TEXT(K20,"d-mmm-yy") & " and are less than " & TEXT(L20,"d-mmm-yy")&". SUMPRODUCT would be a good function to use for this problem." -> In cells K21:Q21 below calculate the grouped cash flows. For example cell K21 should show the total of all amounts whose dates are greater than or equal to 1-Jan-13 and are less than 8-Jan-13. SUMPRODUCT would be a good function to use for this problem.
J18: =IF(ISERROR(SUM(K21:Q21)),"Your answer is incorrect.",IF(O33,IF(O32,"Your answer is incorrect.",IF(MAX(L33:L34)>0,J36,"")),"")) -> 
J19: Grouped cash flows
J20: Date: | K20: =K8 -> 2013-01-01 | L20: =K20+$M$13 -> 2013-01-08 | M20: 2013-01-15 | N20: 2013-01-22 | O20: 2013-01-29 | P20: 2013-02-05 | Q20: 2013-02-12
A21: =IF(OR(NOT(ISNUMBER($K$21)),ISERROR($K$21)),1,IF(AND(LEN($K$21)>0,ABS(1-(($K$21 + -0.005621982946116)/($K$30 + -0.005621982946116)))<0.00005),0,1)) -> 1 | B21: =IF(OR(NOT(ISNUMBER($L$21)),ISERROR($L$21)),1,IF(AND(LEN($L$21)>0,ABS(1-(($L$21 + -0.005621982946116)/($L$30 + -0.005621982946116)))<0.00005),0,1)) -> 1 | C21: =IF(OR(NOT(ISNUMBER($M$21)),ISERROR($M$21)),1,IF(AND(LEN($M$21)>0,ABS(1-(($M$21 + -0.005621982946116)/($M$30 + -0.005621982946116)))<0.00005),0,1)) -> 1 | D21: =IF(OR(NOT(ISNUMBER($N$21)),ISERROR($N$21)),1,IF(AND(LEN($N$21)>0,ABS(1-(($N$21 + -0.005621982946116)/($N$30 + -0.005621982946116)))<0.00005),0,1)) -> 1 | E21: =IF(OR(NOT(ISNUMBER($O$21)),ISERROR($O$21)),1,IF(AND(LEN($O$21)>0,ABS(1-(($O$21 + -0.005621982946116)/($O$30 + -0.005621982946116)))<0.00005),0,1)) -> 1 | F21: =IF(OR(NOT(ISNUMBER($P$21)),ISERROR($P$21)),1,IF(AND(LEN($P$21)>0,ABS(1-(($P$21 + -0.005621982946116)/($P$30 + -0.005621982946116)))<0.00005),0,1)) -> 1 | G21: =IF(OR(NOT(ISNUMBER($Q$21)),ISERROR($Q$21)),1,IF(AND(LEN($Q$21)>0,ABS(1-(($Q$21 + -0.005621982946116)/($Q$30 + -0.005621982946116)))<0.00005),0,1)) -> 1 | J21: Amount:
A22: =IF(OR(NOT(ISNUMBER($J$22)),ISERROR($J$22)),1,IF(AND(LEN($J$22)>0,ABS((1-($J$22* 3.29801619052887+ 0.324602127075195)/ 0.324602127075195))<0.00005),0,1)) -> 1 | J22: =O35 -> 1
K24: Workspace (not really needed though)
K30: =SUMPRODUCT(($K$8:$Q$8>=K20)*($K$8:$Q$8<L20)*$K$9:$Q$9) -> 166 | L30: 10 | M30: 76 | N30: 0 | O30: 47 | P30: 65 | Q30: 0
L32: =O32 -> 1 | M32: =MATCH(MAX(L33:L34),L33:L34,0) -> 1 | O32: =IF(SUM(ABS(K21:Q21-K30:Q30))>0,1,0) -> 1 | P32: ok
K33: 7 | L33: 1 | O33: =COUNT(K21:Q21)=ROWS(K21:Q21)*COLUMNS(K21:Q21) -> FALSE | P33: all done
K34: 14 | L34: 1
O35: =IF(AND(LEN(J18)=0,O33),0,1) -> 1 | P35: <overall
J36: ="Your answer will be incorrect if the grouping interval (in cell "& ADDRESS(ROW($M$13),COLUMN($M$13),4)& ") is " & CHOOSE(M32,K33,K34)&"." -> Your answer will be incorrect if the grouping interval (in cell M13) is 7. | S36: Index
A37: =SUM($A$38:$G$81) -> 2 | I37: 2 | J37: Conditionally summing between dates - use COUNTIF or SUMPRODUCT - not trivial
J39: The table below shows data relating to various contracts.
J41: Contract code | K41: Contract value | L41: Maturity date | N41: Workspace (not really needed though)
J42: AZ12 | K42: 145 | L42: 2013-03-07
J43: AZ99 | K43: 543 | L43: 2013-04-22
J44: BG23 | K44: 245 | L44: 2013-01-18
J45: HU87 | K45: 744 | L45: 2013-01-15
J46: JK98 | K46: 72 | L46: 2013-04-25
J47: JK99 | K47: 73 | L47: 2013-02-17
J48: ML16 | K48: 564 | L48: 2013-02-23
J49: PR82 | K49: 234 | L49: 2013-03-12
J51: Date 1: | K51: 2013-01-18 | L51: <- You can change this cell
J52: Date 2: | K52: 2013-03-10 | L52: <- You can change this cell
J54: ="In cell "& ADDRESS(ROW($N$58),COLUMN($N$58),4) & " below calculate the total value of contracts maturing between (and including) the dates in cells " & ADDRESS(ROW($K$51),COLUMN($K$51),4)& " and " & ADDRESS(ROW($K$52),COLUMN($K$52),4)&". Date 1 may be earlier or later (or the same as) Date 2. SUMPRODUCT or SUMIF would be a good function to use." -> In cell N58 below calculate the total value of contracts maturing between (and including) the dates in cells K51 and K52. Date 1 may be earlier or later (or the same as) Date 2. SUMPRODUCT or SUMIF would be a good function to use.
J57: =IF(ISERROR(N58),"Your answer is incorrect.",IF(LEN(N58)>0,IF(N58<>N60,"Your answer is incorrect.",IF(MAX(M73:O75)>0,J79,"")),"")) -> 
A58: =IF(OR(NOT(ISNUMBER($N$58)),ISERROR($N$58)),1,IF(AND(LEN($N$58)>0,ABS(1-(($N$58 + -0.005621982946116)/($N$60 + -0.005621982946116)))<0.00005),0,1)) -> 1 | J58: Contract value maturing between (and including) Date 1 & Date 2:
A59: =IF(OR(NOT(ISNUMBER($J$59)),ISERROR($J$59)),1,IF(AND(LEN($J$59)>0,ABS((1-($J$59* 4.10964310169219+-0.273133993148804)/-0.273133993148804))<0.00005),0,1)) -> 1 | J59: =P78 -> 1
N60: =SUMPRODUCT(((L42:L49>=MIN(K51:K52))*(L42:L49<=MAX(K51:K52))*K42:K49)) -> 1027
L63: =N58 -> 0 | M63: =TRANSPOSE(L64:L66) -> 2013-01-18 | N63: 2013-03-10 | O63: 2013-04-26
L64: 2013-01-18 | M64: 0 | N64: 0 | O64: 0
L65: 2013-03-10 | M65: 0 | N65: 0 | O65: 0
L66: 2013-04-26 | M66: 0 | N66: 0 | O66: 0
L68: =N60 -> 1027 | M68: =M63 -> 2013-01-18 | N68: =N63 -> 2013-03-10 | O68: =O63 -> 2013-04-26
L69: =L64 -> 2013-01-18 | M69: 245 | N69: 1027 | O69: 1876
L70: =L65 -> 2013-03-10 | M70: 1027 | N70: 0 | O70: 849
L71: =L66 -> 2013-04-26 | M71: 1876 | N71: 849 | O71: 0
Q72: =MATCH(MAX(Q73:Q75),Q73:Q75,0) -> 1
M73: =IF(M64=M69,0,1) -> 1 | N73: 1 | O73: 1 | Q73: =MAX(M73:O73) -> 1
M74: 1 | N74: 0 | O74: 1 | Q74: =MAX(M74:O74) -> 1
M75: 1 | N75: 1 | O75: 0 | Q75: =MAX(M75:O75) -> 1
L77: =MATCH(MAX(M77:O77),M77:O77,0) -> 1 | M77: =MAX(M73:M75) -> 1 | N77: =MAX(N73:N75) -> 1 | O77: =MAX(O73:O75) -> 1
P78: =IF(ISERROR(N58),1,IF(AND(LEN(J57)=0,LEN(N58)>0),0,1)) -> 1 | Q78: <overall
J79: ="Your answer will be incorrect if Date 1 (in cell "& ADDRESS(ROW($K$51),COLUMN($K$51),4) &") is " & TEXT(CHOOSE(L77,M68,N68,O68),"d-mmm-yy") & " and Date 2 (in cell " & ADDRESS(ROW($K$52),COLUMN($K$52),4) & ") is " & TEXT(CHOOSE(Q72,L69,L70,L71),"d-mmm-yy") &"." -> Your answer will be incorrect if Date 1 (in cell K51) is 18-Jan-13 and Date 2 (in cell K52) is 18-Jan-13.
S81: Index
A82: =SUM($A$83:$G$285) -> 2 | I82: =I37+1 -> 3 | J82: Conditionally summing - use an array and SUM and SUMIF - a fairly hard question.
J84: ="Cells " & ADDRESS(ROW($K$88),COLUMN($K$88),4) & ":" &ADDRESS(ROW($L$98), COLUMN($L$98), 4) & " below list transactions made with certain counterparties." -> Cells K88:L98 below list transactions made with certain counterparties. | O84: ="Cell "& ADDRESS(ROW($Q$87),COLUMN($Q$87),4) &" lets you select a certain set of counterparties." -> Cell Q87 lets you select a certain set of counterparties.
K87: Counter-party | L87: Amount | P87: Counterparty set | Q87: 3 | R87: <- You can change this
K88: YHU | L88: 1
K89: YHU | L89: 2 | P89: Counter-parties
K90: NJO | L90: 4 | P90: =INDIRECT("cparty_"&Q87) -> GHY
K91: YHU | L91: 8 | P91: 0
K92: UIP | L92: 16 | P92: 0
K93: NJO | L93: 32 | P93: 0
K94: GHL | L94: 64 | P94: 0
K95: GHL | L95: 128
K96: UIP | L96: 256
K97: GHY | L97: 512
K98: NJO | L98: 1024
J101: ="In cell " & ADDRESS(ROW($L$106),COLUMN($L$106),4) & " below calculate the total amount transacted with the counterparties shown in cells " & ADDRESS(ROW($P$90),COLUMN($P$90),4) & ":" &ADDRESS(ROW($P$94), COLUMN($P$94), 4)&". This is a fairly complicated question. You could use SUM and SUMIF in an array formula to solve the problem." -> In cell L106 below calculate the total amount transacted with the counterparties shown in cells P90:P94. This is a fairly complicated question. You could use SUM and SUMIF in an array formula to solve the problem.
J104: =IF(ISERROR(L106),"Your answer is incorrect.",IF(LEN(L106)>0,IF(L106<>L111,"Your answer is incorrect.",IF(MAX(R113:R117)>0,J120,"")),"")) -> 
J105: Total amount for selected counterparties. | N105: Workspace (not really needed though)
A106: =IF(OR(NOT(ISNUMBER($L$106)),ISERROR($L$106)),1,IF(AND(LEN($L$106)>0,ABS(1-(($L$106 + -0.005621982946116)/($L$111 + -0.005621982946116)))<0.00005),0,1)) -> 1
A108: =IF(OR(NOT(ISNUMBER($J$108)),ISERROR($J$108)),1,IF(AND(LEN($J$108)>0,ABS((1-($J$108*-2.56068646907806+ 0.0338730812072754)/ 0.0338730812072754))<0.00005),0,1)) -> 1 | J108: =P119 -> 1
L111: =SUM(SUMIF(K88:K98,P90:P94,L88:L98)) -> 512
P112: =L106 -> 0 | Q112: =L111 -> 512 | R112: =MATCH(MAX(R113:R117),R113:R117,0) -> 1
J113: YHU | K113: UIP | L113: GHY | M113: GHL | N113: YHU | O113: 1 | P113: 0 | Q113: 1071 | R113: =IF(P113=Q113,0,1) -> 1
J114: NJO | K114: GHY | M114: GHY | N114: NJO | O114: =O113+1 -> 2 | P114: 0 | Q114: 1844 | R114: =IF(P114=Q114,0,1) -> 1
K115: NJO | N115: UIP | O115: =O114+1 -> 3 | P115: 0 | Q115: 512 | R115: =IF(P115=Q115,0,1) -> 1
N116: GHL | O116: =O115+1 -> 4 | P116: 0 | Q116: 704 | R116: =IF(P116=Q116,0,1) -> 1
N117: GHY | O117: =O116+1 -> 5 | P117: 0 | Q117: 2047 | R117: =IF(P117=Q117,0,1) -> 1
P119: =IF(ISERROR(L106),1,IF(AND(LEN(J104)=0,LEN(L106)>0),0,1)) -> 1 | Q119: <overall
J120: ="Your answer will be incorrect for counterparty set " & R112&" ( selected in cell "& ADDRESS(ROW($Q$87),COLUMN($Q$87),4)&")." -> Your answer will be incorrect for counterparty set 1 ( selected in cell Q87).
K285: Copyright (c) 2020 Tykoh Group Pty Ltd. All rights reserved. | S285: Index
K286: www.tykoh.com

Sheet Referencing
D1: Click here to see what your answer should look like.
L2: Referencing | M2: Lookups
A3: =SUM($A$4:$A$24) -> 2 | C3: 1 | D3: One-dimensional lookup - Easy - use VLOOKUP
D4: The table below shows revenues for various months.
D6: Month | E6: Revenue
D7: Jan | E7: 224
D8: Feb | E8: 299
D9: Mar | E9: 277
D11: ="Into cell " & ADDRESS(ROW($E$15),COLUMN($E$15),4) & " put a formulae to calculate the revenue for the month chosen in cell " & ADDRESS(ROW(F14),COLUMN(F14),4)&". VLOOKUP would be a suitable function to use for this problem." -> Into cell E15 put a formulae to calculate the revenue for the month chosen in cell F14. VLOOKUP would be a suitable function to use for this problem.
D13: =IF(ISERROR(E15),"Your answer is incorrect.",IF(LEN(E15)=0,"",IF(E15=E16,IF(MAX(G20:G22)=0,"",D24),"Your answer is incorrect"))) -> 
D14: Month | F14: Feb | G14: <- You can change this cell
A15: =IF(OR(NOT(ISNUMBER($E$15)),ISERROR($E$15)),1,IF(AND(LEN($E$15)>0,ABS(1-(($E$15 + -0.005621982946116)/($E$16 + -0.005621982946116)))<0.00005),0,1)) -> 1 | D15: Revenue
E16: =VLOOKUP(F14,$D$7:$E$9,2,FALSE) -> 299
A17: =IF(OR(NOT(ISNUMBER($D$17)),ISERROR($D$17)),1,IF(AND(LEN($D$17)>0,ABS((1-($D$17* 1.76175892353058+-0.484296083450317)/-0.484296083450317))<0.00005),0,1)) -> 1 | D17: =I23 -> 1
E18: Theirs | F18: Correct | G18: Diff | H18: error chk | I18: err indx | J18: answered | K18: other
E19: =E15 -> 0
D20: =D7 -> Jan | E20: 0 | F20: =E7 -> 224 | G20: =IF(E20<>F20,1,0) -> 1 | H20: =MAX(G20:G22) -> 1 | I20: =IF(H20>0,MATCH(H20,G20:G22,0),0) -> 1
D21: =D8 -> Feb | E21: 0 | F21: =E8 -> 299 | G21: =IF(E21<>F21,1,0) -> 1
D22: =D9 -> Mar | E22: 0 | F22: =E9 -> 277 | G22: 0
I23: =IF(ISERROR(E15),1,IF(AND(LEN(D13)=0,LEN(E15)>0),0,1)) -> 1 | J23: < overall
D24: ="Your answer will be incorrect if the month (in cell " & ADDRESS(ROW(F14),COLUMN(F14),4)&") is " & CHOOSE(I20,D7,D8,D9)&"." -> Your answer will be incorrect if the month (in cell F14) is Jan. | N24: Index
A25: =SUM($A$26:$A$55) -> 2 | C25: 2 | D25: Two-dimensional lookup - bit more difficult - can use VLOOKUP & MATCH
D27: The table below shows revenues for various months and years.
G29: Revenue for year
E30: 2005 | F30: =E30+1 -> 2006 | G30: =F30+1 -> 2007 | H30: =G30+1 -> 2008 | I30: =H30+1 -> 2009 | J30: =I30+1 -> 2010
D31: =D7 -> Jan | E31: 224 | F31: 226 | G31: 239 | H31: 293 | I31: 293 | J31: 207
D32: =D8 -> Feb | E32: 299 | F32: 217 | G32: 261 | H32: 225 | I32: 266 | J32: 275
D33: =D9 -> Mar | E33: 277 | F33: 224 | G33: 235 | H33: 285 | I33: 241 | J33: 264
D35: ="Find the revenue for the year and month chosen in cells " & ADDRESS(ROW(F37),COLUMN(F37),4)&" and " & ADDRESS(ROW(F38),COLUMN(F38),4)&"." -> Find the revenue for the year and month chosen in cells F37 and F38.
D37: Year | F37: 2007 | G37: <- You can change this cell
D38: Month | F38: Feb | G38: <- You can change this cell
A39: =IF(OR(NOT(ISNUMBER($E$39)),ISERROR($E$39)),1,IF(AND(LEN($E$39)>0,ABS(1-(($E$39 + -0.005621982946116)/($E$40 + -0.005621982946116)))<0.00005),0,1)) -> 1 | D39: Revenue
E40: =VLOOKUP(F38,$D$31:$J$33,MATCH(F37,$D$30:$J$30,0),FALSE) -> 261
D41: =IF(ISERROR(E39),"Your answer is incorrect.",IF(LEN(E39)=0,"", IF(E39=E40,IF(MAX(E48:J50)=0,"",D53),"Your answer is incorrect"))) -> 
A42: =IF(OR(NOT(ISNUMBER($D$42)),ISERROR($D$42)),1,IF(AND(LEN($D$42)>0,ABS((1-($D$42*-3.96977365016937+ 0.298884391784668)/ 0.298884391784668))<0.00005),0,1)) -> 1 | D42: =G54 -> 1
D43: =E39 -> 0 | E43: =E30 -> 2005 | F43: 2006 | G43: 2007 | H43: 2008 | I43: 2009 | J43: 2010
D44: =D31 -> Jan | E44: 0 | F44: 0 | G44: 0 | H44: 0 | I44: 0 | J44: 0
D45: =D32 -> Feb | E45: 0 | F45: 0 | G45: 0 | H45: 0 | I45: 0 | J45: 0
D46: =D33 -> Mar | E46: 0 | F46: 0 | G46: 0 | H46: 0 | I46: 0 | J46: 0
D48: diff | E48: =IF(E31<>E44,1,0) -> 1 | F48: 1 | G48: 1 | H48: 1 | I48: 1 | J48: 1 | L48: =MAX(E48:J48) -> 1
E49: 1 | F49: 1 | G49: 1 | H49: 1 | I49: 1 | J49: 1 | L49: =MAX(E49:J49) -> 1
E50: 1 | F50: 1 | G50: 1 | H50: 1 | I50: 1 | J50: 1 | L50: =MAX(E50:J50) -> 1
D51: =MAX(E51:J51) -> 1 | E51: =MAX(E48:E50) -> 1 | F51: 1 | G51: 1 | H51: 1 | I51: 1 | J51: 1 | L51: =MAX(L48:L50) -> 1
D52: =MATCH(D51,E51:J51,0) -> 1 | L52: =MATCH(L51,L48:L50,0) -> 1
D53: ="Your answer will be incorrect if the year (in cell " & ADDRESS(ROW(F37),COLUMN(F37),4)&") is " & CHOOSE(D52,E43,F43,G43,H43,I43,J43) & " and the month (in cell " & ADDRESS(ROW(F38),COLUMN(F38),4)& ") is " & CHOOSE(L52,D44,D45,D46)&"." -> Your answer will be incorrect if the year (in cell F37) is 2005 and the month (in cell F38) is Jan.
G54: =IF(ISERROR(E39),1,IF(AND(LEN(D41)=0,LEN(E39)>0),0,1)) -> 1 | H54: < overall
N55: Index
A56: =SUM($A$57:$A$172) -> 2 | C56: =C25+1 -> 3 | D56: Three-dimensional lookup - Harder - can use VLOOKUP, MATCH & INDIRECT
D58: The tables below show "Section" revenues for various months and years.
F60: Section 1
E61: 2005 | F61: =E61+1 -> 2006 | G61: =F61+1 -> 2007 | H61: =G61+1 -> 2008 | I61: =H61+1 -> 2009 | J61: =I61+1 -> 2010
D62: =D31 -> Jan | E62: 224 | F62: 226 | G62: 239 | H62: 293 | I62: 293 | J62: 207
D63: =D32 -> Feb | E63: 299 | F63: 217 | G63: 261 | H63: 225 | I63: 266 | J63: 275
D64: =D33 -> Mar | E64: 202 | F64: 228 | G64: 212 | H64: 201 | I64: 242 | J64: 207
F66: Section 2
E67: =E61 -> 2005 | F67: 2006 | G67: 2007 | H67: 2008 | I67: 2009 | J67: 2010
D68: =D62 -> Jan | E68: 103 | F68: 111 | G68: 101 | H68: 109 | I68: 110 | J68: 148
D69: =D63 -> Feb | E69: 124 | F69: 122 | G69: 129 | H69: 105 | I69: 149 | J69: 132
D70: =D64 -> Mar | E70: 143 | F70: 133 | G70: 143 | H70: 118 | I70: 110 | J70: 146
F72: Section 3
E73: =E61 -> 2005 | F73: 2006 | G73: 2007 | H73: 2008 | I73: 2009 | J73: 2010
D74: =D62 -> Jan | E74: 430 | F74: 448 | G74: 441 | H74: 511 | I74: 513 | J74: 503
D75: =D63 -> Feb | E75: 547 | F75: 461 | G75: 519 | H75: 435 | I75: 564 | J75: 539
D76: =D64 -> Mar | E76: 488 | F76: 494 | G76: 498 | H76: 437 | I76: 462 | J76: 499
F78: Section 4
E79: =E67 -> 2005 | F79: 2006 | G79: 2007 | H79: 2008 | I79: 2009 | J79: 2010
D80: =D68 -> Jan | E80: 1 | F80: =E80+1 -> 2 | G80: =F80+1 -> 3 | H80: =G80+1 -> 4 | I80: =H80+1 -> 5 | J80: =I80+1 -> 6
D81: =D69 -> Feb | E81: =E80+10 -> 11 | F81: 12 | G81: 13 | H81: 14 | I81: 15 | J81: 16
D82: =D70 -> Mar | E82: 21 | F82: 22 | G82: 23 | H82: 24 | I82: 25 | J82: 26
D85: ="Find the revenue for the year, month and section chosen in cells " & ADDRESS(ROW(F90),COLUMN(F90),4)&":"&ADDRESS(ROW(F92),COLUMN(F92),4)&". You might find it useful to refer to the sections by name. The topmost dotted area is section_1, the middle is section_2 and the lowest is section_3." -> Find the revenue for the year, month and section chosen in cells F90:F92. You might find it useful to refer to the sections by name. The topmost dotted area is section_1, the middle is section_2 and the lowest is section_3.
D88: Your formula should not have to be adjusted if more sections are added.
D90: Year | F90: 2007 | G90: <- You can change this cell | J90: Working space (not needed though)
D91: Month | F91: Feb | G91: <- You can change this cell
D92: Section | F92: 1 | G92: <- You can change this cell
A93: =IF(OR(NOT(ISNUMBER($E$93)),ISERROR($E$93)),1,IF(AND(LEN($E$93)>0,ABS(1-(($E$93 + -0.005621982946116)/($E$94 + -0.005621982946116)))<0.00005),0,1)) -> 1 | D93: Revenue
E94: =VLOOKUP(F91,INDIRECT("section_"&F92),MATCH(F90,$D$61:$J$61,0),FALSE) -> 261
D96: =IF(ISERROR(E93),"Your answer is incorrect.",IF(LEN(E93)=0,"",IF(E93=E94,IF(MAX(F110:K112)=0,IF(MAX(F129:H131)=0,IF(J143,"","Your formula would need to be changed if another section is added - unacceptable solution."),E135),E116),"Your answer is incorrect."))) -> 
A98: =IF(OR(NOT(ISNUMBER($D$98)),ISERROR($D$98)),1,IF(AND(LEN($D$98)>0,ABS((1-($D$98*-2.04227149486542+-0.117989301681519)/-0.117989301681519))<0.00005),0,1)) -> 1 | D98: =K137 -> 1
E100: For chosen section
E101: =E93 -> 0 | F101: =E67 -> 2005 | G101: 2006 | H101: 2007 | I101: 2008 | J101: 2009 | K101: 2010
D102: Theirs> | E102: =D62 -> Jan | F102: 0 | G102: 0 | H102: 0 | I102: 0 | J102: 0 | K102: 0
E103: =D63 -> Feb | F103: 0 | G103: 0 | H103: 0 | I103: 0 | J103: 0 | K103: 0
E104: =D64 -> Mar | F104: 0 | G104: 0 | H104: 0 | I104: 0 | J104: 0 | K104: 0
D106: Correct-> | E106: =E102 -> Jan | F106: =CHOOSE($F$92,E62,E68,E74) -> 224 | G106: 226 | H106: 239 | I106: 293 | J106: 293 | K106: 207
E107: =E103 -> Feb | F107: 299 | G107: 217 | H107: 261 | I107: 225 | J107: 266 | K107: 275
E108: =E104 -> Mar | F108: 202 | G108: 228 | H108: 212 | I108: 201 | J108: 242 | K108: 207
F110: =IF(F102<>F106,1,0) -> 1 | G110: 1 | H110: 1 | I110: 1 | J110: 1 | K110: 1 | M110: =MAX(F110:K110) -> 1
F111: 1 | G111: 1 | H111: 1 | I111: 1 | J111: 1 | K111: 1 | M111: =MAX(F111:K111) -> 1
F112: 1 | G112: 1 | H112: 1 | I112: 1 | J112: 1 | K112: 1 | M112: =MAX(F112:K112) -> 1
E114: =MATCH(MAX(F114:K114),F114:K114,0) -> 1 | F114: =MAX(F110:F112) -> 1 | G114: 1 | H114: 1 | I114: 1 | J114: 1 | K114: 1 | M114: =MATCH(MAX(M110:M112),M110:M112,0) -> 1
D116: Check 1 | E116: ="Your answer will be incorrect if the year (in cell " &ADDRESS(ROW(F90),COLUMN(F90),4)& ") is " & CHOOSE(E114,F101,G101,H101,I101,J101,K101) & ", the month (in cell " & ADDRESS(ROW(F91),COLUMN(F91),4)&") is " & CHOOSE(M114,E102,E103,E104) & " and the section (in cell " & ADDRESS(ROW(F92),COLUMN(F92),4) & ") is " & F92& "." -> Your answer will be incorrect if the year (in cell F90) is 2005, the month (in cell F91) is Jan and the section (in cell F92) is 1.
E119: For chosen year
E120: =E93 -> 0 | F120: Jan | G120: Feb | H120: Mar
D121: Theirs> | E121: 1 | F121: 0 | G121: 0 | H121: 0
E122: 2 | F122: 0 | G122: 0 | H122: 0
E123: 3 | F123: 0 | G123: 0 | H123: 0
D125: Correct> | F125: =CHOOSE($F$90-2004,E62,F62,G62,H62,I62,J62) -> 239 | G125: =CHOOSE($F$90-2004,E63,F63,G63,H63,I63,J63) -> 261 | H125: =CHOOSE($F$90-2004,E64,F64,G64,H64,I64,J64) -> 212
F126: =CHOOSE($F$90-2004,E68,F68,G68,H68,I68,J68) -> 101 | G126: =CHOOSE($F$90-2004,E69,F69,G69,H69,I69,J69) -> 129 | H126: =CHOOSE(F90-2004,E70,F70,G70,H70,I70,J70) -> 143
F127: =CHOOSE($F$90-2004,E74,F74,G74,H74,I74,J74) -> 441 | G127: =CHOOSE($F$90-2004,E75,F75,G75,H75,I75,J75) -> 519 | H127: =CHOOSE($F$90-2004,E76,F76,G76,H76,I76,J76) -> 498
F129: =IF(ISERROR(F121),1,IF(F121<>F125,1,0)) -> 1 | G129: 1 | H129: 1 | J129: =MAX(F129:H129) -> 1
F130: 1 | G130: 1 | H130: 1 | J130: =MAX(F130:H130) -> 1
F131: 1 | G131: 1 | H131: 1 | J131: =MAX(F131:H131) -> 1
E133: =MATCH(MAX(F133:H133),F133:H133,0) -> 1 | F133: =MAX(F129:F131) -> 1 | G133: =MAX(G129:G131) -> 1 | H133: =MAX(H129:H131) -> 1 | J133: =MATCH(MAX(J129:J131),J129:J131,0) -> 1
D135: Check 2 | E135: ="Your answer will be incorrect if the year (in cell " & ADDRESS(ROW(F90),COLUMN(F90),4)&") is " & F90 & ", the month (in cell " & ADDRESS(ROW(F91),COLUMN(F91),4)& ") is " & CHOOSE(E133,F120,G120,H120) & " and the section (in cell " & ADDRESS(ROW(F92),COLUMN(F92),4)& ") is " & CHOOSE(J133,1,2,3)&"." -> Your answer will be incorrect if the year (in cell F90) is 2007, the month (in cell F91) is Jan and the section (in cell F92) is 1.
K137: =IF(ISERROR(E93),1,IF(AND(LEN(D96)=0,LEN(E93)>0),0,1)) -> 1 | L137: <overall
D138: Check that works for section 4
F140: =E93 -> 0
E141: 4 | F141: 0 | H141: =VLOOKUP(F91,D80:J82,MATCH(F90,D79:J79,0),FALSE) -> 13 | J141: =ISERROR(F141) -> FALSE | K141: <is error
J143: =IF(NOT(J141),IF(F141=H141,1,0),0) -> 0 | K143: <section 4 ok
F172: Copyright (c) 2020 Tykoh Group Pty Ltd. All rights reserved. | N172: Index
F173: www.tykoh.com

Sheet Referencing2
J1: Click here to see what your answer should look like.
R2: Referencing | S2: Applications_of_referencing
A3: =SUM($A$4:$G$57) -> 14 | I3: 1 | J3: Interpolating - difficult - VLOOKUP isn't up to it - can use MATCH & OFFSET & others.
J5: Your company has a joint venture with another company. The profits generated by the joint venture are shared between your company and the other company.
J8: ="This is how your profit share is calculated: If the joint venture profit is less than $" & M13 & "m your company's share is " & TEXT(M14,"0%")&". If the joint venture profit is $" & N13 & "m your share is " & TEXT(N14,"0%")&". If the profit is more than $" &O13 & "m your share is " & TEXT(O14,"0%")&". The profit share schedule is shown in the table below." -> This is how your profit share is calculated: If the joint venture profit is less than $10m your company's share is 15%. If the joint venture profit is $20m your share is 25%. If the profit is more than $60m your share is 35%. The profit share schedule is shown in the table below.
J12: Index | L12: [#] | M12: 1 | N12: 2 | O12: 3
J13: Joint venture profit | L13: [$m] | M13: 10 | N13: 20 | O13: 60
J14: Your share of profit | L14: [%] | M14: 0.15 | N14: 0.25 | O14: 0.35
J16: ="For profits between $" &M13 & "m and $" & O13 & "m a sliding scale applies. This is illustrated in the chart below." -> For profits between $10m and $60m a sliding scale applies. This is illustrated in the chart below.
L18: 0 | M18: =M13 -> 10 | N18: 20 | O18: 60 | P18: 80
L19: =M14 -> 0.15 | M19: 0.15 | N19: 0.25 | O19: 0.35 | P19: =O19 -> 0.35
M23: 0 | N23: =(N18+O18)/2 -> 40 | P23: =N23 -> 40 | Q23: =P23 -> 40
M24: =N24 -> 0.3 | N24: =(N19+O19)/2 -> 0.3 | P24: 0 | Q24: =N24 -> 0.3
J35: ="Consider a joint venture profit of $" & N23 &"m (as shown by the pink vertical line on the chart above). The profit share is calculated this way: $"&N23 &"m is midway between $" & N18&"m and $" & O18&"m. The profit share will then be midway between the profit share for $" & N18 &"m [" & TEXT(N19,"0%")&"] and the profit share for $"&O18&"m [" & TEXT(O19,"0%")&"] i.e. it will be $"&TEXT(N24,"0%")&"." -> Consider a joint venture profit of $40m (as shown by the pink vertical line on the chart above). The profit share is calculated this way: $40m is midway between $20m and $60m. The profit share will then be midway between the profit share for $20m [25%] and the profit share for $60m [35%] i.e. it will be $30%.
J39: ="Calculate the profit shares resulting from from the joint venture profits shown in cells "& ADDRESS(ROW($M$44),COLUMN($M$44),4) & ":" & ADDRESS(ROW($S$44), COLUMN($S$44), 4)&". You will need to use a combination of functions to solve this problem. Ones you could consider would include MATCH and OFFSET." -> Calculate the profit shares resulting from from the joint venture profits shown in cells M44:S44. You will need to use a combination of functions to solve this problem. Ones you could consider would include MATCH and OFFSET.
J43: Date | M43: 2011-06-01 | N43: 2011-12-01 | O43: 2012-06-01 | P43: 2012-12-01 | Q43: 2013-06-01 | R43: 2013-12-01 | S43: 2014-06-01
J44: Joint venture profit | L44: [$m] | M44: 9 | N44: 10 | O44: 14 | P44: 15 | Q44: 54 | R44: 60 | S44: 65
A46: =IF(OR(NOT(ISNUMBER($M$46)),ISERROR($M$46)),1,IF(AND(LEN($M$46)>0,ABS((1-($M$46*-1.99029505252838+ 0.448571085929871)/ 0.150026828050613))<0.00005),0,1)) -> 1 | B46: =IF(OR(NOT(ISNUMBER($N$46)),ISERROR($N$46)),1,IF(AND(LEN($N$46)>0,ABS((1-($N$46* 4.79829370975494+-0.098625659942627)/ 0.621118396520615))<0.00005),0,1)) -> 1 | C46: =IF(OR(NOT(ISNUMBER($O$46)),ISERROR($O$46)),1,IF(AND(LEN($O$46)>0,ABS((1-($O$46*-2.21720039844513+-0.339558482170105)/-0.76082655787468))<0.00005),0,1)) -> 1 | D46: =IF(OR(NOT(ISNUMBER($P$46)),ISERROR($P$46)),1,IF(AND(LEN($P$46)>0,ABS((1-($P$46*-3.37178409099579+ 0.146587133407593)/-0.527769684791565))<0.00005),0,1)) -> 1 | E46: =IF(OR(NOT(ISNUMBER($Q$46)),ISERROR($Q$46)),1,IF(AND(LEN($Q$46)>0,ABS((1-($Q$46*-0.899267792701721+-0.0872331857681274)/-0.388487896323204))<0.00005),0,1)) -> 1 | F46: =IF(OR(NOT(ISNUMBER($R$46)),ISERROR($R$46)),1,IF(AND(LEN($R$46)>0,ABS((1-($R$46* 2.12730467319489+-0.173793792724609)/ 0.5707628428936))<0.00005),0,1)) -> 1 | G46: =IF(OR(NOT(ISNUMBER($S$46)),ISERROR($S$46)),1,IF(AND(LEN($S$46)>0,ABS((1-($S$46* 1.33178889751434+-0.292438864707947)/ 0.173687249422073))<0.00005),0,1)) -> 1 | J46: Your profit share | L46: [%]
A47: =IF(OR(NOT(ISNUMBER($M$47)),ISERROR($M$47)),1,IF(AND(LEN($M$47)>0,ABS((1-($M$47*-3.13986480236053+ 0.0833590030670166)/-4.15545848011971))<0.00005),0,1)) -> 1 | B47: =IF(OR(NOT(ISNUMBER($N$47)),ISERROR($N$47)),1,IF(AND(LEN($N$47)>0,ABS((1-($N$47*-4.19285356998444+-0.042028546333313)/-6.33130890130997))<0.00005),0,1)) -> 1 | C47: =IF(OR(NOT(ISNUMBER($O$47)),ISERROR($O$47)),1,IF(AND(LEN($O$47)>0,ABS((1-($O$47* 4.05729830265045+-0.238631725311279)/ 10.5537817597389))<0.00005),0,1)) -> 1 | D47: =IF(OR(NOT(ISNUMBER($P$47)),ISERROR($P$47)),1,IF(AND(LEN($P$47)>0,ABS((1-($P$47* 2.85212218761444+-0.121097445487976)/ 8.43526911735535))<0.00005),0,1)) -> 1 | E47: =IF(OR(NOT(ISNUMBER($Q$47)),ISERROR($Q$47)),1,IF(AND(LEN($Q$47)>0,ABS((1-($Q$47*-2.10334956645966+ 0.419377088546753)/-37.6302165687084))<0.00005),0,1)) -> 1 | F47: =IF(OR(NOT(ISNUMBER($R$47)),ISERROR($R$47)),1,IF(AND(LEN($R$47)>0,ABS((1-($R$47* 1.31742417812347+ 0.127642035484314)/ 27.7935497760773))<0.00005),0,1)) -> 1 | G47: =IF(OR(NOT(ISNUMBER($S$47)),ISERROR($S$47)),1,IF(AND(LEN($S$47)>0,ABS((1-($S$47*-0.715436339378357+-0.402026176452637)/-16.6782028973103))<0.00005),0,1)) -> 1 | J47: Your profit share | L47: [$m]
J49: The colored area below is working space. You can do intermediate calculations in there.
T57: Index
A58: =SUM($A$59:$G$89) -> 7 | I58: =I3+1 -> 2 | J58: Depreciation / variable length 'window' - A good example of use of OFFSET function
J60: ="Assets have been purchased in previous years. " & N73 & " is the first year an asset was bought. Cells " & ADDRESS(ROW(N73),COLUMN(N73),4)&":"& ADDRESS(ROW(S74),COLUMN(S74),4)& " list the years and amounts that were purchased. Each asset depreciates to zero value within the depreciation period specified in cell "& ADDRESS(ROW(L71),COLUMN(L71),4)&". Assets are purchased at the start of each year." -> Assets have been purchased in previous years. 2005 is the first year an asset was bought. Cells N73:S74 list the years and amounts that were purchased. Each asset depreciates to zero value within the depreciation period specified in cell L71. Assets are purchased at the start of each year.
J64: Assets depreciate in according to a "straight-line" schedule. So a $5m asset depreciating over 5 years would generate a depreciation cost of $1m per year beginning in the year it was purchased..
J67: ="Calculate the depreciation cost each year in cells "&ADDRESS(ROW(N75),COLUMN(N75),4)&":"& ADDRESS(ROW(S75),COLUMN(S75),4)&". Try to make your formulae 'copy-and-pastable' i.e. use the same formula in each cell. Make sure your formulae don't refer to cells outside the area in which the asset schedule is defined." -> Calculate the depreciation cost each year in cells N75:S75. Try to make your formulae 'copy-and-pastable' i.e. use the same formula in each cell. Make sure your formulae don't refer to cells outside the area in which the asset schedule is defined.
J70: =IF(ISERROR(SUM(N75:S75)),"Your answer is incorrect.",IF(N82,IF(N81,"Your answer is incorrect.",IF(MAX(L80:L84)>0,J86,"")),"")) -> 
J71: Depreciation period [yrs] | L71: 2 | M71: <- You can change this cell
K73: Year | M73: [year] | N73: 2005 | O73: =N73+1 -> 2006 | P73: =O73+1 -> 2007 | Q73: =P73+1 -> 2008 | R73: =Q73+1 -> 2009 | S73: =R73+1 -> 2010
J74: 7 | K74: Assets acquired | M74: [$m] | N74: 4 | O74: 0 | P74: 2 | Q74: 0 | R74: 0 | S74: 0
A75: =IF(OR(NOT(ISNUMBER($N$75)),ISERROR($N$75)),1,IF(AND(LEN($N$75)>0,ABS(1-(($N$75 + -0.005621982946116)/($N$79 + -0.005621982946116)))<0.00005),0,1)) -> 1 | B75: =IF(OR(NOT(ISNUMBER($O$75)),ISERROR($O$75)),1,IF(AND(LEN($O$75)>0,ABS(1-(($O$75 + -0.005621982946116)/($O$79 + -0.005621982946116)))<0.00005),0,1)) -> 1 | C75: =IF(OR(NOT(ISNUMBER($P$75)),ISERROR($P$75)),1,IF(AND(LEN($P$75)>0,ABS(1-(($P$75 + -0.005621982946116)/($P$79 + -0.005621982946116)))<0.00005),0,1)) -> 1 | D75: =IF(OR(NOT(ISNUMBER($Q$75)),ISERROR($Q$75)),1,IF(AND(LEN($Q$75)>0,ABS(1-(($Q$75 + -0.005621982946116)/($Q$79 + -0.005621982946116)))<0.00005),0,1)) -> 1 | E75: =IF(OR(NOT(ISNUMBER($R$75)),ISERROR($R$75)),1,IF(AND(LEN($R$75)>0,ABS(1-(($R$75 + -0.005621982946116)/($R$79 + -0.005621982946116)))<0.00005),0,1)) -> 1 | F75: =IF(OR(NOT(ISNUMBER($S$75)),ISERROR($S$75)),1,IF(AND(LEN($S$75)>0,ABS(1-(($S$75 + -0.005621982946116)/($S$79 + -0.005621982946116)))<0.00005),0,1)) -> 1 | K75: (Depreciation) | M75: 7
A77: =IF(OR(NOT(ISNUMBER($J$77)),ISERROR($J$77)),1,IF(AND(LEN($J$77)>0,ABS((1-($J$77*-1.46527349948883+-0.0951658487319946)/-0.0951658487319946))<0.00005),0,1)) -> 1 | J77: =N84 -> 1
L79: =N81 -> 1 | M79: =MATCH(MAX(L80:L84),L80:L84,0) -> 1 | N79: =-SUM(N74:OFFSET(N74,0,1-MIN($L$71,N73-$N$73+1)))/$L$71 -> -2 | O79: =-SUM(O74:OFFSET(O74,0,1-MIN($L$71,O73-$N$73+1)))/$L$71 -> -2 | P79: =-SUM(P74:OFFSET(P74,0,1-MIN($L$71,P73-$N$73+1)))/$L$71 -> -1 | Q79: =-SUM(Q74:OFFSET(Q74,0,1-MIN($L$71,Q73-$N$73+1)))/$L$71 -> -1 | R79: =-SUM(R74:OFFSET(R74,0,1-MIN($L$71,R73-$N$73+1)))/$L$71 -> 0 | S79: =-SUM(S74:OFFSET(S74,0,1-MIN($L$71,S73-$N$73+1)))/$L$71 -> 0
K80: 1 | L80: 1
K81: =K80+1 -> 2 | L81: 1 | N81: =IF(ROUND(SUM(ABS(N75:S75-N79:S79)),8)>0,1,0) -> 1 | O81: <All correct
K82: =K81+1 -> 3 | L82: 1 | N82: =COUNT(N75:S75)=ROWS(N75:S75)*COLUMNS(N75:S75) -> FALSE | O82: <All answered
K83: =K82+1 -> 4 | L83: 1
K84: =K83+1 -> 5 | L84: 1 | N84: =IF(ISERROR(SUM(N75:S75)),1,IF(AND(LEN(J70)=0,N82),0,1)) -> 1 | O84: < overall
J86: ="Your answer will be incorrect if the depreciation window (in cell " & ADDRESS(ROW(L71),COLUMN(L71),4)& ") is " & CHOOSE(M79,K80,K81,K82,K83,K84)&" yrs." -> Your answer will be incorrect if the depreciation window (in cell L71) is 1 yrs.
L89: Copyright (c) 2020 Tykoh Group Pty Ltd. All rights reserved. | T89: Index
L90: www.tykoh.com

Sheet Various
D1: Click here to see what your answer should look like.
K2: Arithmetic | L2: Sample_applications
A3: =SUM($A$4:$A$73) -> 2 | C3: 1 | D3: Comparing data sets - Easy to get it almost right - harder to get it completely right.
D5: ="You can select one of three data sets by choosing 1,2 or 3 in cell " & ADDRESS(ROW(E7),COLUMN(E7),4)&" below." -> You can select one of three data sets by choosing 1,2 or 3 in cell E7 below.
D7: Data set: | E7: 1 | F7: <- You can change this cell
D9: ="The selected data set is shown below (with a dotted background) in cells "& ADDRESS(ROW(D12),COLUMN(D12),4)&":"&ADDRESS(ROW(G17),COLUMN(G17),4)&". " -> The selected data set is shown below (with a dotted background) in cells D12:G17.
D11: ="Selected data set is " & E7 -> Selected data set is 1 | I11: Reference set
D12: =INDIRECT("data_set_"&E7) -> 0.50463 | E12: 0.690854 | F12: 0.130354 | G12: 0.304643 | I12: 0.50463 | J12: 0.690854 | K12: 0.130354 | L12: 0.304643
D13: 0.854082 | E13: 0.967712 | F13: 0.098941 | G13: 0.154331 | I13: 0.854082 | J13: 0.967712 | K13: 0.098941 | L13: 0.154331
D14: 0.593255 | E14: 0.97821 | F14: 0.339026 | G14: 0.524566 | I14: 0.593255 | J14: 0.97821 | K14: 0.339026 | L14: 0.524566
D15: 0.627265 | E15: 0.710125 | F15: 0.4216 | G15: 0.157712 | I15: 0.627265 | J15: 0.710125 | K15: 0.4216 | L15: 0.157712
D16: 0.835484 | E16: 0.658092 | F16: 0.409358 | G16: 0.471525 | I16: 0.835484 | J16: 0.658092 | K16: 0.409358 | L16: 0.471525
D17: 0.079 | E17: 0.00954 | F17: 0.208529 | G17: 0.781042 | I17: 0.079 | J17: 0.00954 | K17: 0.208529 | L17: 0.781042
D19: ="You need to check whether each cell in the selected data set is the same as the corresponding cell in the 'Reference set' in cells " & ADDRESS(ROW(I12),COLUMN(I12),4)&":"&ADDRESS(ROW(L17),COLUMN(L17),4)&". [Differences between the selected data set and the reference data set are highlighed in purple.]" -> You need to check whether each cell in the selected data set is the same as the corresponding cell in the 'Reference set' in cells I12:L17. [Differences between the selected data set and the reference data set are highlighed in purple.]
D23: ="If all of the cells in the selected data set are the same as the corresponding cells in the reference set then cell " & ADDRESS(ROW(E26),COLUMN(E26),4)& " below should show 'Same'. If any differ the cell should show 'Differ'." -> If all of the cells in the selected data set are the same as the corresponding cells in the reference set then cell E26 below should show 'Same'. If any differ the cell should show 'Differ'.
D25: =IF(ISERROR(E26),"Your answer is incorrect.",IF(LEN(E26)>0,IF(E26<>E31,"Your answer is incorrect.",IF(MAX(I32:I36)>0,D37,"")),"")) -> 
A26: =IF(OR((0),ISERROR($E$26)),1,IF($E$26=$E$31,0,1)) -> 1 | D26: Check:
A28: =IF(OR(NOT(ISNUMBER($D$28)),ISERROR($D$28)),1,IF(AND(LEN($D$28)>0,ABS((1-($D$28*-2.3026841878891+-0.444406509399414)/-0.444406509399414))<0.00005),0,1)) -> 1 | D28: =H38 -> 1
E31: =IF(SUM(ABS(D12:G17-I12:L17))=0,"Same", "Differ") -> Same | G31: =E26 -> 0 | H31: =E31 -> Same | I31: =MATCH(MAX(I32:I34),I32:I34,0) -> 1
F32: 1 | G32: 0 | H32: Same | I32: =IF(G32=H32,0,1) -> 1
F33: 2 | G33: 0 | H33: Differ | I33: =IF(G33=H33,0,1) -> 1
F34: 3 | G34: 0 | H34: Differ | I34: =IF(G34=H34,0,1) -> 1
F35: 4 | G35: 0 | H35: Differ | I35: =IF(G35=H35,0,1) -> 1
F36: 5 | G36: 0 | H36: Same | I36: =IF(G36=H36,0,1) -> 1
D37: =IF(MAX(I32:I34)>0,"Your answer will be incorrect for data set " & CHOOSE(I31,F32,F33,F34),"Your answer is not general enough to be an acceptable solution to this problem")&"." -> Your answer will be incorrect for data set 1.
H38: =IF(ISERROR(E26),1,IF(AND(LEN(D25)=0,LEN(E26)>0),0,1)) -> 1 | I38: <overall
D39: 1 | E39: 0.50463 | F39: 0.690854 | G39: 0.130354 | H39: 0.304643
E40: 0.854082 | F40: 0.967712 | G40: 0.098941 | H40: 0.154331
E41: 0.593255 | F41: 0.97821 | G41: 0.339026 | H41: 0.524566
E42: 0.627265 | F42: 0.710125 | G42: 0.4216 | H42: 0.157712
E43: 0.835484 | F43: 0.658092 | G43: 0.409358 | H43: 0.471525
E44: 0.079 | F44: 0.00954 | G44: 0.208529 | H44: 0.781042
D46: 2 | E46: 0.50463 | F46: 0.690854 | G46: 0.130354 | H46: 0.304643
E47: 0.854082 | F47: =0.967712+0.1 -> 1.067712 | G47: 0.098941 | H47: 0.154331
E48: 0.593255 | F48: 0.97821 | G48: 0.339026 | H48: 0.524566
E49: 0.627265 | F49: 0.710125 | G49: 0.4216 | H49: 0.157712
E50: 0.835484 | F50: 0.658092 | G50: 0.409358 | H50: 0.471525
E51: 0.079 | F51: 0.00954 | G51: 0.208529 | H51: 0.781042
D53: 3 | E53: 0.50463 | F53: 0.690854 | G53: 0.130354 | H53: 0.304643
E54: =0.854082+0.1 -> 0.954082 | F54: 0.967712 | G54: 0.098941 | H54: 0.154331
E55: 0.593255 | F55: 0.97821 | G55: 0.339026 | H55: 0.524566
E56: 0.627265 | F56: 0.710125 | G56: 0.4216 | H56: 0.157712
E57: 0.835484 | F57: 0.658092 | G57: =0.409358-0.1 -> 0.309358 | H57: 0.471525
E58: 0.079 | F58: 0.00954 | G58: 0.208529 | H58: 0.781042
D60: 4 | E60: 0.50463 | F60: 0.690854 | G60: 0.130354 | H60: 0.304643
E61: =0.854082+0.1 -> 0.954082 | F61: 0.967712 | G61: 0.098941 | H61: 0.154331
E62: 0.593255 | F62: 0.97821 | G62: 0.339026 | H62: 0.524566
E63: 0.627265 | F63: 0.710125 | G63: 0.4216 | H63: 0.157712
E64: 0.835484 | F64: 0.658092 | G64: =0.409358-0.1 -> 0.309358 | H64: 0.471525
E65: 0.079 | F65: 0.00954 | G65: 0.208529 | H65: 0.781042
D67: 5 | E67: 0.50463 | F67: 0.690854 | G67: 0.130354 | H67: 0.304643
E68: 0.854082 | F68: 0.967712 | G68: 0.098941 | H68: 0.154331
E69: 0.593255 | F69: 0.97821 | G69: 0.339026 | H69: 0.524566
E70: 0.627265 | F70: 0.710125 | G70: 0.4216 | H70: 0.157712
E71: 0.835484 | F71: 0.658092 | G71: 0.409358 | H71: 0.471525
E72: 0.079 | F72: 0.00954 | G72: 0.208529 | H72: 0.781042
M73: Index
A74: =SUM($A$75:$A$106) -> 2 | C74: 2 | D74: Detecting duplicates - Try to do it in a single cell - but several is ok too
D76: ="You can select one of five data sets by choosing 1,2,3,4 or 5 in cell " & ADDRESS(ROW(E78),COLUMN(E78),4)&" below." -> You can select one of five data sets by choosing 1,2,3,4 or 5 in cell E78 below.
D78: Data set: | E78: 3 | F78: <- You can change this cell
G79: Workspace (not really needed though)
D80: =INDIRECT("data_set_dups_"&E78) -> JSD-24
D81: GHU-13
D82: JKU-12
D83: GHU-13
D84: JKJ-13
D85: JKU-12
D88: ="In cell "&ADDRESS(ROW(E92),COLUMN(E92),4)&" below put a formula to check whether the cells in the chosen data set contain any duplicates. If duplicates are found the formula should return 'Duplicate'. If no duplicates are found the formula should return 'Ok'." -> In cell E92 below put a formula to check whether the cells in the chosen data set contain any duplicates. If duplicates are found the formula should return 'Duplicate'. If no duplicates are found the formula should return 'Ok'.
D91: =IF(ISERROR(E92),"Your answer is incorrect.",IF(LEN(E92)>0,IF(E96<>E92,"Your answer is incorrect.",IF(MAX(L98:L102)>0,D105,"")),"")) -> 
A92: =IF(OR((0),ISERROR($E$92)),1,IF($E$92=$E$96,0,1)) -> 1 | D92: Duplicates?
A94: =IF(OR(NOT(ISNUMBER($D$94)),ISERROR($D$94)),1,IF(AND(LEN($D$94)>0,ABS((1-($D$94*-2.56154835224152+ 0.479077935218811)/ 0.479077935218811))<0.00005),0,1)) -> 1 | D94: =J104 -> 1
E96: =IF(MAX(COUNTIF(D80:D85,D80:D85))>1,"Duplicate","Ok") -> Duplicate
J97: =E92 -> 0 | K97: =E96 -> Duplicate | L97: =MATCH(MAX(L98:L100),L98:L100,0) -> 1
D98: BTR-87 | E98: VBH-23 | F98: JSD-24 | G98: GYU-76 | H98: JKB-52 | I98: 1 | J98: 0 | K98: Ok | L98: =IF(J98=K98,0,1) -> 1
D99: CBG-67 | E99: JKL-13 | F99: GHU-13 | G99: ERT-12 | H99: HJI-13 | I99: =I98+1 -> 2 | J99: 0 | K99: Duplicate | L99: =IF(J99=K99,0,1) -> 1
D100: TRY-56 | E100: BTR-87 | F100: JKU-12 | G100: YHT-15 | H100: YNH-25 | I100: =I99+1 -> 3 | J100: 0 | K100: Duplicate | L100: =IF(J100=K100,0,1) -> 1
D101: BTR-88 | E101: DFK-12 | F101: GHU-13 | G101: TGV-82 | H101: JKB-52 | I101: =I100+1 -> 4 | J101: 0 | K101: Ok | L101: =IF(J101=K101,0,1) -> 1
D102: AMH-34 | E102: VBH-23 | F102: JKJ-13 | G102: KOL-29 | H102: UJT-36 | I102: =I101+1 -> 5 | J102: 0 | K102: Duplicate | L102: =IF(J102=K102,0,1) -> 1
D103: FGH-99 | E103: ASD-12 | F103: JKU-12 | G103: NHK-83 | H103: JKB-52
J104: =IF(ISERROR(E92),1,IF(AND(LEN(D91)=0,LEN(E92)>0),0,1)) -> 1 | K104: <overall
D105: =IF(MAX(L98:L100)>0,"Your answer will be incorrect for data set " & CHOOSE(L97,I98,I99,I100,I101,I102),"Your answer is not general enough to be an acceptable solution to this problem")&"." -> Your answer will be incorrect for data set 1.
M106: Index
A107: =SUM($A$108:$A$132) -> 2 | C107: =C74+1 -> 3 | D107: Mean / average - Can use SUM, SUMPRODUCT, PRODUCT to solve this.
D109: ="An investment's yearly growth is monitored and recorded. The table below in cells "& ADDRESS(ROW($E$115),COLUMN($E$115),4) & ":" & ADDRESS(ROW($F$126), COLUMN($F$126), 4)&" shows how often various yearly growths occurred. Calculate the average / arithmetic yearly growth. Also calculate the compound average growth rate (CAGR) [i.e. the geometric average rate]." -> An investment's yearly growth is monitored and recorded. The table below in cells E115:F126 shows how often various yearly growths occurred. Calculate the average / arithmetic yearly growth. Also calculate the compound average growth rate (CAGR) [i.e. the geometric average rate].
E114: Yearly growth | F114: Frequency | H114: Working
E115: -0.05 | F115: 1
E116: =E115+1% -> -0.04 | F116: 4
E117: -0.03 | F117: 0
E118: -0.02 | F118: 2
E119: -0.01 | F119: 3
E120: 0 | F120: 1
E121: 0.01 | F121: 4
E122: 0.02 | F122: 5
E123: 0.03 | F123: 3
E124: 0.04 | F124: 1
E125: 0.05 | F125: 2
E126: 0.06 | F126: 1
A128: =IF(OR(NOT(ISNUMBER($F$128)),ISERROR($F$128)),1,IF(AND(LEN($F$128)>0,ABS((1-($F$128*-4.39083755016327+-0.109708547592163)/-0.134102089537515))<0.00005),0,1)) -> 1 | E128: Average yearly growth
A129: =IF(OR(NOT(ISNUMBER($F$129)),ISERROR($F$129)),1,IF(AND(LEN($F$129)>0,ABS((1-($F$129*-1.35004580020905+-0.0101052522659302)/-0.0169941579716511))<0.00005),0,1)) -> 1 | E129: CAGR
E132: Copyright (c) 2020 Tykoh Group Pty Ltd. All rights reserved. | M132: Index
E133: www.tykoh.com

Sheet Logic
I1: Click here to see what your answer should look like.
P2: Arithmetic | Q2: IF_statements_and_nesting
A3: =SUM($A$4:$F$28) -> 18 | H3: 1 | I3: Dividend policy - easy - using IF statements.
I5: The dividend payout policy of a company is this: Dividends paid are 50% of NPAT (net profit after taxes) if NPAT is positive and are zero otherwise. Calculate the dividends paid (represent them as negative numbers).
I9: Year | K9: 2010 | L9: =K9+1 -> 2011 | M9: =L9+1 -> 2012 | N9: =M9+1 -> 2013 | O9: =N9+1 -> 2014 | P9: =O9+1 -> 2015
I10: NPAT | K10: 120 | L10: 20 | M10: -20 | N10: 200 | O10: 210 | P10: 260
A11: =IF(OR(NOT(ISNUMBER($K$11)),ISERROR($K$11)),1,IF(AND(LEN($K$11)>0,ABS((1-($K$11*-3.44336926937103+-0.025540828704834)/ 206.576615333557))<0.00005),0,1)) -> 1 | B11: =IF(OR(NOT(ISNUMBER($L$11)),ISERROR($L$11)),1,IF(AND(LEN($L$11)>0,ABS((1-($L$11*-2.42732346057892+ 0.128751873970032)/ 24.4019864797592))<0.00005),0,1)) -> 1 | C11: =IF(OR(NOT(ISNUMBER($M$11)),ISERROR($M$11)),1,IF(AND(LEN($M$11)>0,ABS((1-($M$11* 0.42070209980011+-0.343697786331177)/-0.343697786331177))<0.00005),0,1)) -> 1 | D11: =IF(OR(NOT(ISNUMBER($N$11)),ISERROR($N$11)),1,IF(AND(LEN($N$11)>0,ABS((1-($N$11* 4.38545167446136+ 0.154499411582947)/-438.390668034554))<0.00005),0,1)) -> 1 | E11: =IF(OR(NOT(ISNUMBER($O$11)),ISERROR($O$11)),1,IF(AND(LEN($O$11)>0,ABS((1-($O$11* 0.0608736276626587+-0.109528541564941)/-6.5012594461441))<0.00005),0,1)) -> 1 | F11: =IF(OR(NOT(ISNUMBER($P$11)),ISERROR($P$11)),1,IF(AND(LEN($P$11)>0,ABS((1-($P$11*-3.9262467622757+ 0.283995270729065)/ 510.69607436657))<0.00005),0,1)) -> 1 | I11: (Dividend)
I13: The dividend payout policy is changed: Dividends paid are 50% of NPAT if NPAT is between 0 and 200, 55% if NPAT is greater than or equal to 200 and zero otherwise. Calculate the dividends paid.
I16: Year | K16: 2010 | L16: =K16+1 -> 2011 | M16: =L16+1 -> 2012 | N16: =M16+1 -> 2013 | O16: =N16+1 -> 2014 | P16: =O16+1 -> 2015
I17: NPAT | K17: 120 | L17: 20 | M17: -20 | N17: 200 | O17: 210 | P17: 260
A18: =IF(OR(NOT(ISNUMBER($K$18)),ISERROR($K$18)),1,IF(AND(LEN($K$18)>0,ABS((1-($K$18*-0.403591990470886+ 0.253688097000122)/ 24.4692075252533))<0.00005),0,1)) -> 1 | B18: =IF(OR(NOT(ISNUMBER($L$18)),ISERROR($L$18)),1,IF(AND(LEN($L$18)>0,ABS((1-($L$18* 0.9609454870224+ 0.332730174064636)/-9.27672469615936))<0.00005),0,1)) -> 1 | C18: =IF(OR(NOT(ISNUMBER($M$18)),ISERROR($M$18)),1,IF(AND(LEN($M$18)>0,ABS((1-($M$18*-4.81241643428802+-0.289631366729736)/-0.289631366729736))<0.00005),0,1)) -> 1 | D18: =IF(OR(NOT(ISNUMBER($N$18)),ISERROR($N$18)),1,IF(AND(LEN($N$18)>0,ABS((1-($N$18*-4.26046669483185+-0.394547343254089)/ 468.256789088249))<0.00005),0,1)) -> 1 | E18: =IF(OR(NOT(ISNUMBER($O$18)),ISERROR($O$18)),1,IF(AND(LEN($O$18)>0,ABS((1-($O$18*-1.68305575847626+-0.371750116348267)/ 194.021189987659))<0.00005),0,1)) -> 1 | F18: =IF(OR(NOT(ISNUMBER($P$18)),ISERROR($P$18)),1,IF(AND(LEN($P$18)>0,ABS((1-($P$18*-4.99758780002593+ 0.0367940664291382)/ 714.691849470139))<0.00005),0,1)) -> 1 | I18: (Dividend)
I20: The policy is changed again: If NPAT is less than zero then dividends are paid from retained earnings. In that case dividends are the lesser of: 1) 20% of retained earnings, 2) 30. Calculate the dividends paid.
I24: Year | K24: 2010 | L24: =K24+1 -> 2011 | M24: =L24+1 -> 2012 | N24: =M24+1 -> 2013 | O24: =N24+1 -> 2014 | P24: =O24+1 -> 2015
I25: NPAT | K25: 120 | L25: 20 | M25: -20 | N25: 200 | O25: -40 | P25: 260
I26: Retained earnings | K26: 80 | L26: 90 | M26: 120 | N26: 110 | O26: 160 | P26: 90
A27: =IF(OR(NOT(ISNUMBER($K$27)),ISERROR($K$27)),1,IF(AND(LEN($K$27)>0,ABS((1-($K$27* 1.57054960727692+ 0.0440139770507813)/-94.1889624595642))<0.00005),0,1)) -> 1 | B27: =IF(OR(NOT(ISNUMBER($L$27)),ISERROR($L$27)),1,IF(AND(LEN($L$27)>0,ABS((1-($L$27* 3.27411830425262+-0.418106436729431)/-33.1592894792557))<0.00005),0,1)) -> 1 | C27: =IF(OR(NOT(ISNUMBER($M$27)),ISERROR($M$27)),1,IF(AND(LEN($M$27)>0,ABS((1-($M$27*-3.080775141716+ 0.178913354873657)/ 74.1175167560577))<0.00005),0,1)) -> 1 | D27: =IF(OR(NOT(ISNUMBER($N$27)),ISERROR($N$27)),1,IF(AND(LEN($N$27)>0,ABS((1-($N$27*-0.457921624183655+-0.142976880073547)/ 50.2284017801285))<0.00005),0,1)) -> 1 | E27: =IF(OR(NOT(ISNUMBER($O$27)),ISERROR($O$27)),1,IF(AND(LEN($O$27)>0,ABS((1-($O$27*-3.50018918514252+ 0.204395771026611)/ 105.210071325302))<0.00005),0,1)) -> 1 | F27: =IF(OR(NOT(ISNUMBER($P$27)),ISERROR($P$27)),1,IF(AND(LEN($P$27)>0,ABS((1-($P$27* 4.28785979747772+ 0.0302125215530396)/-613.133738517761))<0.00005),0,1)) -> 1 | I27: (Dividend)
R28: Index
A29: =SUM($A$30:$F$59) -> 2 | H29: =H3+1 -> 2 | I29: Thresholds - Need to use 'nested' IF statements - bit more complicated
I31: ="An amount (in cell "& ADDRESS(ROW($K$36),COLUMN($K$36),4) & ") is to be compared against two thresholds - an upper and lower one. The thresholds are defined in cells "& ADDRESS(ROW($K$34),COLUMN($K$34),4) & " and " & ADDRESS(ROW($K$35),COLUMN($K$35),4) &"." -> An amount (in cell K36) is to be compared against two thresholds - an upper and lower one. The thresholds are defined in cells K34 and K35.
I34: Upper threshold: | K34: 37
I35: Lower threshold: | K35: 35
I36: Amount: | K36: 38 | L36: <- You can change this cell
I38: - If the amount is above the upper threshold then the comparison should return above
I39: - If the amount is below the lower theshold it should return below
I40: - If the amount is between (but not including) the thresholds it should return show within
I41: - If the amount is equal to the lower threshold it should return at lower
I42: - And if the amount is equal to the upper threshold it should return at upper
I43: =IF(ISERROR(K44),"Your answer is incorrect.",IF(LEN(K44)>0,IF(K44<>K45,"Your answer is incorrect.",IF(MAX(M50:M54)>0,I56,"")),"")) -> 
A44: =IF(OR((0),ISERROR($K$44)),1,IF($K$44=$K$45,0,1)) -> 1 | I44: Comparison result:
K45: =IF(K36>K34,"above",IF(K36<K35,"below",IF(K36=K35,"at lower", IF(K36=K34,"at upper","within")))) -> above
A47: =IF(OR(NOT(ISNUMBER($I$47)),ISERROR($I$47)),1,IF(AND(LEN($I$47)>0,ABS((1-($I$47*-4.10358607769012+ 0.257729291915894)/ 0.257729291915894))<0.00005),0,1)) -> 1 | I47: =O55 -> 1
J49: =K44 -> 0 | K49: =K45 -> above | M49: =MATCH(MAX(M50:M54),M50:M54,0) -> 1
I50: 34 | J50: 0 | K50: below | M50: =IF(J50=K50,0,1) -> 1
I51: =I50+1 -> 35 | J51: 0 | K51: at lower | M51: =IF(J51=K51,0,1) -> 1
I52: =I51+1 -> 36 | J52: 0 | K52: within | M52: =IF(J52=K52,0,1) -> 1
I53: =I52+1 -> 37 | J53: 0 | K53: at upper | M53: =IF(J53=K53,0,1) -> 1
I54: =I53+1 -> 38 | J54: 0 | K54: above | M54: =IF(J54=K54,0,1) -> 1
O55: =IF(ISERROR(K44),1,IF(AND(LEN(I43)=0,LEN(K44)>0),0,1)) -> 1 | P55: <overall
I56: ="Your answer will be incorrect if the amount (in cell "& ADDRESS(ROW($K$36),COLUMN($K$36),4)&") is " & I50+M49-1&"." -> Your answer will be incorrect if the amount (in cell K36) is 34.
J59: Copyright (c) 2020 Tykoh Group Pty Ltd. All rights reserved. | R59: Index
J60: www.tykoh.com

Sheet Waterfall
I1: Click here to see what your answer should look like.
R2: Arithmetic | S2: Further_IF_statements_and_logic
A3: =SUM($A$4:$F$93) -> 166 | H3: 1 | I3: A fairly wordy problem. Need to 'translate' from English to Excel statements - IF, etc.
I5: A business needs to model and manage its cash and line-of-credit positions. The business's cash management policy is as follows. If the business runs low on cash then it draws on lines of credit. If the business generates cash and has no outstanding lines of credit then cash is deposited into one of three accounts.
I9: The first deposit account is an at-call / cash account. If, however, the balance of that account rises to $300,000 then any residual cash is deposited into callable-deposit-account #1. If the balance of callable-deposit-account #1 rises to $500,000 then any residual cash is deposited into callable-deposit-account #2.
I13: If more cash is required than is available in deposit accounts one or more line-of-credit facilities is drawn upon. There are three lines of credit. Line-of-credit #1 has a limit of $600,000; Line-of-credit #2 has a limit of $700,000 and Line-of-credit #3 provides any remaining required funds.
I17: Line-of-credit #1 is drawn upon first. If more cash is required than is available from Line-of-credit #1 then Line-of-credit #2 is used. If more cash is required than is available from Line-of-credit #2 then Line-of-credit #3 is drawn on.
I20: Cash required by the business is obtained from the sources below in this order: | O20: Cash generated by the business is applied in the following order:
I22: Withdrawal from callable-deposit-account #2 | O22: Pay down any balance on line-of-credit #3
I23: Withdrawal from callable-deposit-account #1 | O23: Pay down any balance on line-of-credit #2
I24: Withdrawal from the cash account | O24: Pay down any balance on line-of-credit #1
I25: Draw on line-of-credit #1 | O25: Deposit into the cash account
I26: Draw on line-of-credit #2 | O26: Deposit into callable-deposit-account #1
I27: Draw on line-of-credit #3 | O27: Deposit into callable-deposit-account #2
I29: Determine the account balances for each period. All accounts initially have a zero balance.
A31: =IF(OR(NOT(ISNUMBER($M$31)),ISERROR($M$31)),1,IF(AND(LEN($M$31)>0,ABS((1-($M$31*-0.981579422950745+-0.0381256341934204)/-294.511952519417))<0.00005),0,1)) -> 1 | I31: Max in cash account | L31: [$'000]
A32: =IF(OR(NOT(ISNUMBER($M$32)),ISERROR($M$32)),1,IF(AND(LEN($M$32)>0,ABS((1-($M$32*-0.0783437490463257+-0.292372703552246)/-39.4642472267151))<0.00005),0,1)) -> 1 | I32: Max in callable-deposit-account #1 | L32: [$'000]
A33: =IF(OR(NOT(ISNUMBER($M$33)),ISERROR($M$33)),1,IF(AND(LEN($M$33)>0,ABS((1-($M$33*-1.70264065265656+-0.404570937156677)/-1021.98896253109))<0.00005),0,1)) -> 1 | I33: Max line-of-credit #1 balance | L33: [$'000]
A34: =IF(OR(NOT(ISNUMBER($M$34)),ISERROR($M$34)),1,IF(AND(LEN($M$34)>0,ABS((1-($M$34* 0.897925496101379+-0.330126523971558)/ 628.217720746994))<0.00005),0,1)) -> 1 | I34: Max line-of-credit #2 balance | L34: [$'000]
I36: Balance of accounts
I38: Period | L38: [#] | M38: 0 | N38: =M38+1 -> 1 | O38: 2 | P38: 3 | Q38: 4 | R38: 5 | S38: 6
I39: Cash deposited/(withdrawn) | L39: [$'000] | N39: 900 | O39: -650 | P39: -1800 | Q39: 2000 | R39: -2750 | S39: 1200
A40: =IF(OR(NOT(ISNUMBER($N$40)),ISERROR($N$40)),1,IF(AND(LEN($N$40)>0,ABS((1-($N$40* 4.27616536617279+-0.402070164680481)/ 3848.14675939083))<0.00005),0,1)) -> 1 | B40: =IF(OR(NOT(ISNUMBER($O$40)),ISERROR($O$40)),1,IF(AND(LEN($O$40)>0,ABS((1-($O$40*-0.561375021934509+-0.227053165435791)/-140.570808649063))<0.00005),0,1)) -> 1 | C40: =IF(OR(NOT(ISNUMBER($P$40)),ISERROR($P$40)),1,IF(AND(LEN($P$40)>0,ABS((1-($P$40* 3.72546851634979+ 0.250687718391418)/-5774.22551262379))<0.00005),0,1)) -> 1 | D40: =IF(OR(NOT(ISNUMBER($Q$40)),ISERROR($Q$40)),1,IF(AND(LEN($Q$40)>0,ABS((1-($Q$40*-2.27057635784149+ 0.173646688461304)/-1021.5857143402))<0.00005),0,1)) -> 1 | E40: =IF(OR(NOT(ISNUMBER($R$40)),ISERROR($R$40)),1,IF(AND(LEN($R$40)>0,ABS((1-($R$40*-2.43371069431305+-0.410103440284729)/ 5597.12449347973))<0.00005),0,1)) -> 1 | F40: =IF(OR(NOT(ISNUMBER($S$40)),ISERROR($S$40)),1,IF(AND(LEN($S$40)>0,ABS((1-($S$40*-4.69049394130707+-0.177282333374023)/ 5159.3660531044))<0.00005),0,1)) -> 1 | I40: Cumulative cash | L40: [$'000]
I42: Balance of cash accounts [positive numbers]
A43: =IF(OR(NOT(ISNUMBER($N$43)),ISERROR($N$43)),1,IF(AND(LEN($N$43)>0,ABS((1-($N$43* 2.90128886699677+-0.202741980552673)/ 870.183918118477))<0.00005),0,1)) -> 1 | B43: =IF(OR(NOT(ISNUMBER($O$43)),ISERROR($O$43)),1,IF(AND(LEN($O$43)>0,ABS((1-($O$43*-2.64717757701874+-0.0195252895355225)/-661.813919544219))<0.00005),0,1)) -> 1 | C43: =IF(OR(NOT(ISNUMBER($P$43)),ISERROR($P$43)),1,IF(AND(LEN($P$43)>0,ABS((1-($P$43*-2.45398104190826+-0.159393429756165)/-0.159393429756165))<0.00005),0,1)) -> 1 | D43: =IF(OR(NOT(ISNUMBER($Q$43)),ISERROR($Q$43)),1,IF(AND(LEN($Q$43)>0,ABS((1-($Q$43*-4.550661444664+-0.0175719261169434)/-1365.21600532532))<0.00005),0,1)) -> 1 | E43: =IF(OR(NOT(ISNUMBER($R$43)),ISERROR($R$43)),1,IF(AND(LEN($R$43)>0,ABS((1-($R$43*-2.93982803821564+ 0.364534497261047)/ 0.364534497261047))<0.00005),0,1)) -> 1 | F43: =IF(OR(NOT(ISNUMBER($S$43)),ISERROR($S$43)),1,IF(AND(LEN($S$43)>0,ABS((1-($S$43* 0.886285901069641+ 0.254908323287964)/ 0.254908323287964))<0.00005),0,1)) -> 1 | I43: Cash account | L43: [$'000]
A44: =IF(OR(NOT(ISNUMBER($N$44)),ISERROR($N$44)),1,IF(AND(LEN($N$44)>0,ABS((1-($N$44* 4.27883088588715+-0.168983101844788)/ 2139.24645984173))<0.00005),0,1)) -> 1 | B44: =IF(OR(NOT(ISNUMBER($O$44)),ISERROR($O$44)),1,IF(AND(LEN($O$44)>0,ABS((1-($O$44* 0.42941153049469+-0.419308662414551)/-0.419308662414551))<0.00005),0,1)) -> 1 | C44: =IF(OR(NOT(ISNUMBER($P$44)),ISERROR($P$44)),1,IF(AND(LEN($P$44)>0,ABS((1-($P$44* 1.34371936321259+-0.0899633169174194)/-0.0899633169174194))<0.00005),0,1)) -> 1 | D44: =IF(OR(NOT(ISNUMBER($Q$44)),ISERROR($Q$44)),1,IF(AND(LEN($Q$44)>0,ABS((1-($Q$44* 4.60422813892365+-0.385376691818237)/ 690.248844146729))<0.00005),0,1)) -> 1 | E44: =IF(OR(NOT(ISNUMBER($R$44)),ISERROR($R$44)),1,IF(AND(LEN($R$44)>0,ABS((1-($R$44* 4.23445165157318+ 0.120209574699402)/ 0.120209574699402))<0.00005),0,1)) -> 1 | F44: =IF(OR(NOT(ISNUMBER($S$44)),ISERROR($S$44)),1,IF(AND(LEN($S$44)>0,ABS((1-($S$44*-1.52273595333099+-0.350754261016846)/-0.350754261016846))<0.00005),0,1)) -> 1 | I44: Callable-deposit-account #1 | L44: [$'000]
A45: =IF(OR(NOT(ISNUMBER($N$45)),ISERROR($N$45)),1,IF(AND(LEN($N$45)>0,ABS((1-($N$45*-0.200217366218567+-0.280590891838074)/-20.3023275136948))<0.00005),0,1)) -> 1 | B45: =IF(OR(NOT(ISNUMBER($O$45)),ISERROR($O$45)),1,IF(AND(LEN($O$45)>0,ABS((1-($O$45* 4.93731319904327+-0.369579553604126)/-0.369579553604126))<0.00005),0,1)) -> 1 | C45: =IF(OR(NOT(ISNUMBER($P$45)),ISERROR($P$45)),1,IF(AND(LEN($P$45)>0,ABS((1-($P$45*-4.71114218235016+-0.154608368873596)/-0.154608368873596))<0.00005),0,1)) -> 1 | D45: =IF(OR(NOT(ISNUMBER($Q$45)),ISERROR($Q$45)),1,IF(AND(LEN($Q$45)>0,ABS((1-($Q$45* 0.476685166358948+ 0.422954559326172)/ 0.422954559326172))<0.00005),0,1)) -> 1 | E45: =IF(OR(NOT(ISNUMBER($R$45)),ISERROR($R$45)),1,IF(AND(LEN($R$45)>0,ABS((1-($R$45* 0.382463335990906+-0.0935786962509155)/-0.0935786962509155))<0.00005),0,1)) -> 1 | F45: =IF(OR(NOT(ISNUMBER($S$45)),ISERROR($S$45)),1,IF(AND(LEN($S$45)>0,ABS((1-($S$45* 3.47245514392853+ 0.326225519180298)/ 0.326225519180298))<0.00005),0,1)) -> 1 | I45: Callable-deposit-account #2 | L45: [$'000]
I47: Balance of line-of-credit accounts [negative numbers]
A48: =IF(OR(NOT(ISNUMBER($N$48)),ISERROR($N$48)),1,IF(AND(LEN($N$48)>0,ABS((1-($N$48* 1.72427594661713+ 0.221895098686218)/ 0.221895098686218))<0.00005),0,1)) -> 1 | B48: =IF(OR(NOT(ISNUMBER($O$48)),ISERROR($O$48)),1,IF(AND(LEN($O$48)>0,ABS((1-($O$48* 4.96771395206451+-0.160193920135498)/-0.160193920135498))<0.00005),0,1)) -> 1 | C48: =IF(OR(NOT(ISNUMBER($P$48)),ISERROR($P$48)),1,IF(AND(LEN($P$48)>0,ABS((1-($P$48*-0.0478869676589966+-0.0870321989059448)/ 28.645148396492))<0.00005),0,1)) -> 1 | D48: =IF(OR(NOT(ISNUMBER($Q$48)),ISERROR($Q$48)),1,IF(AND(LEN($Q$48)>0,ABS((1-($Q$48* 1.95281803607941+-0.320910692214966)/-0.320910692214966))<0.00005),0,1)) -> 1 | E48: =IF(OR(NOT(ISNUMBER($R$48)),ISERROR($R$48)),1,IF(AND(LEN($R$48)>0,ABS((1-($R$48*-0.770817399024963+ 0.0431770086288452)/ 462.533616423607))<0.00005),0,1)) -> 1 | F48: =IF(OR(NOT(ISNUMBER($S$48)),ISERROR($S$48)),1,IF(AND(LEN($S$48)>0,ABS((1-($S$48* 3.14663946628571+ 0.0409135818481445)/-1887.94276618958))<0.00005),0,1)) -> 1 | I48: Line-of-credit #1 | L48: [$'000]
A49: =IF(OR(NOT(ISNUMBER($N$49)),ISERROR($N$49)),1,IF(AND(LEN($N$49)>0,ABS((1-($N$49*-0.724666714668274+ 0.00906813144683838)/ 0.00906813144683838))<0.00005),0,1)) -> 1 | B49: =IF(OR(NOT(ISNUMBER($O$49)),ISERROR($O$49)),1,IF(AND(LEN($O$49)>0,ABS((1-($O$49*-2.72218406200409+ 0.119187593460083)/ 0.119187593460083))<0.00005),0,1)) -> 1 | C49: =IF(OR(NOT(ISNUMBER($P$49)),ISERROR($P$49)),1,IF(AND(LEN($P$49)>0,ABS((1-($P$49*-0.101695656776428+ 0.180819392204285)/ 71.367779135704))<0.00005),0,1)) -> 1 | D49: =IF(OR(NOT(ISNUMBER($Q$49)),ISERROR($Q$49)),1,IF(AND(LEN($Q$49)>0,ABS((1-($Q$49* 3.86600077152252+-0.1294846534729)/-0.1294846534729))<0.00005),0,1)) -> 1 | E49: =IF(OR(NOT(ISNUMBER($R$49)),ISERROR($R$49)),1,IF(AND(LEN($R$49)>0,ABS((1-($R$49*-1.97502434253693+-0.207133173942566)/ 1382.30990660191))<0.00005),0,1)) -> 1 | F49: =IF(OR(NOT(ISNUMBER($S$49)),ISERROR($S$49)),1,IF(AND(LEN($S$49)>0,ABS((1-($S$49*-3.49688708782196+ 0.0298211574554443)/ 1748.47336506844))<0.00005),0,1)) -> 1 | I49: Line-of-credit #2 | L49: [$'000]
A50: =IF(OR(NOT(ISNUMBER($N$50)),ISERROR($N$50)),1,IF(AND(LEN($N$50)>0,ABS((1-($N$50*-2.76738226413727+ 0.0845292806625366)/ 0.0845292806625366))<0.00005),0,1)) -> 1 | B50: =IF(OR(NOT(ISNUMBER($O$50)),ISERROR($O$50)),1,IF(AND(LEN($O$50)>0,ABS((1-($O$50*-1.36541306972504+ 0.375974655151367)/ 0.375974655151367))<0.00005),0,1)) -> 1 | C50: =IF(OR(NOT(ISNUMBER($P$50)),ISERROR($P$50)),1,IF(AND(LEN($P$50)>0,ABS((1-($P$50*-0.219858288764954+-0.309366583824158)/ 54.6552056074142))<0.00005),0,1)) -> 1 | D50: =IF(OR(NOT(ISNUMBER($Q$50)),ISERROR($Q$50)),1,IF(AND(LEN($Q$50)>0,ABS((1-($Q$50* 1.84062302112579+ 0.247415781021118)/ 0.247415781021118))<0.00005),0,1)) -> 1 | E50: =IF(OR(NOT(ISNUMBER($R$50)),ISERROR($R$50)),1,IF(AND(LEN($R$50)>0,ABS((1-($R$50* 1.13934934139252+ 0.282138705253601)/-1139.06720268726))<0.00005),0,1)) -> 1 | F50: =IF(OR(NOT(ISNUMBER($S$50)),ISERROR($S$50)),1,IF(AND(LEN($S$50)>0,ABS((1-($S$50*-3.38256299495697+ 0.307779788970947)/ 0.307779788970947))<0.00005),0,1)) -> 1 | I50: Line-of-credit #3 | L50: [$'000]
I52: Determine the change in account balance in each period (i.e. change = this period's balance less last periods]
I54: Net transactions
I56: Period | L56: [#] | M56: 0 | N56: =M56+1 -> 1 | O56: 2 | P56: 3 | Q56: 4 | R56: 5 | S56: 6
I57: Cash generated/(needed) | L57: [$'000] | N57: =N39 -> 900 | O57: -650 | P57: -1800 | Q57: 2000 | R57: -2750 | S57: 1200
I59: Cash accounts
A60: =IF(OR(NOT(ISNUMBER($N$60)),ISERROR($N$60)),1,IF(AND(LEN($N$60)>0,ABS((1-($N$60*-2.97381699085236+ 0.456762433052063)/-891.688334822655))<0.00005),0,1)) -> 1 | B60: =IF(OR(NOT(ISNUMBER($O$60)),ISERROR($O$60)),1,IF(AND(LEN($O$60)>0,ABS((1-($O$60*-4.34148967266083+-0.438477754592896)/ 216.636005878448))<0.00005),0,1)) -> 1 | C60: =IF(OR(NOT(ISNUMBER($P$60)),ISERROR($P$60)),1,IF(AND(LEN($P$60)>0,ABS((1-($P$60* 2.93197572231293+-0.120395302772522)/-733.114325881004))<0.00005),0,1)) -> 1 | D60: =IF(OR(NOT(ISNUMBER($Q$60)),ISERROR($Q$60)),1,IF(AND(LEN($Q$60)>0,ABS((1-($Q$60*-0.364159941673279+-0.38045597076416)/-109.628438472748))<0.00005),0,1)) -> 1 | E60: =IF(OR(NOT(ISNUMBER($R$60)),ISERROR($R$60)),1,IF(AND(LEN($R$60)>0,ABS((1-($R$60*-3.84529888629913+-0.326226592063904)/ 1153.26343929768))<0.00005),0,1)) -> 1 | F60: =IF(OR(NOT(ISNUMBER($S$60)),ISERROR($S$60)),1,IF(AND(LEN($S$60)>0,ABS((1-($S$60*-4.51881110668182+ 0.214816331863403)/ 0.214816331863403))<0.00005),0,1)) -> 1 | I60: Cash account | L60: [$'000]
A61: =IF(OR(NOT(ISNUMBER($N$61)),ISERROR($N$61)),1,IF(AND(LEN($N$61)>0,ABS((1-($N$61* 0.330223441123962+ 0.0610092878341675)/ 165.172729849815))<0.00005),0,1)) -> 1 | B61: =IF(OR(NOT(ISNUMBER($O$61)),ISERROR($O$61)),1,IF(AND(LEN($O$61)>0,ABS((1-($O$61*-2.83266484737396+-0.0319943428039551)/ 1416.30042934418))<0.00005),0,1)) -> 1 | C61: =IF(OR(NOT(ISNUMBER($P$61)),ISERROR($P$61)),1,IF(AND(LEN($P$61)>0,ABS((1-($P$61* 2.46354758739471+ 0.252310872077942)/ 0.252310872077942))<0.00005),0,1)) -> 1 | D61: =IF(OR(NOT(ISNUMBER($Q$61)),ISERROR($Q$61)),1,IF(AND(LEN($Q$61)>0,ABS((1-($Q$61*-1.01067721843719+ 0.403098821640015)/-151.198483943939))<0.00005),0,1)) -> 1 | E61: =IF(OR(NOT(ISNUMBER($R$61)),ISERROR($R$61)),1,IF(AND(LEN($R$61)>0,ABS((1-($R$61* 2.46006906032562+-0.411440491676331)/-369.42179954052))<0.00005),0,1)) -> 1 | F61: =IF(OR(NOT(ISNUMBER($S$61)),ISERROR($S$61)),1,IF(AND(LEN($S$61)>0,ABS((1-($S$61* 1.34571135044098+ 0.213027954101563)/ 0.213027954101563))<0.00005),0,1)) -> 1 | I61: Callable-deposit-account #1 | L61: [$'000]
A62: =IF(OR(NOT(ISNUMBER($N$62)),ISERROR($N$62)),1,IF(AND(LEN($N$62)>0,ABS((1-($N$62*-4.84317600727081+-0.0688556432723999)/-484.386456370354))<0.00005),0,1)) -> 1 | B62: =IF(OR(NOT(ISNUMBER($O$62)),ISERROR($O$62)),1,IF(AND(LEN($O$62)>0,ABS((1-($O$62*-0.980173945426941+-0.224704504013062)/ 97.792690038681))<0.00005),0,1)) -> 1 | C62: =IF(OR(NOT(ISNUMBER($P$62)),ISERROR($P$62)),1,IF(AND(LEN($P$62)>0,ABS((1-($P$62* 4.85373914241791+ 0.302587389945984)/ 0.302587389945984))<0.00005),0,1)) -> 1 | D62: =IF(OR(NOT(ISNUMBER($Q$62)),ISERROR($Q$62)),1,IF(AND(LEN($Q$62)>0,ABS((1-($Q$62* 1.96100771427155+-0.0824007987976074)/-0.0824007987976074))<0.00005),0,1)) -> 1 | E62: =IF(OR(NOT(ISNUMBER($R$62)),ISERROR($R$62)),1,IF(AND(LEN($R$62)>0,ABS((1-($R$62* 2.34488189220428+-0.222831606864929)/-0.222831606864929))<0.00005),0,1)) -> 1 | F62: =IF(OR(NOT(ISNUMBER($S$62)),ISERROR($S$62)),1,IF(AND(LEN($S$62)>0,ABS((1-($S$62*-1.43413722515106+-0.0665428638458252)/-0.0665428638458252))<0.00005),0,1)) -> 1 | I62: Callable-deposit-account #2 | L62: [$'000]
I64: Lines-of-credit
A65: =IF(OR(NOT(ISNUMBER($N$65)),ISERROR($N$65)),1,IF(AND(LEN($N$65)>0,ABS((1-($N$65* 4.44971024990082+-0.378450036048889)/-0.378450036048889))<0.00005),0,1)) -> 1 | B65: =IF(OR(NOT(ISNUMBER($O$65)),ISERROR($O$65)),1,IF(AND(LEN($O$65)>0,ABS((1-($O$65* 1.45951330661774+-0.152167320251465)/-0.152167320251465))<0.00005),0,1)) -> 1 | C65: =IF(OR(NOT(ISNUMBER($P$65)),ISERROR($P$65)),1,IF(AND(LEN($P$65)>0,ABS((1-($P$65*-3.95567715167999+-0.314597487449646)/ 2373.09169352055))<0.00005),0,1)) -> 1 | D65: =IF(OR(NOT(ISNUMBER($Q$65)),ISERROR($Q$65)),1,IF(AND(LEN($Q$65)>0,ABS((1-($Q$65*-4.22315299510956+-0.0672404766082764)/-2533.95903754234))<0.00005),0,1)) -> 1 | E65: =IF(OR(NOT(ISNUMBER($R$65)),ISERROR($R$65)),1,IF(AND(LEN($R$65)>0,ABS((1-($R$65* 4.59270894527435+ 0.0420292615890503)/-2755.58333790302))<0.00005),0,1)) -> 1 | F65: =IF(OR(NOT(ISNUMBER($S$65)),ISERROR($S$65)),1,IF(AND(LEN($S$65)>0,ABS((1-($S$65*-0.0562328100204468+ 0.47296667098999)/ 0.47296667098999))<0.00005),0,1)) -> 1 | I65: Line-of-credit #1 | L65: [$'000]
A66: =IF(OR(NOT(ISNUMBER($N$66)),ISERROR($N$66)),1,IF(AND(LEN($N$66)>0,ABS((1-($N$66*-2.82200157642365+-0.12100875377655)/-0.12100875377655))<0.00005),0,1)) -> 1 | B66: =IF(OR(NOT(ISNUMBER($O$66)),ISERROR($O$66)),1,IF(AND(LEN($O$66)>0,ABS((1-($O$66*-1.04155719280243+-0.218496561050415)/-0.218496561050415))<0.00005),0,1)) -> 1 | C66: =IF(OR(NOT(ISNUMBER($P$66)),ISERROR($P$66)),1,IF(AND(LEN($P$66)>0,ABS((1-($P$66* 0.0337117910385132+-0.361267685890198)/-23.9595214128494))<0.00005),0,1)) -> 1 | D66: =IF(OR(NOT(ISNUMBER($Q$66)),ISERROR($Q$66)),1,IF(AND(LEN($Q$66)>0,ABS((1-($Q$66* 0.172558426856995+ 0.465364456176758)/ 121.256263256072))<0.00005),0,1)) -> 1 | E66: =IF(OR(NOT(ISNUMBER($R$66)),ISERROR($R$66)),1,IF(AND(LEN($R$66)>0,ABS((1-($R$66* 0.575010180473328+ 0.409204125404358)/-402.097922205924))<0.00005),0,1)) -> 1 | F66: =IF(OR(NOT(ISNUMBER($S$66)),ISERROR($S$66)),1,IF(AND(LEN($S$66)>0,ABS((1-($S$66* 1.57256424427032+-0.0588853359222412)/ 314.453963518143))<0.00005),0,1)) -> 1 | I66: Line-of-credit #2 | L66: [$'000]
A67: =IF(OR(NOT(ISNUMBER($N$67)),ISERROR($N$67)),1,IF(AND(LEN($N$67)>0,ABS((1-($N$67* 1.9299453496933+-0.435508847236633)/-0.435508847236633))<0.00005),0,1)) -> 1 | B67: =IF(OR(NOT(ISNUMBER($O$67)),ISERROR($O$67)),1,IF(AND(LEN($O$67)>0,ABS((1-($O$67* 2.56092607975006+ 0.200514316558838)/ 0.200514316558838))<0.00005),0,1)) -> 1 | C67: =IF(OR(NOT(ISNUMBER($P$67)),ISERROR($P$67)),1,IF(AND(LEN($P$67)>0,ABS((1-($P$67*-0.0292903184890747+-0.344564318656921)/ 6.97801530361176))<0.00005),0,1)) -> 1 | D67: =IF(OR(NOT(ISNUMBER($Q$67)),ISERROR($Q$67)),1,IF(AND(LEN($Q$67)>0,ABS((1-($Q$67*-2.7626246213913+-0.173856019973755)/-690.830011367798))<0.00005),0,1)) -> 1 | E67: =IF(OR(NOT(ISNUMBER($R$67)),ISERROR($R$67)),1,IF(AND(LEN($R$67)>0,ABS((1-($R$67* 2.84488618373871+-0.449737191200256)/-2845.33592092991))<0.00005),0,1)) -> 1 | F67: =IF(OR(NOT(ISNUMBER($S$67)),ISERROR($S$67)),1,IF(AND(LEN($S$67)>0,ABS((1-($S$67* 0.180159211158752+ 0.25702953338623)/ 180.416240692139))<0.00005),0,1)) -> 1 | I67: Line-of-credit #3 | L67: [$'000]
I69: Determine the sources and uses of funds for each period. All numbers should be positive.
I71: Sources and Uses of funds
I73: Period | L73: [#] | M73: 0 | N73: =M73+1 -> 1 | O73: 2 | P73: 3 | Q73: 4 | R73: 5 | S73: 6
I74: Sources
A75: =IF(OR(NOT(ISNUMBER($N$75)),ISERROR($N$75)),1,IF(AND(LEN($N$75)>0,ABS((1-($N$75* 3.00669848918915+-0.174794554710388)/ 2705.85384571552))<0.00005),0,1)) -> 1 | B75: =IF(OR(NOT(ISNUMBER($O$75)),ISERROR($O$75)),1,IF(AND(LEN($O$75)>0,ABS((1-($O$75* 4.72729027271271+ 0.304267168045044)/ 0.304267168045044))<0.00005),0,1)) -> 1 | C75: =IF(OR(NOT(ISNUMBER($P$75)),ISERROR($P$75)),1,IF(AND(LEN($P$75)>0,ABS((1-($P$75* 1.74826085567474+ 0.405129313468933)/ 0.405129313468933))<0.00005),0,1)) -> 1 | D75: =IF(OR(NOT(ISNUMBER($Q$75)),ISERROR($Q$75)),1,IF(AND(LEN($Q$75)>0,ABS((1-($Q$75* 3.75779688358307+-0.0833516120910645)/ 7515.51041555405))<0.00005),0,1)) -> 1 | E75: =IF(OR(NOT(ISNUMBER($R$75)),ISERROR($R$75)),1,IF(AND(LEN($R$75)>0,ABS((1-($R$75*-3.769171833992+ 0.454157948493958)/ 0.454157948493958))<0.00005),0,1)) -> 1 | F75: =IF(OR(NOT(ISNUMBER($S$75)),ISERROR($S$75)),1,IF(AND(LEN($S$75)>0,ABS((1-($S$75* 2.97297298908234+ 0.196285009384155)/ 3567.76387190819))<0.00005),0,1)) -> 1 | I75: Positive cash flow | L75: [$'000]
A76: =IF(OR(NOT(ISNUMBER($N$76)),ISERROR($N$76)),1,IF(AND(LEN($N$76)>0,ABS((1-($N$76*-0.983954071998596+-0.483702301979065)/-0.483702301979065))<0.00005),0,1)) -> 1 | B76: =IF(OR(NOT(ISNUMBER($O$76)),ISERROR($O$76)),1,IF(AND(LEN($O$76)>0,ABS((1-($O$76*-3.32237184047699+-0.335765838623047)/-166.454357862473))<0.00005),0,1)) -> 1 | C76: =IF(OR(NOT(ISNUMBER($P$76)),ISERROR($P$76)),1,IF(AND(LEN($P$76)>0,ABS((1-($P$76* 0.0972002744674683+-0.0939372777938843)/ 24.2061313390732))<0.00005),0,1)) -> 1 | D76: =IF(OR(NOT(ISNUMBER($Q$76)),ISERROR($Q$76)),1,IF(AND(LEN($Q$76)>0,ABS((1-($Q$76*-3.93866240978241+-0.223876714706421)/-0.223876714706421))<0.00005),0,1)) -> 1 | E76: =IF(OR(NOT(ISNUMBER($R$76)),ISERROR($R$76)),1,IF(AND(LEN($R$76)>0,ABS((1-($R$76* 1.43046796321869+ 0.34909999370575)/ 429.489488959312))<0.00005),0,1)) -> 1 | F76: =IF(OR(NOT(ISNUMBER($S$76)),ISERROR($S$76)),1,IF(AND(LEN($S$76)>0,ABS((1-($S$76*-0.0203078985214233+-0.312224864959717)/-0.312224864959717))<0.00005),0,1)) -> 1 | I76: Withdrawal from cash account | L76: [$'000]
A77: =IF(OR(NOT(ISNUMBER($N$77)),ISERROR($N$77)),1,IF(AND(LEN($N$77)>0,ABS((1-($N$77* 3.96616637706757+-0.127185702323914)/-0.127185702323914))<0.00005),0,1)) -> 1 | B77: =IF(OR(NOT(ISNUMBER($O$77)),ISERROR($O$77)),1,IF(AND(LEN($O$77)>0,ABS((1-($O$77*-1.76445186138153+ 0.270832777023315)/-881.955097913742))<0.00005),0,1)) -> 1 | C77: =IF(OR(NOT(ISNUMBER($P$77)),ISERROR($P$77)),1,IF(AND(LEN($P$77)>0,ABS((1-($P$77*-2.8199964761734+-0.0530067682266235)/-0.0530067682266235))<0.00005),0,1)) -> 1 | D77: =IF(OR(NOT(ISNUMBER($Q$77)),ISERROR($Q$77)),1,IF(AND(LEN($Q$77)>0,ABS((1-($Q$77*-2.63972222805023+ 0.378384590148926)/ 0.378384590148926))<0.00005),0,1)) -> 1 | E77: =IF(OR(NOT(ISNUMBER($R$77)),ISERROR($R$77)),1,IF(AND(LEN($R$77)>0,ABS((1-($R$77* 1.10432803630829+-0.12556779384613)/ 165.523637652397))<0.00005),0,1)) -> 1 | F77: =IF(OR(NOT(ISNUMBER($S$77)),ISERROR($S$77)),1,IF(AND(LEN($S$77)>0,ABS((1-($S$77*-1.10498130321503+ 0.360589265823364)/ 0.360589265823364))<0.00005),0,1)) -> 1 | I77: Withdrawal from callable-deposit #1 | L77: [$'000]
A78: =IF(OR(NOT(ISNUMBER($N$78)),ISERROR($N$78)),1,IF(AND(LEN($N$78)>0,ABS((1-($N$78* 0.859379172325134+ 0.431559443473816)/ 0.431559443473816))<0.00005),0,1)) -> 1 | B78: =IF(OR(NOT(ISNUMBER($O$78)),ISERROR($O$78)),1,IF(AND(LEN($O$78)>0,ABS((1-($O$78* 0.171924233436584+-0.169699192047119)/ 17.0227241516113))<0.00005),0,1)) -> 1 | C78: =IF(OR(NOT(ISNUMBER($P$78)),ISERROR($P$78)),1,IF(AND(LEN($P$78)>0,ABS((1-($P$78* 3.68453681468964+-0.240939021110535)/-0.240939021110535))<0.00005),0,1)) -> 1 | D78: =IF(OR(NOT(ISNUMBER($Q$78)),ISERROR($Q$78)),1,IF(AND(LEN($Q$78)>0,ABS((1-($Q$78*-2.4045866727829+-0.321306467056274)/-0.321306467056274))<0.00005),0,1)) -> 1 | E78: =IF(OR(NOT(ISNUMBER($R$78)),ISERROR($R$78)),1,IF(AND(LEN($R$78)>0,ABS((1-($R$78*-1.53042852878571+-0.497494339942932)/-0.497494339942932))<0.00005),0,1)) -> 1 | F78: =IF(OR(NOT(ISNUMBER($S$78)),ISERROR($S$78)),1,IF(AND(LEN($S$78)>0,ABS((1-($S$78* 2.42342054843903+ 0.340887069702148)/ 0.340887069702148))<0.00005),0,1)) -> 1 | I78: Withdrawal from callable-deposit #2 | L78: [$'000]
A79: =IF(OR(NOT(ISNUMBER($N$79)),ISERROR($N$79)),1,IF(AND(LEN($N$79)>0,ABS((1-($N$79*-2.21410572528839+ 0.202970147132874)/ 0.202970147132874))<0.00005),0,1)) -> 1 | B79: =IF(OR(NOT(ISNUMBER($O$79)),ISERROR($O$79)),1,IF(AND(LEN($O$79)>0,ABS((1-($O$79*-0.951353907585144+ 0.311571359634399)/ 0.311571359634399))<0.00005),0,1)) -> 1 | C79: =IF(OR(NOT(ISNUMBER($P$79)),ISERROR($P$79)),1,IF(AND(LEN($P$79)>0,ABS((1-($P$79* 2.41780698299408+-0.0623360872268677)/ 1450.62185370922))<0.00005),0,1)) -> 1 | D79: =IF(OR(NOT(ISNUMBER($Q$79)),ISERROR($Q$79)),1,IF(AND(LEN($Q$79)>0,ABS((1-($Q$79*-4.22019422054291+-0.0893683433532715)/-0.0893683433532715))<0.00005),0,1)) -> 1 | E79: =IF(OR(NOT(ISNUMBER($R$79)),ISERROR($R$79)),1,IF(AND(LEN($R$79)>0,ABS((1-($R$79*-1.60624802112579+ 0.210554242134094)/-963.538258433341))<0.00005),0,1)) -> 1 | F79: =IF(OR(NOT(ISNUMBER($S$79)),ISERROR($S$79)),1,IF(AND(LEN($S$79)>0,ABS((1-($S$79*-1.87711894512177+ 0.298773527145386)/ 0.298773527145386))<0.00005),0,1)) -> 1 | I79: Withdrawal from line-of-credit #1 | L79: [$'000]
A80: =IF(OR(NOT(ISNUMBER($N$80)),ISERROR($N$80)),1,IF(AND(LEN($N$80)>0,ABS((1-($N$80*-3.48243772983551+ 0.0929912328720093)/ 0.0929912328720093))<0.00005),0,1)) -> 1 | B80: =IF(OR(NOT(ISNUMBER($O$80)),ISERROR($O$80)),1,IF(AND(LEN($O$80)>0,ABS((1-($O$80* 4.56236898899078+-0.256852149963379)/-0.256852149963379))<0.00005),0,1)) -> 1 | C80: =IF(OR(NOT(ISNUMBER($P$80)),ISERROR($P$80)),1,IF(AND(LEN($P$80)>0,ABS((1-($P$80* 4.39971148967743+-0.385667204856873)/ 3079.41237556934))<0.00005),0,1)) -> 1 | D80: =IF(OR(NOT(ISNUMBER($Q$80)),ISERROR($Q$80)),1,IF(AND(LEN($Q$80)>0,ABS((1-($Q$80* 4.84253227710724+ 0.132975816726685)/ 0.132975816726685))<0.00005),0,1)) -> 1 | E80: =IF(OR(NOT(ISNUMBER($R$80)),ISERROR($R$80)),1,IF(AND(LEN($R$80)>0,ABS((1-($R$80* 0.988563895225525+ 0.402569651603699)/ 692.397296309471))<0.00005),0,1)) -> 1 | F80: =IF(OR(NOT(ISNUMBER($S$80)),ISERROR($S$80)),1,IF(AND(LEN($S$80)>0,ABS((1-($S$80* 0.7486492395401+-0.254826068878174)/-0.254826068878174))<0.00005),0,1)) -> 1 | I80: Withdrawal from line-of-credit #2 | L80: [$'000]
A81: =IF(OR(NOT(ISNUMBER($N$81)),ISERROR($N$81)),1,IF(AND(LEN($N$81)>0,ABS((1-($N$81* 3.60162436962128+-0.425049662590027)/-0.425049662590027))<0.00005),0,1)) -> 1 | B81: =IF(OR(NOT(ISNUMBER($O$81)),ISERROR($O$81)),1,IF(AND(LEN($O$81)>0,ABS((1-($O$81*-0.611736178398132+ 0.259979009628296)/ 0.259979009628296))<0.00005),0,1)) -> 1 | C81: =IF(OR(NOT(ISNUMBER($P$81)),ISERROR($P$81)),1,IF(AND(LEN($P$81)>0,ABS((1-($P$81*-2.54321157932281+-0.121393799781799)/-635.924288630486))<0.00005),0,1)) -> 1 | D81: =IF(OR(NOT(ISNUMBER($Q$81)),ISERROR($Q$81)),1,IF(AND(LEN($Q$81)>0,ABS((1-($Q$81*-1.02756440639496+ 0.0265731811523438)/ 0.0265731811523438))<0.00005),0,1)) -> 1 | E81: =IF(OR(NOT(ISNUMBER($R$81)),ISERROR($R$81)),1,IF(AND(LEN($R$81)>0,ABS((1-($R$81*-2.29640781879425+ 0.0811764001846313)/-2296.32664239407))<0.00005),0,1)) -> 1 | F81: =IF(OR(NOT(ISNUMBER($S$81)),ISERROR($S$81)),1,IF(AND(LEN($S$81)>0,ABS((1-($S$81*-2.90301024913788+-0.42129111289978)/-0.42129111289978))<0.00005),0,1)) -> 1 | I81: Withdrawal from line-of-credit #3 | L81: [$'000]
I83: Uses
A84: =IF(OR(NOT(ISNUMBER($N$84)),ISERROR($N$84)),1,IF(AND(LEN($N$84)>0,ABS((1-($N$84* 3.95446240901947+-0.388567090034485)/-0.388567090034485))<0.00005),0,1)) -> 1 | B84: =IF(OR(NOT(ISNUMBER($O$84)),ISERROR($O$84)),1,IF(AND(LEN($O$84)>0,ABS((1-($O$84* 1.52376711368561+ 0.400333881378174)/ 990.848957777023))<0.00005),0,1)) -> 1 | C84: =IF(OR(NOT(ISNUMBER($P$84)),ISERROR($P$84)),1,IF(AND(LEN($P$84)>0,ABS((1-($P$84*-2.68403351306915+ 0.449905514717102)/-4830.81041800976))<0.00005),0,1)) -> 1 | D84: =IF(OR(NOT(ISNUMBER($Q$84)),ISERROR($Q$84)),1,IF(AND(LEN($Q$84)>0,ABS((1-($Q$84* 3.461874127388+-0.0587837696075439)/-0.0587837696075439))<0.00005),0,1)) -> 1 | E84: =IF(OR(NOT(ISNUMBER($R$84)),ISERROR($R$84)),1,IF(AND(LEN($R$84)>0,ABS((1-($R$84*-0.0799375772476196+ 0.269506812095642)/-219.558830618858))<0.00005),0,1)) -> 1 | F84: =IF(OR(NOT(ISNUMBER($S$84)),ISERROR($S$84)),1,IF(AND(LEN($S$84)>0,ABS((1-($S$84* 3.3489328622818+-0.117430686950684)/-0.117430686950684))<0.00005),0,1)) -> 1 | I84: Negative cash flow | L84: [$'000]
A85: =IF(OR(NOT(ISNUMBER($N$85)),ISERROR($N$85)),1,IF(AND(LEN($N$85)>0,ABS((1-($N$85*-3.04465115070343+-0.173842787742615)/-913.569187998772))<0.00005),0,1)) -> 1 | B85: =IF(OR(NOT(ISNUMBER($O$85)),ISERROR($O$85)),1,IF(AND(LEN($O$85)>0,ABS((1-($O$85*-0.867668986320496+-0.347323179244995)/-0.347323179244995))<0.00005),0,1)) -> 1 | C85: =IF(OR(NOT(ISNUMBER($P$85)),ISERROR($P$85)),1,IF(AND(LEN($P$85)>0,ABS((1-($P$85* 1.19831502437592+-0.400590062141418)/-0.400590062141418))<0.00005),0,1)) -> 1 | D85: =IF(OR(NOT(ISNUMBER($Q$85)),ISERROR($Q$85)),1,IF(AND(LEN($Q$85)>0,ABS((1-($Q$85*-2.94952809810638+ 0.192517757415771)/-884.6659116745))<0.00005),0,1)) -> 1 | E85: =IF(OR(NOT(ISNUMBER($R$85)),ISERROR($R$85)),1,IF(AND(LEN($R$85)>0,ABS((1-($R$85* 0.0445908308029175+-0.316923975944519)/-0.316923975944519))<0.00005),0,1)) -> 1 | F85: =IF(OR(NOT(ISNUMBER($S$85)),ISERROR($S$85)),1,IF(AND(LEN($S$85)>0,ABS((1-($S$85* 4.91402447223663+-0.0286085605621338)/-0.0286085605621338))<0.00005),0,1)) -> 1 | I85: Deposit to cash account | L85: [$'000]
A86: =IF(OR(NOT(ISNUMBER($N$86)),ISERROR($N$86)),1,IF(AND(LEN($N$86)>0,ABS((1-($N$86*-4.95980322360992+-0.0741506814956665)/-2479.97576248646))<0.00005),0,1)) -> 1 | B86: =IF(OR(NOT(ISNUMBER($O$86)),ISERROR($O$86)),1,IF(AND(LEN($O$86)>0,ABS((1-($O$86*-2.11282670497894+ 0.252542495727539)/ 0.252542495727539))<0.00005),0,1)) -> 1 | C86: =IF(OR(NOT(ISNUMBER($P$86)),ISERROR($P$86)),1,IF(AND(LEN($P$86)>0,ABS((1-($P$86* 3.91279399394989+ 0.321931481361389)/ 0.321931481361389))<0.00005),0,1)) -> 1 | D86: =IF(OR(NOT(ISNUMBER($Q$86)),ISERROR($Q$86)),1,IF(AND(LEN($Q$86)>0,ABS((1-($Q$86*-3.23113143444061+-0.39121413230896)/-485.060929298401))<0.00005),0,1)) -> 1 | E86: =IF(OR(NOT(ISNUMBER($R$86)),ISERROR($R$86)),1,IF(AND(LEN($R$86)>0,ABS((1-($R$86*-4.89706575870514+-0.348343014717102)/-0.348343014717102))<0.00005),0,1)) -> 1 | F86: =IF(OR(NOT(ISNUMBER($S$86)),ISERROR($S$86)),1,IF(AND(LEN($S$86)>0,ABS((1-($S$86*-1.22592389583588+-0.311868190765381)/-0.311868190765381))<0.00005),0,1)) -> 1 | I86: Deposit to callable-account #1 | L86: [$'000]
A87: =IF(OR(NOT(ISNUMBER($N$87)),ISERROR($N$87)),1,IF(AND(LEN($N$87)>0,ABS((1-($N$87* 4.79530990123749+ 0.37211811542511)/ 479.903108239174))<0.00005),0,1)) -> 1 | B87: =IF(OR(NOT(ISNUMBER($O$87)),ISERROR($O$87)),1,IF(AND(LEN($O$87)>0,ABS((1-($O$87* 0.815027356147766+ 0.229410886764526)/ 0.229410886764526))<0.00005),0,1)) -> 1 | C87: =IF(OR(NOT(ISNUMBER($P$87)),ISERROR($P$87)),1,IF(AND(LEN($P$87)>0,ABS((1-($P$87*-3.54999601840973+-0.242210030555725)/-0.242210030555725))<0.00005),0,1)) -> 1 | D87: =IF(OR(NOT(ISNUMBER($Q$87)),ISERROR($Q$87)),1,IF(AND(LEN($Q$87)>0,ABS((1-($Q$87*-4.71753060817719+ 0.327898979187012)/ 0.327898979187012))<0.00005),0,1)) -> 1 | E87: =IF(OR(NOT(ISNUMBER($R$87)),ISERROR($R$87)),1,IF(AND(LEN($R$87)>0,ABS((1-($R$87* 2.83374011516571+ 0.291155457496643)/ 0.291155457496643))<0.00005),0,1)) -> 1 | F87: =IF(OR(NOT(ISNUMBER($S$87)),ISERROR($S$87)),1,IF(AND(LEN($S$87)>0,ABS((1-($S$87*-1.67308509349822+-0.0490577220916748)/-0.0490577220916748))<0.00005),0,1)) -> 1 | I87: Deposit to callable-account #2 | L87: [$'000]
A88: =IF(OR(NOT(ISNUMBER($N$88)),ISERROR($N$88)),1,IF(AND(LEN($N$88)>0,ABS((1-($N$88* 0.551132559776306+ 0.303330302238464)/ 0.303330302238464))<0.00005),0,1)) -> 1 | B88: =IF(OR(NOT(ISNUMBER($O$88)),ISERROR($O$88)),1,IF(AND(LEN($O$88)>0,ABS((1-($O$88* 0.639892220497131+-0.296417713165283)/-0.296417713165283))<0.00005),0,1)) -> 1 | C88: =IF(OR(NOT(ISNUMBER($P$88)),ISERROR($P$88)),1,IF(AND(LEN($P$88)>0,ABS((1-($P$88*-2.92406380176544+-0.135311961174011)/-0.135311961174011))<0.00005),0,1)) -> 1 | D88: =IF(OR(NOT(ISNUMBER($Q$88)),ISERROR($Q$88)),1,IF(AND(LEN($Q$88)>0,ABS((1-($Q$88* 0.735195279121399+-0.155819177627563)/ 440.961348295212))<0.00005),0,1)) -> 1 | E88: =IF(OR(NOT(ISNUMBER($R$88)),ISERROR($R$88)),1,IF(AND(LEN($R$88)>0,ABS((1-($R$88* 0.282296538352966+-0.0745149850845337)/-0.0745149850845337))<0.00005),0,1)) -> 1 | F88: =IF(OR(NOT(ISNUMBER($S$88)),ISERROR($S$88)),1,IF(AND(LEN($S$88)>0,ABS((1-($S$88* 0.730133652687073+-0.449954986572266)/-0.449954986572266))<0.00005),0,1)) -> 1 | I88: Deposit to line-of-credit #1 | L88: [$'000]
A89: =IF(OR(NOT(ISNUMBER($N$89)),ISERROR($N$89)),1,IF(AND(LEN($N$89)>0,ABS((1-($N$89* 0.475999712944031+-0.293514609336853)/-0.293514609336853))<0.00005),0,1)) -> 1 | B89: =IF(OR(NOT(ISNUMBER($O$89)),ISERROR($O$89)),1,IF(AND(LEN($O$89)>0,ABS((1-($O$89* 4.62678253650665+ 0.43305230140686)/ 0.43305230140686))<0.00005),0,1)) -> 1 | C89: =IF(OR(NOT(ISNUMBER($P$89)),ISERROR($P$89)),1,IF(AND(LEN($P$89)>0,ABS((1-($P$89* 4.92572247982025+ 0.339586138725281)/ 0.339586138725281))<0.00005),0,1)) -> 1 | D89: =IF(OR(NOT(ISNUMBER($Q$89)),ISERROR($Q$89)),1,IF(AND(LEN($Q$89)>0,ABS((1-($Q$89*-0.906767249107361+ 0.305275440216064)/-634.431798934937))<0.00005),0,1)) -> 1 | E89: =IF(OR(NOT(ISNUMBER($R$89)),ISERROR($R$89)),1,IF(AND(LEN($R$89)>0,ABS((1-($R$89* 4.89428222179413+-0.241557955741882)/-0.241557955741882))<0.00005),0,1)) -> 1 | F89: =IF(OR(NOT(ISNUMBER($S$89)),ISERROR($S$89)),1,IF(AND(LEN($S$89)>0,ABS((1-($S$89*-3.25515925884247+ 0.194607496261597)/-650.837244272232))<0.00005),0,1)) -> 1 | I89: Deposit to line-of-credit #2 | L89: [$'000]
A90: =IF(OR(NOT(ISNUMBER($N$90)),ISERROR($N$90)),1,IF(AND(LEN($N$90)>0,ABS((1-($N$90*-4.83011305332184+-0.160909295082092)/-0.160909295082092))<0.00005),0,1)) -> 1 | B90: =IF(OR(NOT(ISNUMBER($O$90)),ISERROR($O$90)),1,IF(AND(LEN($O$90)>0,ABS((1-($O$90* 1.92547857761383+-0.389613151550293)/-0.389613151550293))<0.00005),0,1)) -> 1 | C90: =IF(OR(NOT(ISNUMBER($P$90)),ISERROR($P$90)),1,IF(AND(LEN($P$90)>0,ABS((1-($P$90*-3.90261471271515+-0.209422469139099)/-0.209422469139099))<0.00005),0,1)) -> 1 | D90: =IF(OR(NOT(ISNUMBER($Q$90)),ISERROR($Q$90)),1,IF(AND(LEN($Q$90)>0,ABS((1-($Q$90*-1.01121604442596+ 0.0590221881866455)/-252.744988918304))<0.00005),0,1)) -> 1 | E90: =IF(OR(NOT(ISNUMBER($R$90)),ISERROR($R$90)),1,IF(AND(LEN($R$90)>0,ABS((1-($R$90*-1.8904834985733+-0.204419255256653)/-0.204419255256653))<0.00005),0,1)) -> 1 | F90: =IF(OR(NOT(ISNUMBER($S$90)),ISERROR($S$90)),1,IF(AND(LEN($S$90)>0,ABS((1-($S$90* 3.07941019535065+-0.190382480621338)/ 3079.21981287003))<0.00005),0,1)) -> 1 | I90: Deposit to line-of-credit #3 | L90: [$'000]
K93: Copyright (c) 2020 Tykoh Group Pty Ltd. All rights reserved. | T93: Index
K94: www.tykoh.com

Sheet Sensitivities
E1: Click here to see what your answer should look like.
L2: Sensitivity | M2: Sensitivities
A3: =SUM($A$4:$B$67) -> 33 | D3: 1 | E3: Basics of using data tables
E5: ="Cells "& ADDRESS(ROW($G$7),COLUMN($G$7),4) & ":" & ADDRESS(ROW($G$9), COLUMN($G$9), 4)& " below define inputs to a very simple valuation function in cell "& ADDRESS(ROW($G$11),COLUMN($G$11),4)&"." -> Cells G7:G9 below define inputs to a very simple valuation function in cell G11.
E7: Growth rate [g] | G7: 0.04
E8: Discount rate [r] | G8: 0.1
E9: Next dividend [D] | G9: 1.25
E11: Value [ =D/(r-g) ] | G11: =G9/(G8-G7) -> 20.83333333
E13: ="Complete the data table below to show value as a function of growth rates from 1% through to 5%. [You need only to fill out the cells that have a blue/gray background - you don't need to put anything into the uncolored cells in "& ADDRESS(ROW($F$19),COLUMN($F$19),4) & ":" & ADDRESS(ROW($F$23), COLUMN($F$23), 4)&"]." -> Complete the data table below to show value as a function of growth rates from 1% through to 5%. [You need only to fill out the cells that have a blue/gray background - you don't need to put anything into the uncolored cells in F19:F23].
E17: Growth rate | F17: Value
A18: =IF(OR(NOT(ISNUMBER($F$18)),ISERROR($F$18)),1,IF(AND(LEN($F$18)>0,ABS((1-($F$18*-1.2418395280838+-0.0989636182785034)/-25.9706204533577))<0.00005),0,1)) -> 1
A19: =IF(OR(NOT(ISNUMBER($E$19)),ISERROR($E$19)),1,IF(AND(LEN($E$19)>0,ABS((1-($E$19* 3.41427624225616+-0.0904028415679932)/-0.0562600791454315))<0.00005),0,1)) -> 1 | B19: =IF(OR(NOT(ISNUMBER($F$19)),ISERROR($F$19)),1,IF(AND(LEN($F$19)>0,ABS((1-($F$19* 2.24558770656586+ 0.158763289451599)/ 31.3474814361996))<0.00005),0,1)) -> 1 | F19: 0
A20: =IF(OR(NOT(ISNUMBER($E$20)),ISERROR($E$20)),1,IF(AND(LEN($E$20)>0,ABS((1-($E$20*-0.936183333396912+ 0.45033073425293)/ 0.431607067584991))<0.00005),0,1)) -> 1 | B20: =IF(OR(NOT(ISNUMBER($F$20)),ISERROR($F$20)),1,IF(AND(LEN($F$20)>0,ABS((1-($F$20* 1.45570933818817+ 0.0160881280899048)/ 22.7615465372801))<0.00005),0,1)) -> 1 | F20: 0
A21: =IF(OR(NOT(ISNUMBER($E$21)),ISERROR($E$21)),1,IF(AND(LEN($E$21)>0,ABS((1-($E$21*-2.76676833629608+ 0.0827581882476807)/-0.000244861841201774))<0.00005),0,1)) -> 1 | B21: =IF(OR(NOT(ISNUMBER($F$21)),ISERROR($F$21)),1,IF(AND(LEN($F$21)>0,ABS((1-($F$21* 2.48532712459564+-0.0435296297073364)/ 44.3373118809291))<0.00005),0,1)) -> 1 | F21: 0
A22: =IF(OR(NOT(ISNUMBER($E$22)),ISERROR($E$22)),1,IF(AND(LEN($E$22)>0,ABS((1-($E$22* 4.04373705387115+-0.21698522567749)/-0.055235743522644))<0.00005),0,1)) -> 1 | B22: =IF(OR(NOT(ISNUMBER($F$22)),ISERROR($F$22)),1,IF(AND(LEN($F$22)>0,ABS((1-($F$22* 1.67538344860077+ 0.390127301216125)/ 35.2939491470655))<0.00005),0,1)) -> 1 | F22: 0
A23: =IF(OR(NOT(ISNUMBER($E$23)),ISERROR($E$23)),1,IF(AND(LEN($E$23)>0,ABS((1-($E$23*-2.1861857175827+-0.131943941116333)/-0.241253226995468))<0.00005),0,1)) -> 1 | B23: =IF(OR(NOT(ISNUMBER($F$23)),ISERROR($F$23)),1,IF(AND(LEN($F$23)>0,ABS((1-($F$23*-4.85778868198395+-0.205340981483459)/-121.650058031082))<0.00005),0,1)) -> 1 | F23: 0
E32: Continuing with the example above - complete the data table below to show value for discount rates of 8%, 10%, 12%, 14% & 16%.
E35: Discount rate | F35: Value
A36: =IF(OR(NOT(ISNUMBER($F$36)),ISERROR($F$36)),1,IF(AND(LEN($F$36)>0,ABS((1-($F$36* 4.84046041965485+ 0.261282920837402)/ 101.104208330313))<0.00005),0,1)) -> 1
A37: =IF(OR(NOT(ISNUMBER($E$37)),ISERROR($E$37)),1,IF(AND(LEN($E$37)>0,ABS((1-($E$37* 0.808784365653992+ 0.105673432350159)/ 0.170376181602478))<0.00005),0,1)) -> 1 | B37: =IF(OR(NOT(ISNUMBER($F$37)),ISERROR($F$37)),1,IF(AND(LEN($F$37)>0,ABS((1-($F$37*-2.3195618391037+ 0.00816655158996582)/-72.4781409204006))<0.00005),0,1)) -> 1 | F37: 0
A38: =IF(OR(NOT(ISNUMBER($E$38)),ISERROR($E$38)),1,IF(AND(LEN($E$38)>0,ABS((1-($E$38* 2.93596684932709+ 0.35741126537323)/ 0.651007950305939))<0.00005),0,1)) -> 1 | B38: =IF(OR(NOT(ISNUMBER($F$38)),ISERROR($F$38)),1,IF(AND(LEN($F$38)>0,ABS((1-($F$38*-4.06847417354584+ 0.0418734550476074)/-84.7180051604907))<0.00005),0,1)) -> 1 | F38: 0
A39: =IF(OR(NOT(ISNUMBER($E$39)),ISERROR($E$39)),1,IF(AND(LEN($E$39)>0,ABS((1-($E$39*-0.846236348152161+-0.426628947257996)/-0.528177309036255))<0.00005),0,1)) -> 1 | B39: =IF(OR(NOT(ISNUMBER($F$39)),ISERROR($F$39)),1,IF(AND(LEN($F$39)>0,ABS((1-($F$39*-0.48623263835907+ 0.198890447616577)/-7.39849452674389))<0.00005),0,1)) -> 1 | F39: 0
A40: =IF(OR(NOT(ISNUMBER($E$40)),ISERROR($E$40)),1,IF(AND(LEN($E$40)>0,ABS((1-($E$40*-0.00742971897125244+-0.0930658578872681)/-0.0941060185432434))<0.00005),0,1)) -> 1 | B40: =IF(OR(NOT(ISNUMBER($F$40)),ISERROR($F$40)),1,IF(AND(LEN($F$40)>0,ABS((1-($F$40* 4.4507223367691+ 0.484649658203125)/ 56.1186788678169))<0.00005),0,1)) -> 1 | F40: 0
A41: =IF(OR(NOT(ISNUMBER($E$41)),ISERROR($E$41)),1,IF(AND(LEN($E$41)>0,ABS((1-($E$41* 0.914422869682312+ 0.0319896936416626)/ 0.178297352790833))<0.00005),0,1)) -> 1 | B41: =IF(OR(NOT(ISNUMBER($F$41)),ISERROR($F$41)),1,IF(AND(LEN($F$41)>0,ABS((1-($F$41* 1.15071594715118+-0.410846471786499)/ 11.575777977705))<0.00005),0,1)) -> 1 | F41: 0
E50: Continuing with the example above - complete the data table below to show value for dividends of 1.0, 1.2, 1.4, 1.6 and 1.8.
E53: Next dividend | F53: Value
A54: =IF(OR(NOT(ISNUMBER($F$54)),ISERROR($F$54)),1,IF(AND(LEN($F$54)>0,ABS((1-($F$54*-3.15575182437897+-0.216440320014954)/-65.9612699945768))<0.00005),0,1)) -> 1
A55: =IF(OR(NOT(ISNUMBER($E$55)),ISERROR($E$55)),1,IF(AND(LEN($E$55)>0,ABS((1-($E$55*-4.81191098690032+-0.347400188446045)/-5.15931117534637))<0.00005),0,1)) -> 1 | B55: =IF(OR(NOT(ISNUMBER($F$55)),ISERROR($F$55)),1,IF(AND(LEN($F$55)>0,ABS((1-($F$55*-0.79888641834259+ 0.0484238862991333)/-13.266349752744))<0.00005),0,1)) -> 1 | F55: 0
A56: =IF(OR(NOT(ISNUMBER($E$56)),ISERROR($E$56)),1,IF(AND(LEN($E$56)>0,ABS((1-($E$56* 0.584447979927062+ 0.281006574630737)/ 0.982344150543213))<0.00005),0,1)) -> 1 | B56: =IF(OR(NOT(ISNUMBER($F$56)),ISERROR($F$56)),1,IF(AND(LEN($F$56)>0,ABS((1-($F$56*-4.57052290439606+-0.0942550897598267)/-91.504713177681))<0.00005),0,1)) -> 1 | F56: 0
A57: =IF(OR(NOT(ISNUMBER($E$57)),ISERROR($E$57)),1,IF(AND(LEN($E$57)>0,ABS((1-($E$57*-4.41008508205414+-0.188162803649902)/-6.3622819185257))<0.00005),0,1)) -> 1 | B57: =IF(OR(NOT(ISNUMBER($F$57)),ISERROR($F$57)),1,IF(AND(LEN($F$57)>0,ABS((1-($F$57* 1.03043735027313+ 0.0176931619644165)/ 24.0612313350042))<0.00005),0,1)) -> 1 | F57: 0
A58: =IF(OR(NOT(ISNUMBER($E$58)),ISERROR($E$58)),1,IF(AND(LEN($E$58)>0,ABS((1-($E$58* 0.964377522468567+-0.170374631881714)/ 1.37262940406799))<0.00005),0,1)) -> 1 | B58: =IF(OR(NOT(ISNUMBER($F$58)),ISERROR($F$58)),1,IF(AND(LEN($F$58)>0,ABS((1-($F$58* 4.09298360347748+ 0.270071864128113)/ 109.416301290194))<0.00005),0,1)) -> 1 | F58: 0
A59: =IF(OR(NOT(ISNUMBER($E$59)),ISERROR($E$59)),1,IF(AND(LEN($E$59)>0,ABS((1-($E$59* 0.758739113807678+-0.0683999061584473)/ 1.29733049869537))<0.00005),0,1)) -> 1 | B59: =IF(OR(NOT(ISNUMBER($F$59)),ISERROR($F$59)),1,IF(AND(LEN($F$59)>0,ABS((1-($F$59* 2.32524573802947+-0.337057948112488)/ 69.4203141927719))<0.00005),0,1)) -> 1 | F59: 0
N67: Index
A68: =SUM($A$69:$B$103) -> 7 | D68: =D3+1 -> 2 | E68: Three scenarios - simple application of a data table
E70: The table below shows three growth scenarios: "Optimistic", "Neutral" and "Pessimistic".
E72: Scenario | G72: Growth rate per year
E73: Number | F73: Name | G73: 2010 | H73: =G73+1 -> 2011 | I73: =H73+1 -> 2012 | J73: =I73+1 -> 2013 | K73: =J73+1 -> 2014 | L73: =K73+1 -> 2015
E74: 1 | F74: Optimistic | H74: 0.02 | I74: 0.03 | J74: 0.035 | K74: 0.04 | L74: 0.04
E75: 2 | F75: Neutral | H75: 0.015 | I75: 0.015 | J75: 0.02 | K75: 0.02 | L75: 0.02
E76: 3 | F76: Pessimistic | H76: -0.01 | I76: -0.01 | J76: 0 | K76: 0 | L76: 0
E78: ="Cell "& ADDRESS(ROW($G$80),COLUMN($G$80),4) & " below lets you choose one of the three scenarios." -> Cell G80 below lets you choose one of the three scenarios.
E80: Chosen scenario: | G80: 2 | H80: <- You can change this cell
E82: ="Cells "& ADDRESS(ROW($H$85),COLUMN($H$85),4) & ":" & ADDRESS(ROW($L$86), COLUMN($L$86), 4) & " below show the yearly growth rates for the chosen scenario." -> Cells H85:L86 below show the yearly growth rates for the chosen scenario.
G84: ="Growth rate for chosen scenario [" & OFFSET(F73,G80,0)& "]" -> Growth rate for chosen scenario [Neutral]
H85: =H73 -> 2011 | I85: =I73 -> 2012 | J85: =J73 -> 2013 | K85: =K73 -> 2014 | L85: =L73 -> 2015
H86: =OFFSET(H73,$G$80,0) -> 0.015 | I86: =OFFSET(I73,$G$80,0) -> 0.015 | J86: =OFFSET(J73,$G$80,0) -> 0.02 | K86: =OFFSET(K73,$G$80,0) -> 0.02 | L86: =OFFSET(L73,$G$80,0) -> 0.02
E88: ="In cells "& ADDRESS(ROW($G$91),COLUMN($G$91),4) & ":" & ADDRESS(ROW($L$92), COLUMN($L$92), 4) & " below a revenue projection is made using the chosen scenario." -> In cells G91:L92 below a revenue projection is made using the chosen scenario.
G90: ="Revenue projection for chosen scenario ["&OFFSET(F73,G80,0)&"]" -> Revenue projection for chosen scenario [Neutral]
H91: =H85 -> 2011 | I91: =I85 -> 2012 | J91: =J85 -> 2013 | K91: =K85 -> 2014 | L91: =L85 -> 2015
G92: 1000 | H92: =G92*(1+H86) -> 1015 | I92: =H92*(1+I86) -> 1030.225 | J92: =I92*(1+J86) -> 1050.8295 | K92: =J92*(1+K86) -> 1071.84609 | L92: =K92*(1+L86) -> 1093.283012
E94: ="Complete the data table below in cells " & ADDRESS(ROW($F$97),COLUMN($F$97),4) & ":" & ADDRESS(ROW($G$100), COLUMN($G$100), 4) & " to show the 2015 revenue for all three scenarios." -> Complete the data table below in cells F97:G100 to show the 2015 revenue for all three scenarios.
E96: Scenario | G96: =L91 & " revenue" -> 2015 revenue
A97: =IF(OR(NOT(ISNUMBER($G$97)),ISERROR($G$97)),1,IF(AND(LEN($G$97)>0,ABS((1-($G$97*-4.4038313627243+-0.256689310073853)/-4814.8907050086))<0.00005),0,1)) -> 1
A98: =IF(OR(NOT(ISNUMBER($F$98)),ISERROR($F$98)),1,IF(AND(LEN($F$98)>0,ABS((1-($F$98* 2.58574426174164+ 0.451247572898865)/ 3.0369918346405))<0.00005),0,1)) -> 1 | B98: =IF(OR(NOT(ISNUMBER($G$98)),ISERROR($G$98)),1,IF(AND(LEN($G$98)>0,ABS((1-($G$98*-1.54664933681488+ 0.18425178527832)/-1818.83076573583))<0.00005),0,1)) -> 1 | E98: =F74 -> Optimistic | G98: 0
A99: =IF(OR(NOT(ISNUMBER($F$99)),ISERROR($F$99)),1,IF(AND(LEN($F$99)>0,ABS((1-($F$99* 2.91464030742645+-0.46455991268158)/ 5.36472070217133))<0.00005),0,1)) -> 1 | B99: =IF(OR(NOT(ISNUMBER($G$99)),ISERROR($G$99)),1,IF(AND(LEN($G$99)>0,ABS((1-($G$99* 2.94173538684845+-0.0165116786956787)/ 3216.13281197361))<0.00005),0,1)) -> 1 | E99: =F75 -> Neutral | G99: 0
A100: =IF(OR(NOT(ISNUMBER($F$100)),ISERROR($F$100)),1,IF(AND(LEN($F$100)>0,ABS((1-($F$100*-2.93501436710358+ 0.102104067802429)/-8.7029390335083))<0.00005),0,1)) -> 1 | B100: =IF(OR(NOT(ISNUMBER($G$100)),ISERROR($G$100)),1,IF(AND(LEN($G$100)>0,ABS((1-($G$100* 4.08878862857819+ 0.4452805519104)/ 4007.86701542139))<0.00005),0,1)) -> 1 | E100: =F76 -> Pessimistic | G100: 0
F103: Copyright (c) 2020 Tykoh Group Pty Ltd. All rights reserved. | N103: Index
F104: www.tykoh.com

Sheet Scenarios
D1: Click here to see what your answer should look like.
K2: Sensitivity | L2: Scenarios
A3: =SUM($A$4:$A$60) -> 6 | C3: 1 | D3: Scenarios - Easy example
D5: ="Cells "& ADDRESS(ROW($I$17),COLUMN($I$17),4) & ":" & ADDRESS(ROW($K$21), COLUMN($K$21), 4)&" (highlighted with dots below) define three different scenarios." -> Cells I17:K21 (highlighted with dots below) define three different scenarios.
D7: ="Cell "& ADDRESS(ROW($G$9),COLUMN($G$9),4)&" lets you choose one of the scenarios. " -> Cell G9 lets you choose one of the scenarios.
D9: Choose a scenario >>>>>>>>> | G9: 2 | H9: <- You can change this cell
D11: ="Cells "& ADDRESS(ROW($G$17),COLUMN($G$17),4) & ":" & ADDRESS(ROW($G$21), COLUMN($G$21), 4) & " need to show the chosen scenario. Put formulae into those cells to show the chosen scenario. Design your formulae so that the formulae don't need to be changed if more scenarios are later added to the right of scenario 3." -> Cells G17:G21 need to show the chosen scenario. Put formulae into those cells to show the chosen scenario. Design your formulae so that the formulae don't need to be changed if more scenarios are later added to the right of scenario 3.
D14: =IF(I53,"Your answer is incorrect.",IF(I54,IF(NOT(I55),"Your answer is incorrect.",IF(MAX(E48:H52)>0,D57,"")),"")) -> 
D15: Scenario parameters | G15: Chosen scenario | I15: 1 | J15: 2 | K15: 3
A17: =IF(OR(NOT(ISNUMBER($G$17)),ISERROR($G$17)),1,IF(AND(LEN($G$17)>0,ABS(1-(($G$17 + -0.005621982946116)/($G$35 + -0.005621982946116)))<0.00005),0,1)) -> 1 | D17: Growth rate (high growth phase) | I17: 0.05 | J17: 0.05 | K17: 0.05 | L17: 1
A18: =IF(OR(NOT(ISNUMBER($G$18)),ISERROR($G$18)),1,IF(AND(LEN($G$18)>0,ABS(1-(($G$18 + -0.005621982946116)/($G$36 + -0.005621982946116)))<0.00005),0,1)) -> 1 | D18: Growth rate (low growth phase) | I18: 0.03 | J18: 0.04 | K18: 0.03 | L18: 1
A19: =IF(OR(NOT(ISNUMBER($G$19)),ISERROR($G$19)),1,IF(AND(LEN($G$19)>0,ABS(1-(($G$19 + -0.005621982946116)/($G$37 + -0.005621982946116)))<0.00005),0,1)) -> 1 | D19: Number periods high growth | I19: 4 | J19: 5 | K19: 4 | L19: 1
A20: =IF(OR(NOT(ISNUMBER($G$20)),ISERROR($G$20)),1,IF(AND(LEN($G$20)>0,ABS(1-(($G$20 + -0.005621982946116)/($G$38 + -0.005621982946116)))<0.00005),0,1)) -> 1 | D20: Discount rate | I20: 0.12 | J20: 0.12 | K20: 0.13 | L20: 1
A21: =IF(OR(NOT(ISNUMBER($G$21)),ISERROR($G$21)),1,IF(AND(LEN($G$21)>0,ABS(1-(($G$21 + -0.005621982946116)/($G$39 + -0.005621982946116)))<0.00005),0,1)) -> 1 | D21: Terminal value multiple | I21: 11 | J21: 11 | K21: 10 | L21: 1
D24: Year | F24: 2010 | G24: =F24+1 -> 2011 | H24: 2012 | I24: 2013 | J24: 2014 | K24: 2015 | L24: 2016
D25: Growth rate | G25: =IF(G24-$F$24>$G$19,$G$18,$G$17) -> 0 | H25: 0 | I25: 0 | J25: 0 | K25: 0 | L25: 0
D26: Free cash flow | F26: 13 | G26: =F26*(1+G25) -> 13 | H26: 13 | I26: 13 | J26: 13 | K26: 13 | L26: 13
D27: Sale price | F27: 0 | G27: 0 | H27: 0 | I27: 0 | J27: 0 | K27: 0 | L27: =L26*G21 -> 0
D29: Total | F29: =SUM(F26:F27) -> 13 | G29: 13 | H29: 13 | I29: 13 | J29: 13 | K29: 13 | L29: 13
D31: Enterprise value: | F31: =NPV(G20,G29:L29) -> 78
A33: =IF(OR(NOT(ISNUMBER($D$33)),ISERROR($D$33)),1,IF(AND(LEN($D$33)>0,ABS((1-($D$33*-4.59689795970917+-0.445351362228394)/-0.445351362228394))<0.00005),0,1)) -> 1 | D33: =I56 -> 1
G35: =OFFSET(I17,0,$G$9-1) -> 0.05
G36: =OFFSET(I18,0,$G$9-1) -> 0.04
G37: =OFFSET(I19,0,$G$9-1) -> 5
G38: =OFFSET(I20,0,$G$9-1) -> 0.12
G39: =OFFSET(I21,0,$G$9-1) -> 11
E40: theirs
E41: 1 | F41: 2 | G41: 3 | H41: 4
D42: =G17 -> 0 | E42: 0 | F42: 0 | G42: 0 | H42: 0
D43: =G18 -> 0 | E43: 0 | F43: 0 | G43: 0 | H43: 0
D44: =G19 -> 0 | E44: 0 | F44: 0 | G44: 0 | H44: 0
D45: =G20 -> 0 | E45: 0 | F45: 0 | G45: 0 | H45: 0
D46: =G21 -> 0 | E46: 0 | F46: 0 | G46: 0 | H46: 0
E48: =IF(E42=I17,0,1) -> 1 | F48: 1 | G48: 1 | H48: =IF(ISERROR(H42),2,IF(H42=L17,0,1)) -> 1
E49: 1 | F49: 1 | G49: 1 | H49: =IF(ISERROR(H43),2,IF(H43=L18,0,1)) -> 1
E50: 1 | F50: 1 | G50: 1 | H50: =IF(ISERROR(H44),2,IF(H44=L19,0,1)) -> 1
E51: 1 | F51: 1 | G51: 1 | H51: =IF(ISERROR(H45),2,IF(H45=L20,0,1)) -> 1
E52: 1 | F52: 1 | G52: 1 | H52: =IF(ISERROR(H46),2,IF(H46=L21,0,1)) -> 1
D53: =MATCH(MAX(E53:G54),E53:G53,0) -> 1 | E53: =MAX(E48:E52) -> 1 | F53: =MAX(F48:F52) -> 1 | G53: =MAX(G48:G52) -> 1 | I53: =ISERROR(SUM(G17:G21)) -> FALSE | J53: <- excel error(s)
I54: =COUNT(G17:G21)=ROWS(G17:G21)*COLUMNS(G17:G21) -> FALSE | J54: <- complete
I55: =SUM(IF(G17:G21=G35:G39,1,0))=ROWS(G17:G21) -> FALSE | J55: <- correct
I56: =IF(I53,1,IF(AND(LEN(D14)=0,I54),0,1)) -> 1 | J56: <overall
D57: =IF(MAX(E53:G53)>0,"Your answer will be incorrect for scenario " &D53&".","Please redo: Your formulae would need to be changed if more scenarios are added.") -> Your answer will be incorrect for scenario 1.
E60: Copyright (c) 2020 Tykoh Group Pty Ltd. All rights reserved. | M60: Index
E61: www.tykoh.com

Sheet Financial
J1: Click here to see what your answer should look like.
S2: Financial | T2: Financial
A3: =SUM($A$4:$G$56) -> 35 | I3: 1 | J3: Paying down a loan - has a twist - avoid circular references - they're not needed here
J5: ="A loan has to be paid off. The initial outstanding loan balance is $" & TEXT(N14,"#,000") & ",000. For a number of periods (defined in cell "&ADDRESS(ROW(cap_periods),COLUMN(cap_periods),4)&") no interest or principal payments are required. During that time interest is capitalised (i.e. it is added to the outstanding principal)." -> A loan has to be paid off. The initial outstanding loan balance is $1,000,000. For a number of periods (defined in cell N15) no interest or principal payments are required. During that time interest is capitalised (i.e. it is added to the outstanding principal).
J9: After the interest-free period has passed the loan is paid off in equal installments. Calculate the interest and principal payments in the table below. Useful functions for this problem are IPMT and PPMT.
J12: Item | M12: Units | N12: Value
J13: Interest rate | M13: [%] | N13: 0.12
J14: Opening principal | M14: [$'000] | N14: 1000
J15: Number interest free periods | M15: [#] | N15: 2 | O15: <- You can change this cell
J16: Term | M16: [#] | N16: 6
A17: =IF(OR(NOT(ISNUMBER($N$17)),ISERROR($N$17)),1,IF(AND(LEN($N$17)>0,ABS(1-(($N$17 + -0.005621982946116)/($N$36 + -0.005621982946116)))<0.00005),0,1)) -> 1 | J17: Principal to be repaid | M17: [$'000] | O17: <- i.e. The principal that must be repaid at the end of the interest free period.
J18: =IF(O48,"Your answer is incorrect.",IF(O47,IF(N54,"Your answer is incorrect.",IF(MAX(L49:L52)>0,J56,"")),"")) -> 
J19: Period number | M19: [#] | N19: 1 | O19: =N19+1 -> 2 | P19: =O19+1 -> 3 | Q19: =P19+1 -> 4 | R19: =Q19+1 -> 5 | S19: =R19+1 -> 6
J20: Interest
A21: =IF(OR(NOT(ISNUMBER($N$21)),ISERROR($N$21)),1,IF(AND(LEN($N$21)>0,ABS(1-(($N$21 + -0.005621982946116)/($N$37 + -0.005621982946116)))<0.00005),0,1)) -> 1 | B21: =IF(OR(NOT(ISNUMBER($O$21)),ISERROR($O$21)),1,IF(AND(LEN($O$21)>0,ABS(1-(($O$21 + -0.005621982946116)/($O$37 + -0.005621982946116)))<0.00005),0,1)) -> 1 | C21: =IF(OR(NOT(ISNUMBER($P$21)),ISERROR($P$21)),1,IF(AND(LEN($P$21)>0,ABS(1-(($P$21 + -0.005621982946116)/($P$37 + -0.005621982946116)))<0.00005),0,1)) -> 1 | D21: =IF(OR(NOT(ISNUMBER($Q$21)),ISERROR($Q$21)),1,IF(AND(LEN($Q$21)>0,ABS(1-(($Q$21 + -0.005621982946116)/($Q$37 + -0.005621982946116)))<0.00005),0,1)) -> 1 | E21: =IF(OR(NOT(ISNUMBER($R$21)),ISERROR($R$21)),1,IF(AND(LEN($R$21)>0,ABS(1-(($R$21 + -0.005621982946116)/($R$37 + -0.005621982946116)))<0.00005),0,1)) -> 1 | F21: =IF(OR(NOT(ISNUMBER($S$21)),ISERROR($S$21)),1,IF(AND(LEN($S$21)>0,ABS(1-(($S$21 + -0.005621982946116)/($S$37 + -0.005621982946116)))<0.00005),0,1)) -> 1 | J21: (Interest payment) | M21: [$'000] | T21: <- negative number
J23: Principal
A24: =IF(OR(NOT(ISNUMBER($N$24)),ISERROR($N$24)),1,IF(AND(LEN($N$24)>0,ABS(1-(($N$24 + -0.005621982946116)/($N$38 + -0.005621982946116)))<0.00005),0,1)) -> 1 | B24: =IF(OR(NOT(ISNUMBER($O$24)),ISERROR($O$24)),1,IF(AND(LEN($O$24)>0,ABS(1-(($O$24 + -0.005621982946116)/($O$38 + -0.005621982946116)))<0.00005),0,1)) -> 1 | C24: =IF(OR(NOT(ISNUMBER($P$24)),ISERROR($P$24)),1,IF(AND(LEN($P$24)>0,ABS(1-(($P$24 + -0.005621982946116)/($P$38 + -0.005621982946116)))<0.00005),0,1)) -> 1 | D24: =IF(OR(NOT(ISNUMBER($Q$24)),ISERROR($Q$24)),1,IF(AND(LEN($Q$24)>0,ABS(1-(($Q$24 + -0.005621982946116)/($Q$38 + -0.005621982946116)))<0.00005),0,1)) -> 1 | E24: =IF(OR(NOT(ISNUMBER($R$24)),ISERROR($R$24)),1,IF(AND(LEN($R$24)>0,ABS(1-(($R$24 + -0.005621982946116)/($R$38 + -0.005621982946116)))<0.00005),0,1)) -> 1 | F24: =IF(OR(NOT(ISNUMBER($S$24)),ISERROR($S$24)),1,IF(AND(LEN($S$24)>0,ABS(1-(($S$24 + -0.005621982946116)/($S$38 + -0.005621982946116)))<0.00005),0,1)) -> 1 | J24: Opening principal outstanding | M24: [$'000]
A25: =IF(OR(NOT(ISNUMBER($N$25)),ISERROR($N$25)),1,IF(AND(LEN($N$25)>0,ABS(1-(($N$25 + -0.005621982946116)/($N$39 + -0.005621982946116)))<0.00005),0,1)) -> 1 | B25: =IF(OR(NOT(ISNUMBER($O$25)),ISERROR($O$25)),1,IF(AND(LEN($O$25)>0,ABS(1-(($O$25 + -0.005621982946116)/($O$39 + -0.005621982946116)))<0.00005),0,1)) -> 1 | C25: =IF(OR(NOT(ISNUMBER($P$25)),ISERROR($P$25)),1,IF(AND(LEN($P$25)>0,ABS(1-(($P$25 + -0.005621982946116)/($P$39 + -0.005621982946116)))<0.00005),0,1)) -> 1 | D25: =IF(OR(NOT(ISNUMBER($Q$25)),ISERROR($Q$25)),1,IF(AND(LEN($Q$25)>0,ABS(1-(($Q$25 + -0.005621982946116)/($Q$39 + -0.005621982946116)))<0.00005),0,1)) -> 1 | E25: =IF(OR(NOT(ISNUMBER($R$25)),ISERROR($R$25)),1,IF(AND(LEN($R$25)>0,ABS(1-(($R$25 + -0.005621982946116)/($R$39 + -0.005621982946116)))<0.00005),0,1)) -> 1 | F25: =IF(OR(NOT(ISNUMBER($S$25)),ISERROR($S$25)),1,IF(AND(LEN($S$25)>0,ABS(1-(($S$25 + -0.005621982946116)/($S$39 + -0.005621982946116)))<0.00005),0,1)) -> 1 | J25: Capitalised interest | M25: [$'000]
A26: =IF(OR(NOT(ISNUMBER($N$26)),ISERROR($N$26)),1,IF(AND(LEN($N$26)>0,ABS(1-(($N$26 + -0.005621982946116)/($N$40 + -0.005621982946116)))<0.00005),0,1)) -> 1 | B26: =IF(OR(NOT(ISNUMBER($O$26)),ISERROR($O$26)),1,IF(AND(LEN($O$26)>0,ABS(1-(($O$26 + -0.005621982946116)/($O$40 + -0.005621982946116)))<0.00005),0,1)) -> 1 | C26: =IF(OR(NOT(ISNUMBER($P$26)),ISERROR($P$26)),1,IF(AND(LEN($P$26)>0,ABS(1-(($P$26 + -0.005621982946116)/($P$40 + -0.005621982946116)))<0.00005),0,1)) -> 1 | D26: =IF(OR(NOT(ISNUMBER($Q$26)),ISERROR($Q$26)),1,IF(AND(LEN($Q$26)>0,ABS(1-(($Q$26 + -0.005621982946116)/($Q$40 + -0.005621982946116)))<0.00005),0,1)) -> 1 | E26: =IF(OR(NOT(ISNUMBER($R$26)),ISERROR($R$26)),1,IF(AND(LEN($R$26)>0,ABS(1-(($R$26 + -0.005621982946116)/($R$40 + -0.005621982946116)))<0.00005),0,1)) -> 1 | F26: =IF(OR(NOT(ISNUMBER($S$26)),ISERROR($S$26)),1,IF(AND(LEN($S$26)>0,ABS(1-(($S$26 + -0.005621982946116)/($S$40 + -0.005621982946116)))<0.00005),0,1)) -> 1 | J26: (Principal payment) | M26: [$'000] | T26: <- negative number
A28: =IF(OR(NOT(ISNUMBER($N$28)),ISERROR($N$28)),1,IF(AND(LEN($N$28)>0,ABS(1-(($N$28 + -0.005621982946116)/($N$41 + -0.005621982946116)))<0.00005),0,1)) -> 1 | B28: =IF(OR(NOT(ISNUMBER($O$28)),ISERROR($O$28)),1,IF(AND(LEN($O$28)>0,ABS(1-(($O$28 + -0.005621982946116)/($O$41 + -0.005621982946116)))<0.00005),0,1)) -> 1 | C28: =IF(OR(NOT(ISNUMBER($P$28)),ISERROR($P$28)),1,IF(AND(LEN($P$28)>0,ABS(1-(($P$28 + -0.005621982946116)/($P$41 + -0.005621982946116)))<0.00005),0,1)) -> 1 | D28: =IF(OR(NOT(ISNUMBER($Q$28)),ISERROR($Q$28)),1,IF(AND(LEN($Q$28)>0,ABS(1-(($Q$28 + -0.005621982946116)/($Q$41 + -0.005621982946116)))<0.00005),0,1)) -> 1 | E28: =IF(OR(NOT(ISNUMBER($R$28)),ISERROR($R$28)),1,IF(AND(LEN($R$28)>0,ABS(1-(($R$28 + -0.005621982946116)/($R$41 + -0.005621982946116)))<0.00005),0,1)) -> 1 | F28: =IF(OR(NOT(ISNUMBER($S$28)),ISERROR($S$28)),1,IF(AND(LEN($S$28)>0,ABS(1-(($S$28 + -0.005621982946116)/($S$41 + -0.005621982946116)))<0.00005),0,1)) -> 1 | J28: Closing principal outstanding | M28: [$'000]
A30: =IF(OR(NOT(ISNUMBER($N$30)),ISERROR($N$30)),1,IF(AND(LEN($N$30)>0,ABS(1-(($N$30 + -0.005621982946116)/($N$42 + -0.005621982946116)))<0.00005),0,1)) -> 1 | J30: (NPV of Principal Payments) | M30: [$'000] | T30: <- negative number
A31: =IF(OR(NOT(ISNUMBER($N$31)),ISERROR($N$31)),1,IF(AND(LEN($N$31)>0,ABS(1-(($N$31 + -0.005621982946116)/($N$43 + -0.005621982946116)))<0.00005),0,1)) -> 1 | J31: (NPV of Interest Payments) | M31: [$'000] | T31: <- negative number
A32: =IF(OR(NOT(ISNUMBER($N$32)),ISERROR($N$32)),1,IF(AND(LEN($N$32)>0,ABS(1-(($N$32 + -0.005621982946116)/($N$44 + -0.005621982946116)))<0.00005),0,1)) -> 1 | J32: (NPV of Total Payments) | M32: [$'000] | T32: <- negative number
A34: =IF(OR(NOT(ISNUMBER($J$34)),ISERROR($J$34)),1,IF(AND(LEN($J$34)>0,ABS((1-($J$34*-0.880034565925598+ 0.247573018074036)/ 0.247573018074036))<0.00005),0,1)) -> 1 | J34: =O45 -> 1
J36: Principal to be repaid | M36: [$'000] | N36: =OFFSET(N38,0,cap_periods) -> 1254.4
J37: (Interest Payment) | M37: [$'000] | N37: =IF(N19<=cap_periods,0,IPMT($N$13,N19-cap_periods,num_periods-cap_periods,$N$36)) -> 0 | O37: 0 | P37: -150.528 | Q37: -119.0323588 | R37: -83.7572406 | S37: -44.24910824
J38: Opening Principal Outstanding | M38: [$'000] | N38: =N14 -> 1000 | O38: =IF(O19<=num_periods,N41,0) -> 1120 | P38: =IF(P19<=num_periods,O41,0) -> 1254.4 | Q38: =IF(Q19<=num_periods,P41,0) -> 991.9363231 | R38: =IF(R19<=num_periods,Q41,0) -> 697.977005 | S38: =IF(S19<=num_periods,R41,0) -> 368.7425687
J39: Capitalised Interest | M39: [$'000] | N39: =IF(N19<=cap_periods,N38*$N$13,0) -> 120 | O39: 134.4 | P39: 0 | Q39: 0 | R39: 0 | S39: 0
J40: (Principal Payment) | M40: [$'000] | N40: =IF(N19<=cap_periods,0,PPMT($N$13,N19-cap_periods,num_periods-cap_periods,$N$36)) -> 0 | O40: 0 | P40: -262.4636769 | Q40: -293.9593181 | R40: -329.2344363 | S40: -368.7425687
J41: Closing Principal Outstanding | M41: [$'000] | N41: =SUM(N38:N40) -> 1120 | O41: 1254.4 | P41: 991.9363231 | Q41: 697.977005 | R41: 368.7425687 | S41: 0
J42: (NPV of Principal Payments) | M42: [$'000] | N42: =NPV(N13,N40:S40) -> -747.2658439
J43: (NPV of Interest Payments) | M43: [$'000] | N43: =NPV(N13,N37:S37) -> -252.7341561
J44: (NPV of Total Payments) | M44: [$'000] | N44: =SUM(N42:N43) -> -1000
O45: =IF(O48,1,IF(AND(LEN(J18)=0,O47),0,1)) -> 1 | P45: <overall
M47: =MATCH(MAX(L49:L52),L49:L52,0) -> 1 | O47: =COUNT(N17)+COUNT(N21:S21)+COUNT(N24:S26)+COUNT(N28:S28)+COUNT(N30:N32)=ROWS(N17)*COLUMNS(N17)+ROWS(N21:S21)*COLUMNS(N21:S21)+ROWS(N24:S26)*COLUMNS(N24:S26)+ROWS(N28:S28)*COLUMNS(N28:S28)+ROWS(N30:N32)*COLUMNS(N30:N32) -> FALSE | P47: <All answered
L48: =N54 -> 1 | N48: diffs | O48: =ISERROR(SUM(N17,N21:S32)) -> FALSE | P48: <Excel errors in one or more formula
K49: 0 | L49: 1 | N49: =ABS(N17-N36) -> 1254.4
K50: =K49+1 -> 1 | L50: 1 | N50: =SUM(ABS(N21:S21-N37:S37)) -> 397.5667076
K51: =K50+1 -> 2 | L51: 1 | N51: =SUM(ABS(N24:S26-N38:S40)) -> 6941.855897
K52: =K51+1 -> 3 | L52: 1 | N52: =SUM(ABS(N28:S28-N41:S41)) -> 4433.055897
N53: =SUM(ABS(N30:N32-N42:N44)) -> 2000
N54: =IF(ROUND(SUM(N49:N53),8)=0,0,1) -> 1 | O54: <All correct
J56: ="Your answer will be incorrect if the number of interest free periods (in cell "& ADDRESS(ROW(cap_periods),COLUMN(cap_periods),4)&") is " & CHOOSE(M47,K49,K50,K51,K52)&"." -> Your answer will be incorrect if the number of interest free periods (in cell N15) is 0. | U56: Index
A57: =SUM($A$58:$G$115) -> 43 | I57: 2 | J57: A good test of your grasp of the concepts underlying the NPV & PMT family of functions.
J59: A business intends to develop two projects. The projects' cash needs are as follows: Project Alpha will require $2m per year in years 4 through 6 (inclusive) and Project Beta will require $3m per year in years 5 through 7 (inclusive).
J63: In the period before the first project begins the business needs to build up enough cash in a reserve account to fund the two projects in the subsquent years. In each of the years 1 through 3 a fixed amount will be deposited into the reserve account.
J67: So - in years 1 through 3 the business will deposit a fixed amount into the reserve account. In years 4 through 7 it will withdraw cash as required to fund projects Alpha and Beta.
J70: Cash flows always occur on the last day of the year in this order: 1) Interest on the reserve account calculated and credited, 2) deposit (if any) made and 3) withdrawal (if any) made.
J73: ="Interest earned on the reserve account is "&TEXT(M79,"0%")&" p.a. The business wants to have a zero cash balance in the account after the last withdrawal has been made. How much should the business deposit each year in years 1 through 3? Also calculate the account balance and interest earned in the table below." -> Interest earned on the reserve account is 5% p.a. The business wants to have a zero cash balance in the account after the last withdrawal has been made. How much should the business deposit each year in years 1 through 3? Also calculate the account balance and interest earned in the table below.
J77: Useful functions for this problem are NPV and PMT.
J79: Interest rate | L79: [%] | M79: 0.05 | N79: <- You can change this cell
J80: =IF(Q108,"Your answer is incorrect.",IF(Q109,IF(Q110,"Your answer is incorrect.",IF(MAX(L108:L111)>0,J113,"")),"")) -> 
J81: Year | M81: 1 | N81: =M81+1 -> 2 | O81: 3 | P81: 4 | Q81: 5 | R81: 6 | S81: 7
A82: =IF(OR(NOT(ISNUMBER($M$82)),ISERROR($M$82)),1,IF(AND(LEN($M$82)>0,ABS(1-(($M$82 + -0.005621982946116)/($M$95 + -0.005621982946116)))<0.00005),0,1)) -> 1 | B82: =IF(OR(NOT(ISNUMBER($N$82)),ISERROR($N$82)),1,IF(AND(LEN($N$82)>0,ABS(1-(($N$82 + -0.005621982946116)/($N$95 + -0.005621982946116)))<0.00005),0,1)) -> 1 | C82: =IF(OR(NOT(ISNUMBER($O$82)),ISERROR($O$82)),1,IF(AND(LEN($O$82)>0,ABS(1-(($O$82 + -0.005621982946116)/($O$95 + -0.005621982946116)))<0.00005),0,1)) -> 1 | D82: =IF(OR(NOT(ISNUMBER($P$82)),ISERROR($P$82)),1,IF(AND(LEN($P$82)>0,ABS(1-(($P$82 + -0.005621982946116)/($P$95 + -0.005621982946116)))<0.00005),0,1)) -> 1 | E82: =IF(OR(NOT(ISNUMBER($Q$82)),ISERROR($Q$82)),1,IF(AND(LEN($Q$82)>0,ABS(1-(($Q$82 + -0.005621982946116)/($Q$95 + -0.005621982946116)))<0.00005),0,1)) -> 1 | F82: =IF(OR(NOT(ISNUMBER($R$82)),ISERROR($R$82)),1,IF(AND(LEN($R$82)>0,ABS(1-(($R$82 + -0.005621982946116)/($R$95 + -0.005621982946116)))<0.00005),0,1)) -> 1 | G82: =IF(OR(NOT(ISNUMBER($S$82)),ISERROR($S$82)),1,IF(AND(LEN($S$82)>0,ABS(1-(($S$82 + -0.005621982946116)/($S$95 + -0.005621982946116)))<0.00005),0,1)) -> 1 | J82: Opening balance | L82: [$'000]
A83: =IF(OR(NOT(ISNUMBER($M$83)),ISERROR($M$83)),1,IF(AND(LEN($M$83)>0,ABS(1-(($M$83 + -0.005621982946116)/($M$96 + -0.005621982946116)))<0.00005),0,1)) -> 1 | B83: =IF(OR(NOT(ISNUMBER($N$83)),ISERROR($N$83)),1,IF(AND(LEN($N$83)>0,ABS(1-(($N$83 + -0.005621982946116)/($N$96 + -0.005621982946116)))<0.00005),0,1)) -> 1 | C83: =IF(OR(NOT(ISNUMBER($O$83)),ISERROR($O$83)),1,IF(AND(LEN($O$83)>0,ABS(1-(($O$83 + -0.005621982946116)/($O$96 + -0.005621982946116)))<0.00005),0,1)) -> 1 | D83: =IF(OR(NOT(ISNUMBER($P$83)),ISERROR($P$83)),1,IF(AND(LEN($P$83)>0,ABS(1-(($P$83 + -0.005621982946116)/($P$96 + -0.005621982946116)))<0.00005),0,1)) -> 1 | E83: =IF(OR(NOT(ISNUMBER($Q$83)),ISERROR($Q$83)),1,IF(AND(LEN($Q$83)>0,ABS(1-(($Q$83 + -0.005621982946116)/($Q$96 + -0.005621982946116)))<0.00005),0,1)) -> 1 | F83: =IF(OR(NOT(ISNUMBER($R$83)),ISERROR($R$83)),1,IF(AND(LEN($R$83)>0,ABS(1-(($R$83 + -0.005621982946116)/($R$96 + -0.005621982946116)))<0.00005),0,1)) -> 1 | G83: =IF(OR(NOT(ISNUMBER($S$83)),ISERROR($S$83)),1,IF(AND(LEN($S$83)>0,ABS(1-(($S$83 + -0.005621982946116)/($S$96 + -0.005621982946116)))<0.00005),0,1)) -> 1 | J83: Deposit | L83: [$'000]
A84: =IF(OR(NOT(ISNUMBER($M$84)),ISERROR($M$84)),1,IF(AND(LEN($M$84)>0,ABS(1-(($M$84 + -0.005621982946116)/($M$97 + -0.005621982946116)))<0.00005),0,1)) -> 1 | B84: =IF(OR(NOT(ISNUMBER($N$84)),ISERROR($N$84)),1,IF(AND(LEN($N$84)>0,ABS(1-(($N$84 + -0.005621982946116)/($N$97 + -0.005621982946116)))<0.00005),0,1)) -> 1 | C84: =IF(OR(NOT(ISNUMBER($O$84)),ISERROR($O$84)),1,IF(AND(LEN($O$84)>0,ABS(1-(($O$84 + -0.005621982946116)/($O$97 + -0.005621982946116)))<0.00005),0,1)) -> 1 | D84: =IF(OR(NOT(ISNUMBER($P$84)),ISERROR($P$84)),1,IF(AND(LEN($P$84)>0,ABS(1-(($P$84 + -0.005621982946116)/($P$97 + -0.005621982946116)))<0.00005),0,1)) -> 1 | E84: =IF(OR(NOT(ISNUMBER($Q$84)),ISERROR($Q$84)),1,IF(AND(LEN($Q$84)>0,ABS(1-(($Q$84 + -0.005621982946116)/($Q$97 + -0.005621982946116)))<0.00005),0,1)) -> 1 | F84: =IF(OR(NOT(ISNUMBER($R$84)),ISERROR($R$84)),1,IF(AND(LEN($R$84)>0,ABS(1-(($R$84 + -0.005621982946116)/($R$97 + -0.005621982946116)))<0.00005),0,1)) -> 1 | G84: =IF(OR(NOT(ISNUMBER($S$84)),ISERROR($S$84)),1,IF(AND(LEN($S$84)>0,ABS(1-(($S$84 + -0.005621982946116)/($S$97 + -0.005621982946116)))<0.00005),0,1)) -> 1 | J84: Interest earned | L84: [$'000]
A85: =IF(OR(NOT(ISNUMBER($M$85)),ISERROR($M$85)),1,IF(AND(LEN($M$85)>0,ABS(1-(($M$85 + -0.005621982946116)/($M$98 + -0.005621982946116)))<0.00005),0,1)) -> 1 | B85: =IF(OR(NOT(ISNUMBER($N$85)),ISERROR($N$85)),1,IF(AND(LEN($N$85)>0,ABS(1-(($N$85 + -0.005621982946116)/($N$98 + -0.005621982946116)))<0.00005),0,1)) -> 1 | C85: =IF(OR(NOT(ISNUMBER($O$85)),ISERROR($O$85)),1,IF(AND(LEN($O$85)>0,ABS(1-(($O$85 + -0.005621982946116)/($O$98 + -0.005621982946116)))<0.00005),0,1)) -> 1 | D85: =IF(OR(NOT(ISNUMBER($P$85)),ISERROR($P$85)),1,IF(AND(LEN($P$85)>0,ABS(1-(($P$85 + -0.005621982946116)/($P$98 + -0.005621982946116)))<0.00005),0,1)) -> 1 | E85: =IF(OR(NOT(ISNUMBER($Q$85)),ISERROR($Q$85)),1,IF(AND(LEN($Q$85)>0,ABS(1-(($Q$85 + -0.005621982946116)/($Q$98 + -0.005621982946116)))<0.00005),0,1)) -> 1 | F85: =IF(OR(NOT(ISNUMBER($R$85)),ISERROR($R$85)),1,IF(AND(LEN($R$85)>0,ABS(1-(($R$85 + -0.005621982946116)/($R$98 + -0.005621982946116)))<0.00005),0,1)) -> 1 | G85: =IF(OR(NOT(ISNUMBER($S$85)),ISERROR($S$85)),1,IF(AND(LEN($S$85)>0,ABS(1-(($S$85 + -0.005621982946116)/($S$98 + -0.005621982946116)))<0.00005),0,1)) -> 1 | J85: (Project Alpha cost) | L85: [$'000] | T85: <- negative number
A86: =IF(OR(NOT(ISNUMBER($M$86)),ISERROR($M$86)),1,IF(AND(LEN($M$86)>0,ABS(1-(($M$86 + -0.005621982946116)/($M$99 + -0.005621982946116)))<0.00005),0,1)) -> 1 | B86: =IF(OR(NOT(ISNUMBER($N$86)),ISERROR($N$86)),1,IF(AND(LEN($N$86)>0,ABS(1-(($N$86 + -0.005621982946116)/($N$99 + -0.005621982946116)))<0.00005),0,1)) -> 1 | C86: =IF(OR(NOT(ISNUMBER($O$86)),ISERROR($O$86)),1,IF(AND(LEN($O$86)>0,ABS(1-(($O$86 + -0.005621982946116)/($O$99 + -0.005621982946116)))<0.00005),0,1)) -> 1 | D86: =IF(OR(NOT(ISNUMBER($P$86)),ISERROR($P$86)),1,IF(AND(LEN($P$86)>0,ABS(1-(($P$86 + -0.005621982946116)/($P$99 + -0.005621982946116)))<0.00005),0,1)) -> 1 | E86: =IF(OR(NOT(ISNUMBER($Q$86)),ISERROR($Q$86)),1,IF(AND(LEN($Q$86)>0,ABS(1-(($Q$86 + -0.005621982946116)/($Q$99 + -0.005621982946116)))<0.00005),0,1)) -> 1 | F86: =IF(OR(NOT(ISNUMBER($R$86)),ISERROR($R$86)),1,IF(AND(LEN($R$86)>0,ABS(1-(($R$86 + -0.005621982946116)/($R$99 + -0.005621982946116)))<0.00005),0,1)) -> 1 | G86: =IF(OR(NOT(ISNUMBER($S$86)),ISERROR($S$86)),1,IF(AND(LEN($S$86)>0,ABS(1-(($S$86 + -0.005621982946116)/($S$99 + -0.005621982946116)))<0.00005),0,1)) -> 1 | J86: (Project Beta cost) | L86: [$'000] | T86: <- negative number
A87: =IF(OR(NOT(ISNUMBER($M$87)),ISERROR($M$87)),1,IF(AND(LEN($M$87)>0,ABS(1-(($M$87 + -0.005621982946116)/($M$100 + -0.005621982946116)))<0.00005),0,1)) -> 1 | B87: =IF(OR(NOT(ISNUMBER($N$87)),ISERROR($N$87)),1,IF(AND(LEN($N$87)>0,ABS(1-(($N$87 + -0.005621982946116)/($N$100 + -0.005621982946116)))<0.00005),0,1)) -> 1 | C87: =IF(OR(NOT(ISNUMBER($O$87)),ISERROR($O$87)),1,IF(AND(LEN($O$87)>0,ABS(1-(($O$87 + -0.005621982946116)/($O$100 + -0.005621982946116)))<0.00005),0,1)) -> 1 | D87: =IF(OR(NOT(ISNUMBER($P$87)),ISERROR($P$87)),1,IF(AND(LEN($P$87)>0,ABS(1-(($P$87 + -0.005621982946116)/($P$100 + -0.005621982946116)))<0.00005),0,1)) -> 1 | E87: =IF(OR(NOT(ISNUMBER($Q$87)),ISERROR($Q$87)),1,IF(AND(LEN($Q$87)>0,ABS(1-(($Q$87 + -0.005621982946116)/($Q$100 + -0.005621982946116)))<0.00005),0,1)) -> 1 | F87: =IF(OR(NOT(ISNUMBER($R$87)),ISERROR($R$87)),1,IF(AND(LEN($R$87)>0,ABS(1-(($R$87 + -0.005621982946116)/($R$100 + -0.005621982946116)))<0.00005),0,1)) -> 1 | G87: =IF(OR(NOT(ISNUMBER($S$87)),ISERROR($S$87)),1,IF(AND(LEN($S$87)>0,ABS(1-(($S$87 + -0.005621982946116)/($S$100 + -0.005621982946116)))<0.00005),0,1)) -> 1 | J87: Closing balance | L87: [$'000]
J89: Working space
A94: =IF(OR(NOT(ISNUMBER($J$94)),ISERROR($J$94)),1,IF(AND(LEN($J$94)>0,ABS((1-($J$94* 2.11056768894196+-0.24201488494873)/-0.24201488494873))<0.00005),0,1)) -> 1 | J94: =P112 -> 1
J95: Opening balance | L95: [$'000] | M95: 0 | N95: =M100 -> 4195.782621 | O95: 8601.354374 | P95: 13227.20471 | Q95: 11888.56495 | R95: 7482.993197 | S95: 2857.142857
J96: Deposit | L96: [$'000] | M96: =$P$105 -> 4195.782621 | N96: =$P$105 -> 4195.782621 | O96: =$P$105 -> 4195.782621 | P96: 0 | Q96: 0 | R96: 0 | S96: 0
J97: Interest earned | L97: [$'000] | M97: =M95*$M$79 -> 0 | N97: 209.7891311 | O97: 430.0677187 | P97: 661.3602357 | Q97: 594.4282475 | R97: 374.1496599 | S97: 142.8571429
J98: (Project Alpha cost) | L98: [$'000] | M98: 0 | N98: 0 | O98: 0 | P98: -2000 | Q98: -2000 | R98: -2000 | S98: 0
J99: (Project Beta cost) | L99: [$'000] | M99: 0 | N99: 0 | O99: 0 | P99: 0 | Q99: -3000 | R99: -3000 | S99: -3000
J100: Closing balance | L100: [$'000] | M100: =SUM(M95:M99) -> 4195.782621 | N100: 8601.354374 | O100: 13227.20471 | P100: 11888.56495 | Q100: 7482.993197 | R100: 2857.142857 | S100: 0
J102: Present value (at start of year 4) of project Alpha cash flows | P102: =NPV(M79,P98:S98) -> -5446.496059
J103: Present value (at start of year 4) of project Beta cash flows | P103: =NPV(M79,P99:S99) -> -7780.708655
J104: Total of above | P104: =SUM(P102:P103) -> -13227.20471
J105: Fixed payments required to accumulate enough to fund projects | P105: =PMT(M79,3,0,P104) -> 4195.782621
L107: =Q110 -> 1 | Q107: =MATCH(MAX(L108:L111),L108:L111,0) -> 1
K108: 0.05 | L108: 1 | Q108: =ISERROR(SUM(M82:S87)+SUM(J90:P93)) -> FALSE | R108: < excel errors in one or more formulae
K109: 0.06 | L109: 1 | Q109: =(COUNT(M82:S87)=ROWS(M82:S87)*COLUMNS(M82:S87)) -> FALSE | R109: <all filled
K110: 0.07 | L110: 1 | Q110: =IF(ROUND(SUM(ABS(M82:S87-M95:S100)),8)>0,1,0) -> 1 | R110: <different
K111: 0.08 | L111: 1
P112: =IF(Q108,1,IF(AND(LEN(J80)=0,Q109),0,1)) -> 1 | Q112: <overall
J113: ="Your answer will be incorrect if the interest rate (in cell " & ADDRESS(ROW(M79),COLUMN(M79),4)&") is " & TEXT(CHOOSE(Q107,K108,K109,K110,K111),"0%")&"." -> Your answer will be incorrect if the interest rate (in cell M79) is 5%.
U115: Index
A116: =SUM($A$117:$G$161) -> 18 | I116: 3 | J116: A more complex version of the above - avoid the solver - we want a solution that is automatic.
J118: Over a period of four years $1,000,000 has to be accumulated in an interest-bearing account. Four deposits are made at yearly intervals (at the end of each year) into the account.
J121: ="The account has an initial balance of zero. Interest of "&TEXT(M131,"0%") & " p.a. is paid in arrears at the end of each year." -> The account has an initial balance of zero. Interest of 6% p.a. is paid in arrears at the end of each year.
J123: Of the total amount deposited over the four years 10% has to be deposited in the first year, 20% in the second, 30% in the third and 40% in the fourth.
J126: Calculate the total amount deposited, the yearly deposits and the account balance over the four years. Useful functions for this problem are FVSCHEDULE and NPV.
J128: =IF(Q158,"Your answer is incorrect.",IF(Q156,IF(Q157,"Your answer is incorrect.",IF(MAX(L156:L159)>0,J161,"")),"")) -> 
J129: Year | L129: [yr] | M129: 1 | N129: 2 | O129: 3 | P129: 4
J130: Percent deposited | L130: [%] | M130: 0.1 | N130: 0.2 | O130: 0.3 | P130: 0.4
J131: Interest earned | L131: [%] | M131: 0.06 | N131: =M131 -> 0.06 | O131: =N131 -> 0.06 | P131: =O131 -> 0.06 | Q131: ="<- You can change cell "& ADDRESS(ROW($M$131),COLUMN($M$131),4) -> <- You can change cell M131
A133: =IF(OR(NOT(ISNUMBER($M$133)),ISERROR($M$133)),1,IF(AND(LEN($M$133)>0,ABS(1-(($M$133 + -0.005621982946116)/($M$146 + -0.005621982946116)))<0.00005),0,1)) -> 1 | B133: =IF(OR(NOT(ISNUMBER($N$133)),ISERROR($N$133)),1,IF(AND(LEN($N$133)>0,ABS(1-(($N$133 + -0.005621982946116)/($N$146 + -0.005621982946116)))<0.00005),0,1)) -> 1 | C133: =IF(OR(NOT(ISNUMBER($O$133)),ISERROR($O$133)),1,IF(AND(LEN($O$133)>0,ABS(1-(($O$133 + -0.005621982946116)/($O$146 + -0.005621982946116)))<0.00005),0,1)) -> 1 | D133: =IF(OR(NOT(ISNUMBER($P$133)),ISERROR($P$133)),1,IF(AND(LEN($P$133)>0,ABS(1-(($P$133 + -0.005621982946116)/($P$146 + -0.005621982946116)))<0.00005),0,1)) -> 1 | J133: Opening balance | L133: [$ 000's]
A134: =IF(OR(NOT(ISNUMBER($M$134)),ISERROR($M$134)),1,IF(AND(LEN($M$134)>0,ABS(1-(($M$134 + -0.005621982946116)/($M$147 + -0.005621982946116)))<0.00005),0,1)) -> 1 | B134: =IF(OR(NOT(ISNUMBER($N$134)),ISERROR($N$134)),1,IF(AND(LEN($N$134)>0,ABS(1-(($N$134 + -0.005621982946116)/($N$147 + -0.005621982946116)))<0.00005),0,1)) -> 1 | C134: =IF(OR(NOT(ISNUMBER($O$134)),ISERROR($O$134)),1,IF(AND(LEN($O$134)>0,ABS(1-(($O$134 + -0.005621982946116)/($O$147 + -0.005621982946116)))<0.00005),0,1)) -> 1 | D134: =IF(OR(NOT(ISNUMBER($P$134)),ISERROR($P$134)),1,IF(AND(LEN($P$134)>0,ABS(1-(($P$134 + -0.005621982946116)/($P$147 + -0.005621982946116)))<0.00005),0,1)) -> 1 | J134: Deposit | L134: [$ 000's]
A135: =IF(OR(NOT(ISNUMBER($M$135)),ISERROR($M$135)),1,IF(AND(LEN($M$135)>0,ABS(1-(($M$135 + -0.005621982946116)/($M$148 + -0.005621982946116)))<0.00005),0,1)) -> 1 | B135: =IF(OR(NOT(ISNUMBER($N$135)),ISERROR($N$135)),1,IF(AND(LEN($N$135)>0,ABS(1-(($N$135 + -0.005621982946116)/($N$148 + -0.005621982946116)))<0.00005),0,1)) -> 1 | C135: =IF(OR(NOT(ISNUMBER($O$135)),ISERROR($O$135)),1,IF(AND(LEN($O$135)>0,ABS(1-(($O$135 + -0.005621982946116)/($O$148 + -0.005621982946116)))<0.00005),0,1)) -> 1 | D135: =IF(OR(NOT(ISNUMBER($P$135)),ISERROR($P$135)),1,IF(AND(LEN($P$135)>0,ABS(1-(($P$135 + -0.005621982946116)/($P$148 + -0.005621982946116)))<0.00005),0,1)) -> 1 | J135: Interest earned | L135: [$ 000's]
A136: =IF(OR(NOT(ISNUMBER($M$136)),ISERROR($M$136)),1,IF(AND(LEN($M$136)>0,ABS(1-(($M$136 + -0.005621982946116)/($M$149 + -0.005621982946116)))<0.00005),0,1)) -> 1 | B136: =IF(OR(NOT(ISNUMBER($N$136)),ISERROR($N$136)),1,IF(AND(LEN($N$136)>0,ABS(1-(($N$136 + -0.005621982946116)/($N$149 + -0.005621982946116)))<0.00005),0,1)) -> 1 | C136: =IF(OR(NOT(ISNUMBER($O$136)),ISERROR($O$136)),1,IF(AND(LEN($O$136)>0,ABS(1-(($O$136 + -0.005621982946116)/($O$149 + -0.005621982946116)))<0.00005),0,1)) -> 1 | D136: =IF(OR(NOT(ISNUMBER($P$136)),ISERROR($P$136)),1,IF(AND(LEN($P$136)>0,ABS(1-(($P$136 + -0.005621982946116)/($P$149 + -0.005621982946116)))<0.00005),0,1)) -> 1 | J136: Closing balance | L136: [$ 000's]
A138: =IF(OR(NOT(ISNUMBER($M$138)),ISERROR($M$138)),1,IF(AND(LEN($M$138)>0,ABS(1-(($M$138 + -0.005621982946116)/($M$150 + -0.005621982946116)))<0.00005),0,1)) -> 1 | J138: Total deposited | L138: [$ 000's]
J140: Working space
A144: =IF(OR(NOT(ISNUMBER($J$144)),ISERROR($J$144)),1,IF(AND(LEN($J$144)>0,ABS((1-($J$144* 3.78593742847443+-0.370358228683472)/-0.370358228683472))<0.00005),0,1)) -> 1 | J144: =Q159 -> 1
J146: Opening balance | L146: [$ 000's] | M146: 0 | N146: =M149 -> 94.17777902 | O146: =N149 -> 288.1840038 | P146: =O149 -> 588.0083811
J147: Deposit | L147: [$ 000's] | M147: =M130*$M$150 -> 94.17777902 | N147: =N130*$M$150 -> 188.355558 | O147: =O130*$M$150 -> 282.5333371 | P147: =P130*$M$150 -> 376.7111161
J148: Interest earned | L148: [$ 000's] | M148: =M146*M131 -> 0 | N148: =N146*N131 -> 5.650666741 | O148: =O146*O131 -> 17.29104023 | P148: =P146*P131 -> 35.28050286
J149: Closing balance | L149: [$ 000's] | M149: =SUM(M146:M148) -> 94.17777902 | N149: =SUM(N146:N148) -> 288.1840038 | O149: =SUM(O146:O148) -> 588.0083811 | P149: =SUM(P146:P148) -> 1000
J150: Total deposited | L150: [$ 000's] | M150: =IF(M152=0,0,1000000/M153) -> 941.7777902
J152: NPV of deposit profile | L152: [$'s] | M152: =NPV(M131,M130:P130) -> 0.8410621608
J153: FV deposit profile | L153: [$ 000's] | M153: =FVSCHEDULE(1000*M152,M131:P131) -> 1061.8216
L155: =Q157 -> 1 | Q155: =MATCH(MAX(L156:L159),L156:L159,0) -> 1
K156: 0.05 | L156: 1 | Q156: =(COUNT(M133:P136)+COUNT(M138) = ROWS(M133:P136)*COLUMNS(M133:P136)+ROWS(M138)*COLUMNS(M138)) -> FALSE | R156: < All filled
K157: =K156+1% -> 0.06 | L157: 1 | Q157: =IF(ROUND(SUM(ABS(M133:P136-M146:P149)),8)=0,0,1) -> 1 | R157: < All correct
K158: =K157+1% -> 0.07 | L158: 1 | Q158: =ISERROR(SUM(M133:P138)) -> FALSE | R158: < excel errors
K159: =K158+1% -> 0.08 | L159: 1 | Q159: =IF(Q158,1,IF(AND(LEN(J128)=0,Q156),0,1)) -> 1 | R159: <overall
J161: ="Your answer will be incorrect if the interest rate (in cell " & ADDRESS(ROW(M131),COLUMN(M131),4)& ") is " & TEXT(CHOOSE(Q155,K156,K157,K158,K159),"0%")&"." -> Your answer will be incorrect if the interest rate (in cell M131) is 5%. | U161: Index
A162: =SUM($A$163:$G$172) -> 1 | I162: 4 | J162: NPV - When does it assume the first cash flow occurs? That leads to the answer.
J164: ="The table below in cells "& ADDRESS(ROW($K$167),COLUMN($K$167),4) & ":" & ADDRESS(ROW($P$168), COLUMN($P$168), 4) & " describes a series of regular cash flows. The first cash flow (i.e. the one at period '0') occurs immediately. Calculate the present value of the cash flows. The applicable discount rate is in cell "& ADDRESS(ROW($L$170),COLUMN($L$170),4)&"." -> The table below in cells K167:P168 describes a series of regular cash flows. The first cash flow (i.e. the one at period '0') occurs immediately. Calculate the present value of the cash flows. The applicable discount rate is in cell L170.
J167: Period | K167: 0 | L167: =K167+1 -> 1 | M167: =L167+1 -> 2 | N167: =M167+1 -> 3 | O167: =N167+1 -> 4 | P167: =O167+1 -> 5
J168: Amount | K168: -26 | L168: -36 | M168: 5 | N168: 15 | O168: 28 | P168: 29
J170: Discount rate: | L170: 0.1
A171: =IF(OR(NOT(ISNUMBER($L$171)),ISERROR($L$171)),1,IF(AND(LEN($L$171)>0,ABS((1-($L$171* 0.697960257530212+ 0.106938242912292)/-4.21638406783732))<0.00005),0,1)) -> 1 | J171: Value:
U172: Index
A173: =SUM($A$174:$G$190) -> 1 | I173: =I162+1 -> 5 | J173: XNPV - Which date does it value for? That leads to the answer.
J175: ="The table below in cells "& ADDRESS(ROW($K$178),COLUMN($K$178),4) & ":" & ADDRESS(ROW($P$179), COLUMN($P$179), 4)&" describes a series of dated cash flows. Calculate the value of the cash flows as at the valuation date in cell "& ADDRESS(ROW($L$182),COLUMN($L$182),4)&". The discount rate applicable is in cell "& ADDRESS(ROW($L$181),COLUMN($L$181),4)&"." -> The table below in cells K178:P179 describes a series of dated cash flows. Calculate the value of the cash flows as at the valuation date in cell L182. The discount rate applicable is in cell L181.
J178: Date | K178: 2011-09-01 | L178: 2012-01-09 | M178: 2012-05-05 | N178: 2012-08-06 | O178: 2012-10-09 | P178: 2012-12-03
J179: Amount | K179: -34 | L179: -23 | M179: 15 | N179: 35 | O179: 37 | P179: 78
J180: =IF(ISERROR(NOW() +XNPV( L181,K179:P179,K178:P178)),"You need to install the analysis toolpak in order to complete this question.","") -> 
J181: Discount rate: | L181: 0.13 | N181: Working space
J182: Valuation date: | L182: 2011-06-30
A183: =IF(OR(NOT(ISNUMBER($L$183)),ISERROR($L$183)),1,IF(AND(LEN($L$183)>0,ABS((1-($L$183* 1.10196650028229+ 0.19386625289917)/ 95.3899398422425))<0.00005),0,1)) -> 1 | J183: Value:
L185: Dummy calc to check whether analysis toolpak is installed.
L187: =XNPV(L181,K179:P179,K178:P178) -> 88.22915678 | O187: =IF(ISERROR(NOW() + L187),"You need to install the analysis toolpak in order to complete this question.","") ->  | P187: <-check that xnpv is installed
L190: Copyright (c) 2020 Tykoh Group Pty Ltd. All rights reserved. | U190: Index
L191: www.tykoh.com

Sheet Dates
K1: Click here to see what your answer should look like.
R2: Miscellaneous | S2: Dates
A3: =SUM($A$4:$H$36) -> 9 | J3: 1 | K3: Dates - generate date of first day in month for successive months - easy
K5: ="Cell "& ADDRESS(ROW($K$9),COLUMN($K$9),4) &" below lets you select a date. To the right of that cell, in cells "& ADDRESS(ROW($L$9),COLUMN($L$9),4) & ":" & ADDRESS(ROW($S$9), COLUMN($S$9), 4) & ", generate dates at monthly intervals. Each date should be the first day of the month. The first date generated should be in February." -> Cell K9 below lets you select a date. To the right of that cell, in cells L9:S9, generate dates at monthly intervals. Each date should be the first day of the month. The first date generated should be in February.
K8: =IF(ISERROR(NOW() +EOMONTH(1,1)),"You need the analysis toolpak installed to do this question.",IF(ISERROR(SUM(L9:S9)),"Your answer is incorrect.",IF(O35,IF(NOT(O36),"Your answer is incorrect.",IF(MAX(K27:S29)>0,K32,"")),""))) -> 
A9: =IF(OR(NOT(ISNUMBER($L$9)),ISERROR($L$9)),1,IF(AND(LEN($L$9)>0,ABS(1-(($L$9 + -0.005621982946116)/($L$14 + -0.005621982946116)))<0.000005),0,1)) -> 1 | B9: =IF(OR(NOT(ISNUMBER($M$9)),ISERROR($M$9)),1,IF(AND(LEN($M$9)>0,ABS(1-(($M$9 + -0.005621982946116)/($M$14 + -0.005621982946116)))<0.000005),0,1)) -> 1 | C9: =IF(OR(NOT(ISNUMBER($N$9)),ISERROR($N$9)),1,IF(AND(LEN($N$9)>0,ABS(1-(($N$9 + -0.005621982946116)/($N$14 + -0.005621982946116)))<0.000005),0,1)) -> 1 | D9: =IF(OR(NOT(ISNUMBER($O$9)),ISERROR($O$9)),1,IF(AND(LEN($O$9)>0,ABS(1-(($O$9 + -0.005621982946116)/($O$14 + -0.005621982946116)))<0.000005),0,1)) -> 1 | E9: =IF(OR(NOT(ISNUMBER($P$9)),ISERROR($P$9)),1,IF(AND(LEN($P$9)>0,ABS(1-(($P$9 + -0.005621982946116)/($P$14 + -0.005621982946116)))<0.000005),0,1)) -> 1 | F9: =IF(OR(NOT(ISNUMBER($Q$9)),ISERROR($Q$9)),1,IF(AND(LEN($Q$9)>0,ABS(1-(($Q$9 + -0.005621982946116)/($Q$14 + -0.005621982946116)))<0.000005),0,1)) -> 1 | G9: =IF(OR(NOT(ISNUMBER($R$9)),ISERROR($R$9)),1,IF(AND(LEN($R$9)>0,ABS(1-(($R$9 + -0.005621982946116)/($R$14 + -0.005621982946116)))<0.000005),0,1)) -> 1 | H9: =IF(OR(NOT(ISNUMBER($S$9)),ISERROR($S$9)),1,IF(AND(LEN($S$9)>0,ABS(1-(($S$9 + -0.005621982946116)/($S$14 + -0.005621982946116)))<0.000005),0,1)) -> 1 | K9: 2012-01-01
K10: =" ^^^ You can change cell "& ADDRESS(ROW($K$9),COLUMN($K$9),4)&"." -> ^^^ You can change cell K9.
A12: =IF(OR(NOT(ISNUMBER($K$12)),ISERROR($K$12)),1,IF(AND(LEN($K$12)>0,ABS((1-($K$12* 3.71359527111053+ 0.0228043794631958)/ 0.0228043794631958))<0.00005),0,1)) -> 1 | K12: =O34 -> 1
L14: =EOMONTH(K9,0)+1 -> 2012-02-01 | M14: =EOMONTH(L14,0)+1 -> 2012-03-01 | N14: 2012-04-01 | O14: 2012-05-01 | P14: 2012-06-01 | Q14: 2012-07-01 | R14: 2012-08-01 | S14: 2012-09-01
L16: Their's
L17: =L9 -> 00:00:00 | M17: 00:00:00 | N17: 00:00:00 | O17: 00:00:00 | P17: 00:00:00 | Q17: 00:00:00 | R17: 00:00:00 | S17: 00:00:00
K18: 2011-01-01 | L18: 00:00:00 | M18: 00:00:00 | N18: 00:00:00 | O18: 00:00:00 | P18: 00:00:00 | Q18: 00:00:00 | R18: 00:00:00 | S18: 00:00:00
K19: 2012-01-01 | L19: 00:00:00 | M19: 00:00:00 | N19: 00:00:00 | O19: 00:00:00 | P19: 00:00:00 | Q19: 00:00:00 | R19: 00:00:00 | S19: 00:00:00
K20: 2013-01-01 | L20: 00:00:00 | M20: 00:00:00 | N20: 00:00:00 | O20: 00:00:00 | P20: 00:00:00 | Q20: 00:00:00 | R20: 00:00:00 | S20: 00:00:00
L22: =L14 -> 2012-02-01 | M22: 2012-03-01 | N22: 2012-04-01 | O22: 2012-05-01 | P22: 2012-06-01 | Q22: 2012-07-01 | R22: 2012-08-01 | S22: 2012-09-01
K23: =K18 -> 2011-01-01 | L23: 2011-02-01 | M23: 2011-03-01 | N23: 2011-04-01 | O23: 2011-05-01 | P23: 2011-06-01 | Q23: 2011-07-01 | R23: 2011-08-01 | S23: 2011-09-01
K24: =K19 -> 2012-01-01 | L24: 2012-02-01 | M24: 2012-03-01 | N24: 2012-04-01 | O24: 2012-05-01 | P24: 2012-06-01 | Q24: 2012-07-01 | R24: 2012-08-01 | S24: 2012-09-01
K25: =K20 -> 2013-01-01 | L25: 2013-02-01 | M25: 2013-03-01 | N25: 2013-04-01 | O25: 2013-05-01 | P25: 2013-06-01 | Q25: 2013-07-01 | R25: 2013-08-01 | S25: 2013-09-01
K27: =MAX(L27:S27) -> 1 | L27: =IF(L18=L23,0,1) -> 1 | M27: 1 | N27: 1 | O27: 1 | P27: 1 | Q27: 1 | R27: 1 | S27: 1
K28: =MAX(L28:S28) -> 1 | L28: 1 | M28: 1 | N28: 1 | O28: 1 | P28: 1 | Q28: 1 | R28: 1 | S28: 1
K29: =MAX(L29:S29) -> 1 | L29: 1 | M29: 1 | N29: 1 | O29: 1 | P29: 1 | Q29: 1 | R29: 1 | S29: 1
K30: =MATCH(MAX(K27:K29),K27:K29,0) -> 1
K32: ="Your answer will be incorrect if the date chosen in cell "& ADDRESS(ROW($K$9),COLUMN($K$9),4) & " is " & TEXT(CHOOSE(K30,K23,K24,K25),"d-mmm-yy")&"." -> Your answer will be incorrect if the date chosen in cell K9 is 1-Jan-11.
O33: =OR(ISERROR(NOW() +EOMONTH(1,1)),ISERROR(SUM(L9:S9))) -> FALSE | P33: < excel error(s)
O34: =IF(O33,1,IF(AND(LEN(K8)=0,O35),0,1)) -> 1 | P34: <overall
O35: =COUNT(L9:S9)=COLUMNS(L9:S9)*ROWS(L9:S9) -> FALSE | P35: < all complete
O36: =SUM(ABS(L9:S9-L14:S14))=0 -> FALSE | P36: <current answer is correct | T36: Index
A37: =SUM($A$38:$H$72) -> 8 | J37: =J3+1 -> 2 | K37: Dates - generate first business day in successive months - harder
K39: ="Cell "& ADDRESS(ROW($K$43),COLUMN($K$43),4) & " below lets you generate a date. To the right of that cell, in cells "& ADDRESS(ROW($M$43),COLUMN($M$43),4) & ":" & ADDRESS(ROW($S$43), COLUMN($S$43), 4) & ", generate the first business (i.e. non-weekend) dates in successive months. The first date should be in January." -> Cell K43 below lets you generate a date. To the right of that cell, in cells M43:S43, generate the first business (i.e. non-weekend) dates in successive months. The first date should be in January.
K41: =IF(ISERROR(NOW() +EOMONTH(1,1)),"You need the analysis toolpak installed to do this question.",IF(ISERROR(SUM(M43:S43)),"Your answer is incorrect.",IF(O68,IF(NOT(O69),"Your answer is incorrect.",IF(MAX(M60:S62)>0,L65,"")),""))) -> 
K42: Year | M42: First business (i.e. non-weekend) date in successive months
A43: =IF(OR(NOT(ISNUMBER($M$43)),ISERROR($M$43)),1,IF(AND(LEN($M$43)>0,ABS(1-(($M$43 + -0.005621982946116)/($M$48 + -0.005621982946116)))<0.000005),0,1)) -> 1 | B43: =IF(OR(NOT(ISNUMBER($N$43)),ISERROR($N$43)),1,IF(AND(LEN($N$43)>0,ABS(1-(($N$43 + -0.005621982946116)/($N$48 + -0.005621982946116)))<0.000005),0,1)) -> 1 | C43: =IF(OR(NOT(ISNUMBER($O$43)),ISERROR($O$43)),1,IF(AND(LEN($O$43)>0,ABS(1-(($O$43 + -0.005621982946116)/($O$48 + -0.005621982946116)))<0.000005),0,1)) -> 1 | D43: =IF(OR(NOT(ISNUMBER($P$43)),ISERROR($P$43)),1,IF(AND(LEN($P$43)>0,ABS(1-(($P$43 + -0.005621982946116)/($P$48 + -0.005621982946116)))<0.000005),0,1)) -> 1 | E43: =IF(OR(NOT(ISNUMBER($Q$43)),ISERROR($Q$43)),1,IF(AND(LEN($Q$43)>0,ABS(1-(($Q$43 + -0.005621982946116)/($Q$48 + -0.005621982946116)))<0.000005),0,1)) -> 1 | F43: =IF(OR(NOT(ISNUMBER($R$43)),ISERROR($R$43)),1,IF(AND(LEN($R$43)>0,ABS(1-(($R$43 + -0.005621982946116)/($R$48 + -0.005621982946116)))<0.000005),0,1)) -> 1 | G43: =IF(OR(NOT(ISNUMBER($S$43)),ISERROR($S$43)),1,IF(AND(LEN($S$43)>0,ABS(1-(($S$43 + -0.005621982946116)/($S$48 + -0.005621982946116)))<0.000005),0,1)) -> 1 | K43: 2011-01-01
K44: =" ^^^ You can change cell "& ADDRESS(ROW($K$43),COLUMN($K$43),4)&"." -> ^^^ You can change cell K43.
A46: =IF(OR(NOT(ISNUMBER($K$46)),ISERROR($K$46)),1,IF(AND(LEN($K$46)>0,ABS((1-($K$46*-4.8712569475174+ 0.150017857551575)/ 0.150017857551575))<0.00005),0,1)) -> 1 | K46: =O67 -> 1
M48: =WORKDAY(EOMONTH(K43,-1),1) -> 2011-01-03 | N48: =WORKDAY(EOMONTH(M48,0),1) -> 2011-02-01 | O48: 2011-03-01 | P48: 2011-04-01 | Q48: 2011-05-02 | R48: 2011-06-01 | S48: 2011-07-01
M50: =M43 -> 00:00:00 | N50: 00:00:00 | O50: 00:00:00 | P50: 00:00:00 | Q50: 00:00:00 | R50: 00:00:00 | S50: 00:00:00
L51: =K23 -> 2011-01-01 | M51: 00:00:00 | N51: 00:00:00 | O51: 00:00:00 | P51: 00:00:00 | Q51: 00:00:00 | R51: 00:00:00 | S51: 00:00:00
L52: =K24 -> 2012-01-01 | M52: 00:00:00 | N52: 00:00:00 | O52: 00:00:00 | P52: 00:00:00 | Q52: 00:00:00 | R52: 00:00:00 | S52: 00:00:00
L53: =K25 -> 2013-01-01 | M53: 00:00:00 | N53: 00:00:00 | O53: 00:00:00 | P53: 00:00:00 | Q53: 00:00:00 | R53: 00:00:00 | S53: 00:00:00
M55: =M48 -> 2011-01-03 | N55: 2011-02-01 | O55: 2011-03-01 | P55: 2011-04-01 | Q55: 2011-05-02 | R55: 2011-06-01 | S55: 2011-07-01
L56: =L51 -> 2011-01-01 | M56: 2011-01-03 | N56: 2011-02-01 | O56: 2011-03-01 | P56: 2011-04-01 | Q56: 2011-05-02 | R56: 2011-06-01 | S56: 2011-07-01
L57: =L52 -> 2012-01-01 | M57: 2012-01-02 | N57: 2012-02-01 | O57: 2012-03-01 | P57: 2012-04-02 | Q57: 2012-05-01 | R57: 2012-06-01 | S57: 2012-07-02
L58: =L53 -> 2013-01-01 | M58: 2013-01-01 | N58: 2013-02-01 | O58: 2013-03-01 | P58: 2013-04-01 | Q58: 2013-05-01 | R58: 2013-06-03 | S58: 2013-07-01
L60: =MAX(M60:S60) -> 1 | M60: =IF(M51=M56,0,1) -> 1 | N60: 1 | O60: 1 | P60: 1 | Q60: 1 | R60: 1 | S60: 1
L61: =MAX(M61:S61) -> 1 | M61: 1 | N61: 1 | O61: 1 | P61: 1 | Q61: 1 | R61: 1 | S61: 1
L62: =MAX(M62:S62) -> 1 | M62: 1 | N62: 1 | O62: 1 | P62: 1 | Q62: 1 | R62: 1 | S62: 1
L63: =MATCH(MAX(L60:L62),L60:L62,0) -> 1
L65: ="Your answer will be incorrect if the date chosen in cell "& ADDRESS(ROW($K$43),COLUMN($K$43),4) & " is " & TEXT(CHOOSE(L63,L56,L57,L58),"d-mmm-yy")&"." -> Your answer will be incorrect if the date chosen in cell K43 is 1-Jan-11.
O66: =OR(ISERROR(NOW() +EOMONTH(1,1)),ISERROR(SUM(M43:S43))) -> FALSE | P66: < excel error(s)
O67: =IF(O66,1,IF(AND(LEN(K41)=0,O68),0,1)) -> 1 | P67: < overall
O68: =COUNT(M43:S43)=COLUMNS(M43:S43)*ROWS(M43:S43) -> FALSE | P68: < all complete
O69: =SUM(ABS(M43:S43-M48:S48))=0 -> FALSE | P69: <current answer is correct
L72: Copyright (c) 2020 Tykoh Group Pty Ltd. All rights reserved. | T72: Index
L73: www.tykoh.com

Sheet Sorting
E1: Click here to see what your answer should look like.
L2: Miscellaneous | M2: Sorting
A3: =SUM($A$4:$B$117) -> 14 | D3: 1 | E3: Sorting - dynamically - fairly easy
E5: ="Cell "& ADDRESS(ROW($F$8),COLUMN($F$8),4) & " below lets you select a 'data set'. A data set - in this case - is a single column of seven numbers and the selected data set is shown in cells "& ADDRESS(ROW($F$14),COLUMN($F$14),4) & ":" & ADDRESS(ROW($F$20), COLUMN($F$20), 4)&"." -> Cell F8 below lets you select a 'data set'. A data set - in this case - is a single column of seven numbers and the selected data set is shown in cells F14:F20.
E8: Data set | F8: 2 | G8: <- You can change this cell
E10: ="In cells "& ADDRESS(ROW($H$14),COLUMN($H$14),4) & ":" & ADDRESS(ROW($H$20), COLUMN($H$20), 4)&" are formulae that show how you can dynamically sort the selected data set (sorting is largest first through to smallest at end)." -> In cells H14:H20 are formulae that show how you can dynamically sort the selected data set (sorting is largest first through to smallest at end).
E13: Index | F13: Data | H13: Sorted
E14: 1 | F14: =INDIRECT("sort_a_"&F8) -> 1 | H14: =LARGE($F$14:$F$20,E14) -> 7
E15: =E14+1 -> 2 | F15: 2 | H15: 6
E16: 3 | F16: 3 | H16: 5
E17: 4 | F17: 4 | H17: 4
E18: 5 | F18: 5 | H18: 3
E19: 6 | F19: 6 | H19: 2
E20: 7 | F20: 7 | H20: 1
F22: 4 | G22: 1 | H22: 89
F23: 23 | G23: 2 | H23: 77
F24: 17 | G24: 3 | H24: 62
F25: 4 | G25: 4 | H25: 101
F26: 67 | G26: 5 | H26: 59
F27: -3 | G27: 6 | H27: 73
F28: 12 | G28: 7 | H28: 88
E31: 1
E32: 2
E33: 3
E34: ="A similar problem is described below. Cell "& ADDRESS(ROW($F$37),COLUMN($F$37),4) &" lets you choose a data set. The data set contains two columns and is shown in cells "& ADDRESS(ROW($F$45),COLUMN($F$45),4) & ":" & ADDRESS(ROW($G$51), COLUMN($G$51), 4) &" below (shown with a dotted background)." -> A similar problem is described below. Cell F37 lets you choose a data set. The data set contains two columns and is shown in cells F45:G51 below (shown with a dotted background).
E37: Data set | F37: 2 | G37: <- You can change this cell
E39: ="You need to sort the data set so that the first column is in descending order. The cells in the second column should stayed 'paired' with their partners on the left. Cells "& ADDRESS(ROW($L$45),COLUMN($L$45),4) & ":" & ADDRESS(ROW($M$51), COLUMN($M$51), 4) & " show how your answer should look. Your answer should go into cells "& ADDRESS(ROW($I$45),COLUMN($I$45),4) & ":" & ADDRESS(ROW($J$51), COLUMN($J$51), 4) & "." -> You need to sort the data set so that the first column is in descending order. The cells in the second column should stayed 'paired' with their partners on the left. Cells L45:M51 show how your answer should look. Your answer should go into cells I45:J51.
E42: =IF(ISERROR(SUM(I45:J51)),"Your answer is incorrect.",IF(J64,IF(NOT(J65),"Your answer is incorrect.",IF(MAX(F105:H111)>0,E115,"")),"")) -> 
E43: Index | F43: Data to sort | I43: Sorted data | L43: Your answer should look like this.
A45: =IF(OR(NOT(ISNUMBER($I$45)),ISERROR($I$45)),1,IF(AND(LEN($I$45)>0,ABS(1-(($I$45 + -0.005621982946116)/($I$78 + -0.005621982946116)))<0.00005),0,1)) -> 1 | B45: =IF(OR(NOT(ISNUMBER($J$45)),ISERROR($J$45)),1,IF(AND(LEN($J$45)>0,ABS(1-(($J$45 + -0.005621982946116)/($J$78 + -0.005621982946116)))<0.00005),0,1)) -> 1 | E45: 1 | F45: =INDIRECT("sort_b_"&F37) -> 1 | G45: 201 | L45: =I78 -> 7 | M45: 207
A46: =IF(OR(NOT(ISNUMBER($I$46)),ISERROR($I$46)),1,IF(AND(LEN($I$46)>0,ABS(1-(($I$46 + -0.005621982946116)/($I$79 + -0.005621982946116)))<0.00005),0,1)) -> 1 | B46: =IF(OR(NOT(ISNUMBER($J$46)),ISERROR($J$46)),1,IF(AND(LEN($J$46)>0,ABS(1-(($J$46 + -0.005621982946116)/($J$79 + -0.005621982946116)))<0.00005),0,1)) -> 1 | E46: =E45+1 -> 2 | F46: 2 | G46: 202 | L46: 6 | M46: -106
A47: =IF(OR(NOT(ISNUMBER($I$47)),ISERROR($I$47)),1,IF(AND(LEN($I$47)>0,ABS(1-(($I$47 + -0.005621982946116)/($I$80 + -0.005621982946116)))<0.00005),0,1)) -> 1 | B47: =IF(OR(NOT(ISNUMBER($J$47)),ISERROR($J$47)),1,IF(AND(LEN($J$47)>0,ABS(1-(($J$47 + -0.005621982946116)/($J$80 + -0.005621982946116)))<0.00005),0,1)) -> 1 | E47: 3 | F47: 3 | G47: 203 | L47: 5 | M47: 205
A48: =IF(OR(NOT(ISNUMBER($I$48)),ISERROR($I$48)),1,IF(AND(LEN($I$48)>0,ABS(1-(($I$48 + -0.005621982946116)/($I$81 + -0.005621982946116)))<0.00005),0,1)) -> 1 | B48: =IF(OR(NOT(ISNUMBER($J$48)),ISERROR($J$48)),1,IF(AND(LEN($J$48)>0,ABS(1-(($J$48 + -0.005621982946116)/($J$81 + -0.005621982946116)))<0.00005),0,1)) -> 1 | E48: 4 | F48: 4 | G48: 204 | L48: 4 | M48: 204
A49: =IF(OR(NOT(ISNUMBER($I$49)),ISERROR($I$49)),1,IF(AND(LEN($I$49)>0,ABS(1-(($I$49 + -0.005621982946116)/($I$82 + -0.005621982946116)))<0.00005),0,1)) -> 1 | B49: =IF(OR(NOT(ISNUMBER($J$49)),ISERROR($J$49)),1,IF(AND(LEN($J$49)>0,ABS(1-(($J$49 + -0.005621982946116)/($J$82 + -0.005621982946116)))<0.00005),0,1)) -> 1 | E49: 5 | F49: 5 | G49: 205 | L49: 3 | M49: 203
A50: =IF(OR(NOT(ISNUMBER($I$50)),ISERROR($I$50)),1,IF(AND(LEN($I$50)>0,ABS(1-(($I$50 + -0.005621982946116)/($I$83 + -0.005621982946116)))<0.00005),0,1)) -> 1 | B50: =IF(OR(NOT(ISNUMBER($J$50)),ISERROR($J$50)),1,IF(AND(LEN($J$50)>0,ABS(1-(($J$50 + -0.005621982946116)/($J$83 + -0.005621982946116)))<0.00005),0,1)) -> 1 | E50: 6 | F50: 6 | G50: -106 | L50: 2 | M50: 202
A51: =IF(OR(NOT(ISNUMBER($I$51)),ISERROR($I$51)),1,IF(AND(LEN($I$51)>0,ABS(1-(($I$51 + -0.005621982946116)/($I$84 + -0.005621982946116)))<0.00005),0,1)) -> 1 | B51: =IF(OR(NOT(ISNUMBER($J$51)),ISERROR($J$51)),1,IF(AND(LEN($J$51)>0,ABS(1-(($J$51 + -0.005621982946116)/($J$84 + -0.005621982946116)))<0.00005),0,1)) -> 1 | E51: 7 | F51: 7 | G51: 207 | L51: 1 | M51: 201
F55: 5 | G55: 105 | I55: 1 | J55: 201 | L55: 98 | M55: 1098
F56: 12 | G56: 112 | I56: 2 | J56: 202 | L56: 87 | M56: 1087
F57: 18 | G57: 118 | I57: 3 | J57: 203 | L57: 45 | M57: 78
F58: 4 | G58: 114 | I58: 4 | J58: 204 | L58: 0 | M58: 1000
F59: 7 | G59: 117 | I59: 5 | J59: 205 | L59: 101 | M59: -1101
F60: 68 | G60: -78 | I60: 6 | J60: -106 | L60: 34 | M60: 1034
F61: 33 | G61: 133 | I61: 7 | J61: 207 | L61: 90 | M61: 1090
E64: 1 | J64: =COUNTA(I45:J51)=ROWS(I45:J51)*COLUMNS(I45:J51) -> FALSE | K64: < all complete
E65: 2 | J65: =SUM(IF(I45:J51=I78:J84,1,0))=ROWS(I78:J84)*COLUMNS(I78:J84) -> FALSE | K65: < current answer is correct
E66: 3
E67: Theirs
F68: 1 | G68: 2 | H68: 3 | K68: 1 | L68: 2 | M68: 3
E69: =I45 -> 0 | F69: 0 | G69: 0 | H69: 0 | J69: =J45 -> 0 | K69: 0 | L69: 0 | M69: 0
E70: 0 | F70: 0 | G70: 0 | H70: 0 | J70: 0 | K70: 0 | L70: 0 | M70: 0
E71: 0 | F71: 0 | G71: 0 | H71: 0 | J71: 0 | K71: 0 | L71: 0 | M71: 0
E72: 0 | F72: 0 | G72: 0 | H72: 0 | J72: 0 | K72: 0 | L72: 0 | M72: 0
E73: 0 | F73: 0 | G73: 0 | H73: 0 | J73: 0 | K73: 0 | L73: 0 | M73: 0
E74: 0 | F74: 0 | G74: 0 | H74: 0 | J74: 0 | K74: 0 | L74: 0 | M74: 0
E75: 0 | F75: 0 | G75: 0 | H75: 0 | J75: 0 | K75: 0 | L75: 0 | M75: 0
I77: Sorted data
I78: =LARGE($F$45:$F$51,E45) -> 7 | J78: =VLOOKUP(I78,$F$45:$G$51,2,FALSE) -> 207
I79: 6 | J79: -106
I80: 5 | J80: 205
I81: 4 | J81: 204
I82: 3 | J82: 203
I83: 2 | J83: 202
I84: 1 | J84: 201
E87: Ours
F88: 1 | G88: 2 | H88: 3 | K88: 1 | L88: 2 | M88: 3
E89: =I78 -> 7 | F89: 68 | G89: 7 | H89: 101 | J89: =J78 -> 207 | K89: -78 | L89: 207 | M89: -1101
E90: 6 | F90: 33 | G90: 6 | H90: 98 | J90: -106 | K90: 133 | L90: -106 | M90: 1098
E91: 5 | F91: 18 | G91: 5 | H91: 90 | J91: 205 | K91: 118 | L91: 205 | M91: 1090
E92: 4 | F92: 12 | G92: 4 | H92: 87 | J92: 204 | K92: 112 | L92: 204 | M92: 1087
E93: 3 | F93: 7 | G93: 3 | H93: 45 | J93: 203 | K93: 117 | L93: 203 | M93: 78
E94: 2 | F94: 5 | G94: 2 | H94: 34 | J94: 202 | K94: 105 | L94: 202 | M94: 1034
E95: 1 | F95: 4 | G95: 1 | H95: 0 | J95: 201 | K95: 114 | L95: 201 | M95: 1000
F97: =IF(F69=F89,0,1) -> 1 | G97: 1 | H97: 1 | K97: =IF(K69=K89,0,1) -> 1 | L97: 1 | M97: 1
F98: 1 | G98: 1 | H98: 1 | K98: 1 | L98: 1 | M98: 1
F99: 1 | G99: 1 | H99: 1 | K99: 1 | L99: 1 | M99: 1
F100: 1 | G100: 1 | H100: 1 | K100: 1 | L100: 1 | M100: 1
F101: 1 | G101: 1 | H101: 1 | K101: 1 | L101: 1 | M101: 1
F102: 1 | G102: 1 | H102: 1 | K102: 1 | L102: 1 | M102: 1
F103: 1 | G103: 1 | H103: 0 | K103: 1 | L103: 1 | M103: 1
F105: =IF(AND(F97=0,K97=0),0,1) -> 1 | G105: 1 | H105: 1
F106: 1 | G106: 1 | H106: 1
F107: 1 | G107: 1 | H107: 1
F108: 1 | G108: 1 | H108: 1
F109: 1 | G109: 1 | H109: 1
F110: 1 | G110: 1 | H110: 1
F111: 1 | G111: 1 | H111: 1
F113: =MAX(F105:F111) -> 1 | G113: =MAX(G105:G111) -> 1 | H113: =MAX(H105:H111) -> 1 | J113: =MATCH(MAX(F113:H113),F113:H113,0) -> 1
E115: ="Your answer will be incorrect for data set " & J113&"." -> Your answer will be incorrect for data set 1.
N117: Index
A118: =SUM($A$119:$B$191) -> 15 | D118: =D3+1 -> 2 | E118: Sorting - dynamically - a small change to the preceding problem makes it much harder
E120: In the preceding problem the numbers in the column being sorted were all distinct. In this elaboration of that problem we allow duplicates in the sorting column. This makes the problem much more difficult.
E124: [To make it easy to see duplicates they are highlighted in purple below.]
E126: Data set | F126: 3 | G126: <- You can change this cell
E127: =IF(J178,"Your answer is incorrect.",IF(J179,IF(NOT(J180),"Your answer is incorrect.",IF(MAX(F168:H174)>0,F178,"")),"")) -> 
E128: Index | F128: Data to sort | H128: Sorted data | J128: Your answer should look like this | L128: Working space
A130: =IF(OR(NOT(ISNUMBER($H$130)),ISERROR($H$130)),1,IF(AND(LEN($H$130)>0,ABS(1-(($H$130 + -0.005621982946116)/($H$140 + -0.005621982946116)))<0.00005),0,1)) -> 1 | B130: =IF(OR(NOT(ISNUMBER($I$130)),ISERROR($I$130)),1,IF(AND(LEN($I$130)>0,ABS(1-(($I$130 + -0.005621982946116)/($I$140 + -0.005621982946116)))<0.00005),0,1)) -> 1 | E130: 1 | F130: =INDIRECT("sort_c_"&F126) -> 9 | G130: 1098 | J130: =H140 -> 87 | K130: 1087
A131: =IF(OR(NOT(ISNUMBER($H$131)),ISERROR($H$131)),1,IF(AND(LEN($H$131)>0,ABS(1-(($H$131 + -0.005621982946116)/($H$141 + -0.005621982946116)))<0.00005),0,1)) -> 1 | B131: =IF(OR(NOT(ISNUMBER($I$131)),ISERROR($I$131)),1,IF(AND(LEN($I$131)>0,ABS(1-(($I$131 + -0.005621982946116)/($I$141 + -0.005621982946116)))<0.00005),0,1)) -> 1 | E131: =E130+1 -> 2 | F131: 87 | G131: 1087 | J131: 87 | K131: 1034
A132: =IF(OR(NOT(ISNUMBER($H$132)),ISERROR($H$132)),1,IF(AND(LEN($H$132)>0,ABS(1-(($H$132 + -0.005621982946116)/($H$142 + -0.005621982946116)))<0.00005),0,1)) -> 1 | B132: =IF(OR(NOT(ISNUMBER($I$132)),ISERROR($I$132)),1,IF(AND(LEN($I$132)>0,ABS(1-(($I$132 + -0.005621982946116)/($I$142 + -0.005621982946116)))<0.00005),0,1)) -> 1 | E132: 3 | F132: 45 | G132: 78 | J132: 87 | K132: 1000
A133: =IF(OR(NOT(ISNUMBER($H$133)),ISERROR($H$133)),1,IF(AND(LEN($H$133)>0,ABS(1-(($H$133 + -0.005621982946116)/($H$143 + -0.005621982946116)))<0.00005),0,1)) -> 1 | B133: =IF(OR(NOT(ISNUMBER($I$133)),ISERROR($I$133)),1,IF(AND(LEN($I$133)>0,ABS(1-(($I$133 + -0.005621982946116)/($I$143 + -0.005621982946116)))<0.00005),0,1)) -> 1 | E133: 4 | F133: 87 | G133: 1034 | J133: 45 | K133: 78
A134: =IF(OR(NOT(ISNUMBER($H$134)),ISERROR($H$134)),1,IF(AND(LEN($H$134)>0,ABS(1-(($H$134 + -0.005621982946116)/($H$144 + -0.005621982946116)))<0.00005),0,1)) -> 1 | B134: =IF(OR(NOT(ISNUMBER($I$134)),ISERROR($I$134)),1,IF(AND(LEN($I$134)>0,ABS(1-(($I$134 + -0.005621982946116)/($I$144 + -0.005621982946116)))<0.00005),0,1)) -> 1 | E134: 5 | F134: 1 | G134: -1101 | J134: 9 | K134: 1098
A135: =IF(OR(NOT(ISNUMBER($H$135)),ISERROR($H$135)),1,IF(AND(LEN($H$135)>0,ABS(1-(($H$135 + -0.005621982946116)/($H$145 + -0.005621982946116)))<0.00005),0,1)) -> 1 | B135: =IF(OR(NOT(ISNUMBER($I$135)),ISERROR($I$135)),1,IF(AND(LEN($I$135)>0,ABS(1-(($I$135 + -0.005621982946116)/($I$145 + -0.005621982946116)))<0.00005),0,1)) -> 1 | E135: 6 | F135: 87 | G135: 1000 | J135: 8 | K135: 1090
A136: =IF(OR(NOT(ISNUMBER($H$136)),ISERROR($H$136)),1,IF(AND(LEN($H$136)>0,ABS(1-(($H$136 + -0.005621982946116)/($H$146 + -0.005621982946116)))<0.00005),0,1)) -> 1 | B136: =IF(OR(NOT(ISNUMBER($I$136)),ISERROR($I$136)),1,IF(AND(LEN($I$136)>0,ABS(1-(($I$136 + -0.005621982946116)/($I$146 + -0.005621982946116)))<0.00005),0,1)) -> 1 | E136: 7 | F136: 8 | G136: 1090 | J136: 1 | K136: -1101
A139: =IF(OR(NOT(ISNUMBER($E$139)),ISERROR($E$139)),1,IF(AND(LEN($E$139)>0,ABS((1-($E$139* 0.129454731941223+-0.103491544723511)/-0.103491544723511))<0.00005),0,1)) -> 1 | E139: =J181 -> 1
H140: =OFFSET(F$130,$M140-1,0) -> 87 | I140: 1087 | L140: =LARGE($F$130:$F$136,E130) -> 87 | M140: =IF(L140=L138,MATCH(L140,OFFSET(F$130,M138,0):$F$136,0)+M138,MATCH(L140,$F$130:$F$136,0)) -> 2
H141: 87 | I141: 1034 | L141: 87 | M141: =IF(L141=L140,MATCH(L141,OFFSET(F$130,M140,0):$F$136,0)+M140,MATCH(L141,$F$130:$F$136,0)) -> 4
H142: 87 | I142: 1000 | L142: 87 | M142: =IF(L142=L141,MATCH(L142,OFFSET(F$130,M141,0):$F$136,0)+M141,MATCH(L142,$F$130:$F$136,0)) -> 6
H143: 45 | I143: 78 | L143: 45 | M143: =IF(L143=L142,MATCH(L143,OFFSET(F$130,M142,0):$F$136,0)+M142,MATCH(L143,$F$130:$F$136,0)) -> 3
H144: 9 | I144: 1098 | L144: 9 | M144: =IF(L144=L143,MATCH(L144,OFFSET(F$130,M143,0):$F$136,0)+M143,MATCH(L144,$F$130:$F$136,0)) -> 1
H145: 8 | I145: 1090 | L145: 8 | M145: =IF(L145=L144,MATCH(L145,OFFSET(F$130,M144,0):$F$136,0)+M144,MATCH(L145,$F$130:$F$136,0)) -> 7
H146: 1 | I146: -1101 | L146: 1 | M146: =IF(L146=L145,MATCH(L146,OFFSET(F$130,M145,0):$F$136,0)+M145,MATCH(L146,$F$130:$F$136,0)) -> 5
E148: Theirs
F149: =F68 -> 1 | G149: =G68 -> 2 | H149: =H68 -> 3 | K149: =K68 -> 1 | L149: =L68 -> 2 | M149: =M68 -> 3
E150: =H130 -> 0 | F150: 0 | G150: 0 | H150: 0 | J150: =I130 -> 0 | K150: 0 | L150: 0 | M150: 0
E151: 0 | F151: 0 | G151: 0 | H151: 0 | J151: 0 | K151: 0 | L151: 0 | M151: 0
E152: 0 | F152: 0 | G152: 0 | H152: 0 | J152: 0 | K152: 0 | L152: 0 | M152: 0
E153: 0 | F153: 0 | G153: 0 | H153: 0 | J153: 0 | K153: 0 | L153: 0 | M153: 0
E154: 0 | F154: 0 | G154: 0 | H154: 0 | J154: 0 | K154: 0 | L154: 0 | M154: 0
E155: 0 | F155: 0 | G155: 0 | H155: 0 | J155: 0 | K155: 0 | L155: 0 | M155: 0
E156: 0 | F156: 0 | G156: 0 | H156: 0 | J156: 0 | K156: 0 | L156: 0 | M156: 0
E158: Ours
F159: =F149 -> 1 | G159: =G149 -> 2 | H159: =H149 -> 3 | K159: =K149 -> 1 | L159: =L149 -> 2 | M159: =M149 -> 3
E160: =J130 -> 87 | F160: 68 | G160: 7 | H160: 87 | J160: =I130 -> 0 | K160: 0 | L160: 0 | M160: 0
E161: 87 | F161: 33 | G161: 6 | H161: 87 | J161: 0 | K161: 0 | L161: 0 | M161: 0
E162: 87 | F162: 18 | G162: 4 | H162: 87 | J162: 0 | K162: 0 | L162: 0 | M162: 0
E163: 45 | F163: 12 | G163: 3 | H163: 45 | J163: 0 | K163: 0 | L163: 0 | M163: 0
E164: 9 | F164: 12 | G164: 3 | H164: 9 | J164: 0 | K164: 0 | L164: 0 | M164: 0
E165: 8 | F165: 5 | G165: 2 | H165: 8 | J165: 0 | K165: 0 | L165: 0 | M165: 0
E166: 1 | F166: 4 | G166: 1 | H166: 1 | J166: 0 | K166: 0 | L166: 0 | M166: 0
F168: =IF(AND(F150=F160,K150=K160),0,1) -> 1 | G168: 1 | H168: 1
F169: 1 | G169: 1 | H169: 1
F170: 1 | G170: 1 | H170: 1
F171: 1 | G171: 1 | H171: 1
F172: 1 | G172: 1 | H172: 1
F173: 1 | G173: 1 | H173: 1
F174: 1 | G174: 1 | H174: 1
F176: =MAX(F168:F174) -> 1 | G176: =MAX(G168:G174) -> 1 | H176: =MAX(H168:H174) -> 1 | J176: =MATCH(MAX(F176:H176),F176:H176,0) -> 1
F178: ="Your answer will be incorrect for data set " & J176&"." -> Your answer will be incorrect for data set 1. | J178: =ISERROR(SUM(H130:I136)) -> FALSE | K178: < excel error(s)
J179: =COUNTA(H130:I136)=ROWS(H130:I136)*COLUMNS(H130:I136) -> FALSE | K179: < all complete
J180: =SUM(IF(H130:I136=J130:K136,1,0))=ROWS(H130:I136)*COLUMNS(H130:I136) -> FALSE | K180: < current answer is correct
J181: =IF(J178,1,IF(AND(LEN(E127)=0,J179),0,1)) -> 1 | K181: < overall
F182: 5 | G182: 105 | I182: 1 | J182: 201 | L182: 9 | M182: 1098
F183: 12 | G183: 117 | I183: 2 | J183: 202 | L183: 87 | M183: 1087
F184: 18 | G184: 118 | I184: 3 | J184: 205 | L184: 45 | M184: 78
F185: 4 | G185: 114 | I185: 4 | J185: 204 | L185: 87 | M185: 1034
F186: 12 | G186: 112 | I186: 3 | J186: 203 | L186: 1 | M186: -1101
F187: 68 | G187: -78 | I187: 6 | J187: -106 | L187: 87 | M187: 1000
F188: 33 | G188: 133 | I188: 7 | J188: 207 | L188: 8 | M188: 1090
F191: Copyright (c) 2020 Tykoh Group Pty Ltd. All rights reserved. | N191: Index
F192: www.tykoh.com

Sheet Error_Handling
D1: Click here to see what your answer should look like.
K2: Miscellaneous | L2: Error_Handling
A3: =SUM($A$4:$A$55) -> 2 | C3: 1 | D3: Detecting errors in a block of cells - harder than it looks
D5: ="Cell "& ADDRESS(ROW($F$8),COLUMN($F$8),4)&" lets you select one of four data sets. Some of the data sets contain one or more (deliberate) errors and some are error-free. The selected data set is shown below with a dotted background." -> Cell F8 lets you select one of four data sets. Some of the data sets contain one or more (deliberate) errors and some are error-free. The selected data set is shown below with a dotted background.
D8: Choose data set >> | F8: 1 | G8: <- You can change this cell
D10: ="Chosen data set ["&F8&"]" -> Chosen data set [1]
D11: =INDIRECT("error_a_"&F8) -> 10 | E11: 72 | F11: 47 | G11: 88
D12: 84 | F12: 22 | G12: 4
D13: 61 | E13: 13 | F13: 12 | G13: 21
D14: 6 | E14: 58 | F14: 62 | G14: 58
D15: 6 | E15: 14 | F15: 96 | G15: 90
D17: ="You need to test whether the selected data set contains errors. The result of your test should be shown in cell "& ADDRESS(ROW($F$21),COLUMN($F$21),4)&". If there are one or more errors in the selected data set your formula should return 'Error' (without the quotes). If there are no errors your formula should return 'Ok' (without the quotes)." -> You need to test whether the selected data set contains errors. The result of your test should be shown in cell F21. If there are one or more errors in the selected data set your formula should return 'Error' (without the quotes). If there are no errors your formula should return 'Ok' (without the quotes).
D20: =IF(ISERROR(F21),"Your answer is incorrect.",IF(LEN(F21)>0,IF(F21<>F22,"Your answer is incorrect.",IF(MAX(I28:I33)>0,D54,"")),"")) -> 
A21: =IF(OR((0),ISERROR($F$21)),1,IF($F$21=$F$22,0,1)) -> 1 | D21: ="Status of data set " &F8&":" -> Status of data set 1:
F22: =IF(ISERROR(SUM(D11:G15)),"Error","Ok") -> Error
A24: =IF(OR(NOT(ISNUMBER($D$24)),ISERROR($D$24)),1,IF(AND(LEN($D$24)>0,ABS((1-($D$24*-2.40569651126862+-0.432667851448059)/-0.432667851448059))<0.00005),0,1)) -> 1 | D24: =I53 -> 1
F26: Theirs | G26: Ours
F27: =F21 -> 0 | G27: =F22 -> Error
E28: 1 | F28: 0 | G28: Error | I28: =IF(F28=G28,0,1) -> 1 | J28: =MATCH(MAX(I28:I31),I28:I31,0) -> 1
E29: =E28+1 -> 2 | F29: 0 | G29: Error | I29: 1
E30: =E29+1 -> 3 | F30: 0 | G30: Error | I30: 1
E31: =E30+1 -> 4 | F31: 0 | G31: Ok | I31: 1
E32: =E31+1 -> 5 | F32: 0 | G32: Error | I32: 1 | J32: =MATCH(MAX(I32:I33),I32:I33,0) -> 1
E33: =E32+1 -> 6 | F33: 0 | G33: Ok | I33: 1
D35: 10 | E35: 72 | F35: 47 | G35: 88 | I35: 63 | J35: 21 | K35: 76 | L35: 2
D36: 84 | E36: =1/0 ->  | F36: 22 | G36: 4 | I36: 79 | J36: =VLOOKUP(1,1,1) ->  | K36: 7 | L36: 69
D37: 61 | E37: 13 | F37: 12 | G37: 21 | I37: 42 | J37: 63 | K37: =#REF! ->  | L37: 42
D38: 6 | E38: 58 | F38: 62 | G38: 58 | I38: 96 | J38: 90 | K38: 79 | L38: 79
D39: 6 | E39: 14 | F39: 96 | G39: 90 | I39: 66 | J39: 72 | K39: 36 | L39: 91
D41: 61 | E41: 87 | F41: 95 | G41: 51 | I41: 93 | J41: 67 | K41: 88 | L41: 51
D42: 17 | E42: 22 | F42: =SQRT(-6) ->  | G42: 99 | I42: 86 | J42: 65 | K42: 64 | L42: 58
D43: 4 | E43: 50 | F43: 99 | G43: 65 | I43: 31 | J43: 27 | K43: 63 | L43: 43
D44: 18 | E44: 87 | F44: 9 | G44: 54 | I44: 25 | J44: 42 | K44: 8 | L44: 54
D45: 38 | E45: 63 | F45: 73 | G45: 55 | I45: 64 | J45: 85 | K45: 88 | L45: 18
D47: 61 | E47: 87 | F47: 95 | G47: 51 | I47: 93 | J47: 67 | K47: 88 | L47: 51
D48: 17 | E48: 22 | F48: =SQRT(-6) ->  | G48: 99 | I48: 86 | J48: 65 | K48: 64 | L48: 58
D49: 4 | E49: 50 | F49: 99 | G49: 65 | I49: 31 | J49: 27 | K49: 63 | L49: 43
D50: 18 | E50: 87 | F50: 9 | G50: 54 | I50: 25 | J50: 42 | K50: 8 | L50: 54
D51: 38 | E51: 63 | F51: 73 | G51: 55 | I51: 64 | J51: 85 | K51: 88 | L51: 18
I53: =IF(ISERROR(F21),1,IF(AND(LEN(D20)=0,LEN(F21)>0),0,1)) -> 1 | J53: < overall
D54: =IF(MAX(I28:I31)>0,"Your answer will be incorrect for data set " & J28&".","Your answer is not general enough to be an acceptable solution to this problem.") -> Your answer will be incorrect for data set 1.
M55: Index
A56: =SUM($A$57:$A$88) -> 2 | C56: =C3+1 -> 2 | D56: Lookup - Would be simple - but must generate a default value if the lookup fails.
D58: ="The table below in cells "& ADDRESS(ROW($D$61),COLUMN($D$61),4) & ":" &ADDRESS(ROW($E$63), COLUMN($E$63), 4) & " specifies an interest rate that applies for various product codes." -> The table below in cells D61:E63 specifies an interest rate that applies for various product codes.
D60: Product code | E60: Applicable rate
D61: BC12 | E61: 0.03
D62: CD09 | E62: 0.04
D63: BC11 | E63: 0.015
D65: ="Cell "& ADDRESS(ROW($E$67),COLUMN($E$67),4) &" lets you specify a product code." -> Cell E67 lets you specify a product code.
D67: Selected code | E67: BC12 | F67: <- You can change this cell
D69: ="In cell " & ADDRESS(ROW($E$72),COLUMN($E$72),4) &" below put a formula that returns the applicable rate for the selected code. If the selected code does not appear in the table above then return a rate of 5%." -> In cell E72 below put a formula that returns the applicable rate for the selected code. If the selected code does not appear in the table above then return a rate of 5%.
D71: =IF(ISERROR(E72),"Your answer is incorrect.",IF(LEN(E72)>0,IF(E72<>E73,"Your answer is incorrect",IF(MAX(G79:G83)>0,D85,"")),"")) -> 
A72: =IF(OR(NOT(ISNUMBER($E$72)),ISERROR($E$72)),1,IF(AND(LEN($E$72)>0,ABS(1-(($E$72 + -0.005621982946116)/($E$73 + -0.005621982946116)))<0.00005),0,1)) -> 1 | D72: Rate for selected code
E73: =IF(ISNA(VLOOKUP(E67,D61:E63,2,FALSE)),5%,VLOOKUP(E67,D61:E63,2,FALSE)) -> 0.03
A75: =IF(OR(NOT(ISNUMBER($D$75)),ISERROR($D$75)),1,IF(AND(LEN($D$75)>0,ABS((1-($D$75* 0.463406443595886+ 0.38165009021759)/ 0.38165009021759))<0.00005),0,1)) -> 1 | D75: =H84 -> 1
E78: =E72 -> 0 | F78: =E73 -> 0.03 | G78: =MATCH(MAX(G79:G83),G79:G83,0) -> 1
D79: =D61 -> BC12 | E79: 0 | F79: 0.03 | G79: =IF(ISNA(E79),1,IF(F79<>E79,1,0)) -> 1
D80: =D62 -> CD09 | E80: 0 | F80: 0.04 | G80: =IF(ISNA(E80),1,IF(F80<>E80,1,0)) -> 1
D81: =D63 -> BC11 | E81: 0 | F81: 0.015 | G81: =IF(ISNA(E81),1,IF(F81<>E81,1,0)) -> 1
D82: GTR87 | E82: 0 | F82: 0.05 | G82: =IF(ISNA(E82),1,IF(F82<>E82,1,0)) -> 1
D83: AA13 | E83: 0 | F83: 0.05 | G83: =IF(ISNA(E83),1,IF(F83<>E83,1,0)) -> 1
H84: =IF(ISERROR(E72),1,IF(AND(LEN(D71)=0,LEN(E72)>0),0,1)) -> 1 | I84: < overall
D85: ="Your answer will be incorrect if the code selected in cell "& ADDRESS(ROW(E67),COLUMN(E67),4) & " is " & CHOOSE(G78,D79,D80,D81,D82,D83)&"." -> Your answer will be incorrect if the code selected in cell E67 is BC12.
E88: Copyright (c) 2020 Tykoh Group Pty Ltd. All rights reserved. | M88: Index
E89: www.tykoh.com

Sheet __ans__ (hidden)
